Workbook

Sheet Controls
A17: SIMLEN: | B17: 30
A18: DT: | B18: 0.01
A19: PER: | B19: =B17/30 -> 1
A20: TIME: | B20: 30.00059128

Sheet Series
B4: BUFFER ->
C5: =TicToc -> 30.00059128 | D5: =Nexus!X15 -> 749.4172721 | E5: =Value!K42 -> 749.4435906 | F5: =Demand!K55 -> 749.3867605 | G5: =Price!K58 -> 191.9843233 | H5: =Price!K35 -> 191.9853465 | I5: =Price!K36 -> 191.9834424 | J5: =Price!K41 -> 191.9885606 | K5: =X64 -> 175.5389281 | L5: =-Nu -> 0.04535139756 | M5: =Value!G48 -> 0.4598353309
B7: BOX: | D7: Y2 | E7: S2 | F7: D2 | G7: P2 | H7: MC2 | I7: VMP1 | J7: VMPL | K7: P* | L7: -n | M7: G/$
B8: 0 | C8: 0 | D8: 750 | E8: 750 | F8: 738.7013135 | G8: 188.7529709 | H8: 190.5350657 | I8: 190.5350657 | J8: 190.5561983 | K8: 175.5389281 | L8: 0.04535998302 | M8: 0.4656096565
B9: 1 | C9: 1.009999394 | D9: 749.5570013 | E9: 749.9543287 | F9: 749.4265528 | G9: 189.3815929 | H9: 189.3080646 | I9: 189.2809578 | J9: 185.3285777 | K9: 175.5389281 | L9: 0.04533641743 | M9: 0.4654985775
B10: 2 | C10: 2.01999855 | D10: 749.285196 | E10: 749.523526 | F10: 750.3101385 | G10: 189.3221486 | H10: 189.3356271 | I10: 189.2273422 | J10: 188.3051093 | K10: 175.5389281 | L10: 0.04534844799 | M10: 0.4661392205
B11: 3 | C11: 3.029997587 | D11: 749.0994996 | E11: 749.1895752 | F11: 751.0612301 | G11: 189.4457586 | H11: 189.4880708 | I11: 189.381757 | J11: 189.2160129 | K11: 175.5389281 | L11: 0.04535671016 | M11: 0.4660460457
B12: 4 | C12: 4.039997578 | D12: 749.0995018 | E12: 749.1170662 | F12: 751.0406249 | G12: 190.0835453 | H12: 190.1262554 | I12: 190.0679216 | J12: 189.8019177 | K12: 175.5389281 | L12: 0.04535583937 | M12: 0.464537643
B13: 5 | C13: 5.050020695 | D13: 749.1557894 | E13: 749.1513691 | F13: 750.761067 | G13: 190.6597367 | H13: 190.6787976 | I13: 190.6899763 | J13: 190.397977 | K13: 175.5389281 | L13: 0.04535396295 | M13: 0.4631413687
B14: 6 | C14: 6.060043812 | D14: 749.2028345 | E14: 749.1969792 | F14: 750.5160451 | G14: 191.0378953 | H14: 191.029679 | I14: 191.0860149 | J14: 190.8772929 | K14: 175.5389281 | L14: 0.04535304381 | M14: 0.462222979
B15: 7 | C15: 7.070066929 | D15: 749.2364156 | E15: 749.2335056 | F15: 750.3311093 | G15: 191.2871123 | H15: 191.263441 | I15: 191.3367269 | J15: 191.2096679 | K15: 175.5389281 | L15: 0.04535257788 | M15: 0.4616159453
B16: 8 | C16: 8.080089569 | D16: 749.2629487 | E16: 749.2621528 | F16: 750.1820067 | G16: 191.4674011 | H16: 191.439222 | I16: 191.5124164 | J16: 191.4365183 | K16: 175.5389281 | L16: 0.04535223626 | M16: 0.4611741758
B17: 9 | C17: 9.090112686 | D17: 749.2858439 | E17: 749.2858609 | F17: 750.0547269 | G17: 191.6064835 | H17: 191.5795881 | I17: 191.6451312 | J17: 191.5987835 | K17: 175.5389281 | L17: 0.04535196544 | M17: 0.4608308766
B18: 10 | C18: 10.1001358 | D18: 749.3061578 | E18: 749.3063116 | F18: 749.9441266 | G18: 191.7161297 | H18: 191.6927092 | I18: 191.7482177 | J18: 191.7203441 | K18: 175.5389281 | L18: 0.04535176679 | M18: 0.4605580959
B19: 11 | C19: 11.11015892 | D19: 749.3242137 | E19: 749.3243085 | F19: 749.8478981 | G19: 191.8024115 | H19: 191.7829444 | I19: 191.8283701 | J19: 191.8133629 | K19: 175.5389281 | L19: 0.04535163312 | M19: 0.4603415363
B20: 12 | C20: 12.12018204 | D20: 749.3402089 | E20: 749.3402416 | F20: 749.7643456 | G20: 191.8694108 | H20: 191.8536997 | I20: 191.889922 | J20: 191.8844275 | K20: 175.5389281 | L20: 0.0453515515 | M20: 0.4601715632
B21: 13 | C21: 13.13020515 | D21: 749.3543352 | E21: 749.354339 | F21: 749.6919478 | G21: 191.9203801 | H21: 191.9079982 | I21: 191.9362014 | J21: 191.9377761 | K21: 175.5389281 | L21: 0.04535150962 | M21: 0.4600404564
B22: 14 | C22: 14.14022827 | D22: 749.3667849 | E22: 749.3667814 | F22: 749.6293087 | G22: 191.9581146 | H22: 191.9485821 | I22: 191.9699915 | J22: 191.9766277 | K22: 175.5389281 | L22: 0.04535149734 | M22: 0.4599415564
B23: 15 | C23: 15.15025139 | D23: 749.3777452 | E23: 749.3777423 | F23: 749.5751469 | G23: 191.9850703 | H23: 191.9779238 | I23: 191.9936949 | J23: 192.0036702 | K23: 175.5389281 | L23: 0.04535150627 | M23: 0.459869
B24: 16 | C24: 16.16027451 | D24: 749.3873953 | E24: 749.3873941 | F24: 749.5282864 | G24: 192.0033969 | H24: 191.9982154 | I24: 192.0093892 | J24: 192.0212253 | K24: 175.5389281 | L24: 0.04535152936 | M24: 0.4598176486
B25: 17 | C25: 17.17029762 | D25: 749.3959037 | E25: 749.3959035 | F25: 749.4876557 | G25: 192.0149469 | H25: 192.0113615 | I25: 192.0188483 | J25: 192.0312994 | K25: 175.5389281 | L25: 0.04535156073 | M25: 0.4597830658
B26: 18 | C26: 18.18032074 | D26: 749.4034267 | E26: 749.4034267 | F26: 749.4522885 | G26: 192.0212881 | H26: 192.0189821 | I26: 192.023561 | J26: 192.035604 | K26: 175.5389281 | L26: 0.04535159553 | M26: 0.4597614906
B27: 19 | C27: 19.19034386 | D27: 749.4093174 | E27: 749.4093175 | F27: 749.4240396 | G27: 192.0212686 | H27: 192.0197585 | I27: 192.0223477 | J27: 192.0353673 | K27: 175.5389281 | L27: 0.04535164346 | M27: 0.4597561294
B28: 20 | C28: 20.20036697 | D28: 749.4118725 | E28: 749.4118872 | F28: 749.410916 | G28: 192.0117737 | H28: 192.0110068 | I28: 192.0113099 | J28: 192.0285673 | K28: 175.5389281 | L28: 0.04535171623 | M28: 0.4597758401
B29: 21 | C29: 21.21039009 | D29: 749.413117 | E29: 749.4145751 | F29: 749.4057554 | G29: 192.0022386 | H29: 192.0022816 | I29: 192.0007595 | J29: 192.0183302 | K29: 175.5389281 | L29: 0.04535177346 | M29: 0.4597966705
B30: 22 | C30: 22.22041321 | D30: 749.4141008 | E30: 749.4185602 | F30: 749.4021173 | G30: 191.9957044 | H30: 191.9963537 | I30: 191.9937898 | J30: 192.0093117 | K30: 175.5389281 | L30: 0.0453518005 | M30: 0.4598105123
B31: 23 | C31: 23.23043633 | D31: 749.4148239 | E31: 749.4228623 | F31: 749.3995079 | G31: 191.9906963 | H31: 191.9917476 | I31: 191.9886609 | J31: 192.0023285 | K31: 175.5389281 | L31: 0.0453518012 | M31: 0.459821135
B32: 24 | C32: 24.24045944 | D32: 749.4153926 | E32: 749.4269329 | F32: 749.3973697 | G32: 191.9868581 | H32: 191.9881202 | I32: 191.9848613 | J32: 191.9969633 | K32: 175.5389281 | L32: 0.04535178036 | M32: 0.4598293549
B33: 25 | C33: 25.25048256 | D33: 749.415866 | E33: 749.4305907 | F33: 749.3954129 | G33: 191.984083 | H33: 191.9854162 | I33: 191.9822186 | J33: 191.9929116 | K33: 175.5389281 | L33: 0.0453517423 | M33: 0.4598353733
B34: 26 | C34: 26.26050568 | D34: 749.4162666 | E34: 749.4338445 | F34: 749.3935353 | G34: 191.9823175 | H34: 191.9836341 | I34: 191.9806398 | J34: 191.9900169 | K34: 175.5389281 | L34: 0.04535168973 | M34: 0.4598392761
B35: 27 | C35: 27.27052879 | D35: 749.4166046 | E35: 749.4367663 | F35: 749.3917 | G35: 191.9815394 | H35: 191.9827925 | I35: 191.980075 | J35: 191.9882069 | K35: 175.5389281 | L35: 0.04535162463 | M35: 0.4598410792
B36: 28 | C36: 28.28055191 | D36: 749.4168884 | E36: 749.4394355 | F36: 749.3898823 | G36: 191.9817426 | H36: 191.9829123 | I36: 191.9804992 | J36: 191.9874528 | K36: 175.5389281 | L36: 0.04535154859 | M36: 0.4598407644
B37: 29 | C37: 29.29057503 | D37: 749.4171269 | E37: 749.4419214 | F37: 749.3880583 | G37: 191.9829203 | H37: 191.9840027 | I37: 191.9818937 | J37: 191.9877413 | K37: 175.5389281 | L37: 0.04535146293 | M37: 0.459838319
B38: 30 | C38: 30.00059128 | D38: 749.4172721 | E38: 749.4435906 | F38: 749.3867605 | G38: 191.9843233 | H38: 191.9853465 | I38: 191.9834424 | J38: 191.9885606 | K38: 175.5389281 | L38: 0.04535139756 | M38: 0.4598353309
X53: b2 | Y53: Z2 | Z53: Sb | AA53: SU
X54: =Finance!AE71 -> 1456324.321 | Y54: =Utility!U15 -> 8335.018713 | Z54: =SUM(Finance!AE70:AE83) -> 4466407.405 | AA54: =Utility!K33 -> 22515.02013
X55: INITIAL | Y55: INITIAL
W56: Q1 | X56: s | Y56: d | Z56: S | AA56: D
W57: 600 | X57: 172.3617607 | Y57: 176.9109766 | Z57: =X$54/(Y$54-W57) -> 188.2767677 | AA57: =Z$54/(AA$54+W57) -> 193.2253306
W58: 620 | X58: 172.808582 | Y58: 176.7580388 | Z58: 188.7648462 | AA58: 193.0582891
W59: 640 | X59: 173.2577261 | Y59: 176.6053652 | Z59: 189.2554619 | AA59: 192.8915363
W60: 660 | X60: 173.7092109 | Y60: 176.4529551 | Z60: 189.7486346 | AA60: 192.7250712
W61: 680 | X61: 174.1630549 | Y61: 176.3008078 | Z61: 190.2443842 | AA61: 192.5588933
W62: 700 | X62: 174.6192766 | Y62: 176.1489227 | Z62: 190.7427311 | AA62: 192.3930016
W63: 720 | X63: 175.0778947 | Y63: 175.997299 | Z63: 191.2436956 | AA63: 192.2273956
W64: 740 | X64: 175.5389281 | Y64: 175.8459362 | Z64: 191.7472986 | AA64: 192.0620744
W65: 760 | X65: 176.0023961 | Y65: 175.6948335 | Z65: 192.2535609 | AA65: 191.8970373
W66: 780 | X66: 176.4683179 | Y66: 175.5439902 | Z66: 192.7625035 | AA66: 191.7322836
W67: 800 | X67: 176.9367131 | Y67: 175.3934058 | Z67: 193.2741479 | AA67: 191.5678125
W68: 820 | X68: 177.4076014 | Y68: 175.2430794 | Z68: 193.7885156 | AA68: 191.4036234
W69: 840 | X69: 177.8810027 | Y69: 175.0930106 | Z69: 194.3056284 | AA69: 191.2397155
W70: 860 | X70: 178.3569373 | Y70: 174.9431985 | Z70: 194.8255084 | AA70: 191.0760881
W71: 880 | X71: 178.8354256 | Y71: 174.7936426 | Z71: 195.3481778 | AA71: 190.9127404
W72: 900 | X72: 179.316488 | Y72: 174.6443421 | Z72: 195.8736591 | AA72: 190.7496718
W73: 920 | X73: 179.8001456 | Y73: 174.4952965 | Z73: 196.4019752 | AA73: 190.5868815
W74: 940 | X74: 180.2864193 | Y74: 174.3465051 | Z74: 196.9331489 | AA74: 190.4243689
W75: 960 | X75: 180.7753303 | Y75: 174.1979672 | Z75: 197.4672035 | AA75: 190.2621331
W76: 980 | X76: 181.2669004 | Y76: 174.0496822 | Z76: 198.0041626 | AA76: 190.1001736
W77: 1000 | X77: 181.761151 | Y77: 173.9016494 | Z77: 198.5440499 | AA77: 189.9384896

Sheet Initial
C4: Boundary
C5: Conditions >
I6: INDUSTRIES | M6: HOUSEHOLDS
I8: VALUE | J8: CAPITAL | K8: GENERAL | L8: NON_DUR | N8: BOURGS | O8: PRLTRT | P8: DPNDNT
I9: 0 | J9: =1+I9 -> 1 | K9: =1+J9 -> 2 | L9: =1+K9 -> 3 | N9: =1+L9 -> 4 | O9: =1+N9 -> 5 | P9: =1+O9 -> 6
I10: 0 | J10: I1 | K10: I2 | L10: I3 | N10: L1 | O10: L2 | P10: L3
G11: U > | U11: Z | W11: t
BC12: 0 | BD12: 0
E13: 0 | F13: 0 | X13: 0 | Y13: 0 | BA13: INDUSTRIES | BB13: CAPITAL | BC13: =1+BC12 -> 1 | BD13: I1
C14: INDUSTRIES | D14: CAPITAL | E14: =1+E13 -> 1 | F14: I1 | J14: 984.6028971 | K14: 8511.048007 | L14: 42087.23884 | N14: 1412.31492 | O14: 75957.22481 | U14: 1114.602897 | X14: I1 | Y14: =1+Y13 -> 1 | Z14: CAPITAL | AA14: INDUSTRIES | BB14: GENERAL | BC14: =1+BC13 -> 2 | BD14: I2
D15: GENERAL | E15: =1+E14 -> 2 | F15: I2 | J15: 858.4507575 | K15: 7485.018713 | L15: 36643.44121 | N15: 1217.167443 | O15: 66061.09317 | U15: 8335.018713 | X15: I2 | Y15: =1+Y14 -> 2 | Z15: GENERAL | BB15: NON_DUR | BC15: =1+BC14 -> 3 | BD15: I3
D16: NON_DUR | E16: =1+E15 -> 3 | F16: I3 | J16: 738.6397375 | K16: 6363.432193 | L16: 31567.68255 | N16: 1050.971725 | O16: 56643.43297 | U16: 35267.68255 | X16: I3 | Y16: =1+Y15 -> 3 | Z16: NON_DUR
BA17: HOUSEHOLDS | BB17: BOURGS | BC17: =1+BC15 -> 4 | BD17: L1
C18: HOUSEHOLDS | D18: BOURGS | E18: =1+E16 -> 4 | F18: L1 | J18: 19.46675055 | K18: 135.4401805 | L18: 796.1502456 | O18: 3000.796579 | W18: 876 | X18: L1 | Y18: =1+Y16 -> 4 | Z18: BOURGS | AA18: HOUSEHOLDS | BB18: PRLTRT | BC18: =1+BC17 -> 5 | BD18: L2
D19: PRLTRT | E19: =1+E18 -> 5 | F19: L2 | J19: 8.6649777 | K19: 25.92347953 | L19: 261.4981457 | N19: 8.822458794 | W19: 8766 | X19: L2 | Y19: =1+Y18 -> 5 | Z19: PRLTRT | BB19: DPNDNT | BC19: =1+BC18 -> 6 | BD19: L3
D20: DPNDNT | E20: =1+E19 -> 6 | F20: L3 | J20: 0.05676079413 | K20: -4.359788385 | L20: -8.077746956 | N20: -0.7366905436 | O20: -5.926110968 | W20: 100 | X20: L3 | Y20: =1+Y19 -> 6 | Z20: DPNDNT
BA21: GOVERNANCE | BB21: LOCAL | BC21: =1+BC19 -> 7 | BD21: G1
C22: GOVERNANCE | D22: LOCAL | E22: =1+E20 -> 7 | F22: G1 | J22: -0.04464959296 | K22: 0.4291353939 | L22: 0.1364028522 | N22: -6.683759665 | O22: -54.94209311 | X22: G1 | Y22: =1+Y20 -> 7 | Z22: LOCAL | AA22: GOVERNANCE | BB22: NATIONAL | BC22: =1+BC21 -> 8 | BD22: G2
D23: NATIONAL | E23: =1+E22 -> 8 | F23: G2 | J23: -0.01515824886 | K23: 1.351353454 | L23: 2.973548797 | N23: -10.17826882 | O23: -80.07931206 | X23: G2 | Y23: =1+Y22 -> 8 | Z23: NATIONAL
BA24: BANKING | BB24: CMRCL | BC24: =1+BC22 -> 9 | BD24: FI
C25: BANKING | D25: CMRCL | E25: =1+E23 -> 9 | F25: FI | J25: -0.00436369798 | K25: -0.1306186401 | L25: -0.345054324 | N25: -1.156396091 | O25: -4.08121429 | X25: FI | Y25: 9 | Z25: CMRCL | AA25: BANKING | BB25: RETAIL | BC25: =1+BC24 -> 10 | BD25: FL
D26: RETAIL | E26: =1+E25 -> 10 | F26: FL | J26: -0.06834267666 | K26: -3.132527532 | L26: -9.660825363 | N26: 0.04918439326 | O26: -0.7837461873 | X26: FL | Y26: 10 | Z26: RETAIL | BB26: GOVT | BC26: =1+BC25 -> 11 | BD26: FG
D27: GOVT | E27: =1+E26 -> 11 | F27: FG | X27: FG | Y27: 11 | Z27: GOVT
I28: 0 | J28: I1 | K28: I2 | L28: I3 | N28: L1 | O28: L2 | P28: L3
I29: 0 | J29: =1+I29 -> 1 | K29: =1+J29 -> 2 | L29: =1+K29 -> 3 | N29: =1+L29 -> 4 | O29: =1+N29 -> 5 | P29: =1+O29 -> 6
I30: VALUE | J30: CAPITAL | K30: GENERAL | L30: NON_DUR | N30: BOURGS | O30: PRLTRT | P30: DPNDNT | R30: LOCAL | S30: NATIONAL
I31: 0 | J31: =1+I31 -> 1 | K31: =1+J31 -> 2 | L31: =1+K31 -> 3 | N31: =1+L31 -> 4 | O31: =1+N31 -> 5 | P31: =1+O31 -> 6 | R31: 7 | S31: 8
I32: 0 | J32: I1 | K32: I2 | L32: I3 | N32: L1 | O32: L2 | P32: L3 | R32: G1 | S32: G2
G33: V > | I33: 1 | J33: 0.1 | K33: 0.3333333333 | L33: 1 | N33: 1 | O33: 1 | P33: 1 | R33: 1 | S33: 1 | W33: =I33*(-I41-I59-I77) -> -271197.0825 | X33: < Y00
I34: 0 | J34: I1 | K34: I2 | L34: I3 | N34: L1 | O34: L2 | P34: L3 | R34: G1 | S34: G2
I35: 0 | J35: 1 | K35: 2 | L35: 3 | N35: 4 | O35: 5 | P35: 6 | R35: 7 | S35: 8
C36: State | I36: VALUE | J36: CAPITAL | K36: GENERAL | L36: NON_DUR | N36: BOURGS | O36: PRLTRT | P36: DPNDNT | R36: LOCAL | S36: NATIONAL | U36: CMRCL | V36: RETAIL | W36: GOVT
C37: Variables > | I37: 0 | J37: 1 | K37: 2 | L37: 3 | N37: 4 | O37: 5 | P37: 6 | R37: 7 | S37: 8 | U37: 9 | V37: 10 | W37: 11
I38: 0 | J38: I1 | K38: I2 | L38: I3 | N38: L1 | O38: L2 | P38: L3 | R38: G1 | S38: G2 | U38: FI | V38: FL | W38: FG
G39: A > | I39: 0 | J39: 0 | K39: 0 | L39: 0 | N39: 0 | O39: 0 | P39: 0 | R39: 0 | S39: 0 | U39: 0 | V39: 0 | W39: 0 | Z39: g
E41: 0 | F41: 0 | I41: 90399.02751 | J41: -333.3333333 | K41: -750 | L41: -1066.666667 | N41: -292 | O41: -2922 | P41: -33.33333333 | R41: 0 | S41: 0 | U41: 0 | V41: 0 | W41: 0 | X41: 0 | Y41: 0
C42: INDUSTRIES | D42: CAPITAL | E42: 1 | F42: I1 | I42: -23728.10035 | J42: 100 | K42: 200 | L42: 266.6666667 | N42: 6.666666667 | O42: 200 | P42: 0 | R42: 170.8422778 | S42: 284.7371296 | U42: 0 | V42: 0 | W42: 0 | X42: I1 | Y42: 1 | Z42: CAPITAL | AA42: INDUSTRIES
D43: GENERAL | E43: 2 | F43: I2 | I43: -20727.64344 | J43: 83.33333333 | K43: 100 | L43: 233.3333333 | N43: 10 | O43: 200 | P43: 0 | R43: 149.2389658 | S43: 248.7316097 | U43: 0 | V43: 0 | W43: 0 | X43: I2 | Y43: 2 | Z43: GENERAL
D44: NON_DUR | E44: 3 | F44: I3 | I44: -17963.08662 | J44: 66.66666667 | K44: 150 | L44: 166.6666667 | N44: 6.666666667 | O44: 200 | P44: 0 | R44: 129.334169 | S44: 215.5569483 | U44: 0 | V44: 0 | W44: 0 | X44: I3 | Y44: 3 | Z44: NON_DUR
C46: HOUSEHOLDS | D46: BOURGS | E46: 4 | F46: L1 | I46: -19052.77244 | J46: 76.44176101 | K46: 228.5861342 | L46: 332.022067 | N46: 260.3574901 | O46: 66.15206179 | P46: 0 | R46: 2331.250746 | S46: 3885.41791 | U46: -100271.5324 | V46: -106245.4634 | W46: 0 | X46: L1 | Y46: 4 | Z46: BOURGS | AA46: HOUSEHOLDS
D47: PRLTRT | E47: 5 | F47: L2 | I47: -3956.371089 | J47: 4.325287275 | K47: 59.61182941 | L47: 53.20639269 | N47: 1.747230913 | O47: 2189.785117 | P47: 0 | R47: 486.6807256 | S47: 811.1345427 | U47: -11141.28138 | V47: 0 | W47: 0 | X47: L2 | Y47: 5 | Z47: PRLTRT
D48: DPNDNT | E48: 6 | F48: L3 | I48: -547.0809464 | J48: 0.4325287275 | K48: 5.961182941 | L48: 5.320639269 | N48: 0.3333333333 | O48: 6.666666667 | P48: 33.33333333 | R48: -410.3107098 | S48: -683.8511829 | U48: 0 | V48: 0 | W48: 0 | X48: L3 | Y48: 6 | Z48: DPNDNT
C50: GOVERNANCE | D50: LOCAL | E50: 7 | F50: G1 | I50: -1548.726868 | J50: 0.6177622581 | K50: 0.7786891274 | L50: 1.936699499 | N50: 2.294118777 | O50: 21.85236126 | P50: 0 | R50: -3097.453736 | S50: 0 | U50: 0 | V50: 0 | W50: 0 | X50: G1 | Y50: 7 | Z50: LOCAL | AA50: GOVERNANCE
D51: NATIONAL | E51: 8 | F51: G2 | I51: -2358.989224 | J51: 0.9307803875 | K51: 0.9159154104 | L51: 2.729643817 | N51: 3.517021574 | O51: 33.33508372 | P51: 0 | R51: 166.6666667 | S51: -4884.645115 | U51: 0 | V51: 0 | W51: 0 | X51: G2 | Y51: 8 | Z51: NATIONAL
C53: BANKING | D53: CMRCL | E53: =1+E51 -> 9 | F53: FI | I53: -264.2562626 | J53: 0.1143233367 | K53: 0.3876161713 | L53: 0.5367780958 | N53: 0.3995509783 | O53: 2.113280795 | P53: 0 | R53: 37.75089466 | S53: 62.91815776 | U53: 111412.8138 | V53: 0 | W53: 0 | X53: FI | Y53: 9 | Z53: CMRCL | AA53: BANKING
D54: RETAIL | E54: =1+E53 -> 10 | F54: FL | I54: -252 | J54: 0.4708903394 | K54: 3.758632751 | L54: 4.247779658 | N54: 0.01792100617 | O54: 2.095428265 | P54: 0 | R54: 36 | S54: 60 | U54: 0 | V54: 106245.4634 | W54: 0 | X54: FL | Y54: 10 | Z54: RETAIL
D55: GOVT | E55: =1+E54 -> 11 | F55: FG | I55: 0 | J55: 0 | K55: 0 | L55: 0 | N55: 0 | O55: 0 | P55: 0 | R55: 0 | S55: 0 | U55: 0 | V55: 0 | W55: 0 | X55: FG | Y55: 11 | Z55: GOVT
G57: B > | I57: 0 | J57: 0 | K57: 0 | L57: 0 | N57: 0 | O57: 0 | P57: 0 | R57: 0 | S57: 0 | U57: 0 | V57: 0 | W57: 0 | Z57: g
E59: 0 | F59: 0 | I59: 90399.02751 | J59: -333.3333333 | K59: -750 | L59: -1066.666667 | N59: -292 | O59: -2922 | P59: -33.33333333 | R59: 0 | S59: 0 | U59: 0 | V59: 0 | W59: 0 | X59: 0 | Y59: 0
C60: INDUSTRIES | D60: CAPITAL | E60: 1 | F60: I1 | I60: -23728.10035 | J60: 100 | K60: 200 | L60: 266.6666667 | N60: 6.666666667 | O60: 200 | P60: 0 | R60: 170.8422778 | S60: 284.7371296 | U60: 0 | V60: 0 | W60: 0 | X60: I1 | Y60: 1 | Z60: CAPITAL | AA60: INDUSTRIES
D61: GENERAL | E61: 2 | F61: I2 | I61: -20727.64344 | J61: 83.33333333 | K61: 100 | L61: 233.3333333 | N61: 10 | O61: 200 | P61: 0 | R61: 149.2389658 | S61: 248.7316097 | U61: 0 | V61: 0 | W61: 0 | X61: I2 | Y61: 2 | Z61: GENERAL
D62: NON_DUR | E62: 3 | F62: I3 | I62: -17963.08662 | J62: 66.66666667 | K62: 150 | L62: 166.6666667 | N62: 6.666666667 | O62: 200 | P62: 0 | R62: 129.334169 | S62: 215.5569483 | U62: 0 | V62: 0 | W62: 0 | X62: I3 | Y62: 3 | Z62: NON_DUR
C64: HOUSEHOLDS | D64: BOURGS | E64: 4 | F64: L1 | I64: -19052.77244 | J64: 76.44176101 | K64: 228.5861342 | L64: 332.022067 | N64: 260.3574901 | O64: 66.15206179 | P64: 0 | R64: 2331.250746 | S64: 3885.41791 | U64: -100271.5324 | V64: -106245.4634 | W64: 0 | X64: L1 | Y64: 4 | Z64: BOURGS | AA64: HOUSEHOLDS
D65: PRLTRT | E65: 5 | F65: L2 | I65: -3956.371089 | J65: 4.325287275 | K65: 59.61182941 | L65: 53.20639269 | N65: 1.747230913 | O65: 2189.785117 | P65: 0 | R65: 486.6807256 | S65: 811.1345427 | U65: -11141.28138 | V65: 0 | W65: 0 | X65: L2 | Y65: 5 | Z65: PRLTRT
D66: DPNDNT | E66: 6 | F66: L3 | I66: -547.0809464 | J66: 0.4325287275 | K66: 5.961182941 | L66: 5.320639269 | N66: 0.3333333333 | O66: 6.666666667 | P66: 33.33333333 | R66: -410.3107098 | S66: -683.8511829 | U66: 0 | V66: 0 | W66: 0 | X66: L3 | Y66: 6 | Z66: DPNDNT
C68: GOVERNANCE | D68: LOCAL | E68: 7 | F68: G1 | I68: -1548.726868 | J68: 0.6177622581 | K68: 0.7786891274 | L68: 1.936699499 | N68: 2.294118777 | O68: 21.85236126 | P68: 0 | R68: -3097.453736 | S68: 0 | U68: 0 | V68: 0 | W68: 0 | X68: G1 | Y68: 7 | Z68: LOCAL | AA68: GOVERNANCE
D69: NATIONAL | E69: 8 | F69: G2 | I69: -2358.989224 | J69: 0.9307803875 | K69: 0.9159154104 | L69: 2.729643817 | N69: 3.517021574 | O69: 33.33508372 | P69: 0 | R69: 166.6666667 | S69: -4884.645115 | U69: 0 | V69: 0 | W69: 0 | X69: G2 | Y69: 8 | Z69: NATIONAL
C71: BANKING | D71: CMRCL | E71: =1+E69 -> 9 | F71: FI | I71: -264.2562626 | J71: 0.1143233367 | K71: 0.3876161713 | L71: 0.5367780958 | N71: 0.3995509783 | O71: 2.113280795 | P71: 0 | R71: 37.75089466 | S71: 62.91815776 | U71: 111412.8138 | V71: 0 | W71: 0 | X71: FI | Y71: 9 | Z71: CMRCL | AA71: BANKING
D72: RETAIL | E72: =1+E71 -> 10 | F72: FL | I72: -252 | J72: 0.4708903394 | K72: 3.758632751 | L72: 4.247779658 | N72: 0.01792100617 | O72: 2.095428265 | P72: 0 | R72: 36 | S72: 60 | U72: 0 | V72: 106245.4634 | W72: 0 | X72: FL | Y72: 10 | Z72: RETAIL
D73: GOVT | E73: =1+E72 -> 11 | F73: FG | J73: 0 | K73: 0 | L73: 0 | N73: 0 | O73: 0 | P73: 0 | R73: 0 | S73: 0 | U73: 0 | V73: 0 | W73: 0 | X73: FG | Y73: 11 | Z73: GOVT
G75: C > | I75: 0 | J75: 0 | K75: 0 | L75: 0 | N75: 0 | O75: 0 | P75: 0 | R75: 0 | S75: 0 | U75: 0 | V75: 0 | W75: 0 | Z75: g
E77: 0 | F77: 0 | I77: 90399.02751 | J77: -333.3333333 | K77: -750 | L77: -1066.666667 | N77: -292 | O77: -2922 | P77: -33.33333333 | R77: 0 | S77: 0 | U77: 0 | V77: 0 | W77: 0 | X77: 0 | Y77: 0
C78: INDUSTRIES | D78: CAPITAL | E78: 1 | F78: I1 | I78: -23728.10035 | J78: 100 | K78: 200 | L78: 266.6666667 | N78: 6.666666667 | O78: 200 | P78: 0 | R78: 170.8422778 | S78: 284.7371296 | U78: 0 | V78: 0 | W78: 0 | X78: I1 | Y78: 1 | Z78: CAPITAL | AA78: INDUSTRIES
D79: GENERAL | E79: 2 | F79: I2 | I79: -20727.64344 | J79: 83.33333333 | K79: 100 | L79: 233.3333333 | N79: 10 | O79: 200 | P79: 0 | R79: 149.2389658 | S79: 248.7316097 | U79: 0 | V79: 0 | W79: 0 | X79: I2 | Y79: 2 | Z79: GENERAL
D80: NON_DUR | E80: 3 | F80: I3 | I80: -17963.08662 | J80: 66.66666667 | K80: 150 | L80: 166.6666667 | N80: 6.666666667 | O80: 200 | P80: 0 | R80: 129.334169 | S80: 215.5569483 | U80: 0 | V80: 0 | W80: 0 | X80: I3 | Y80: 3 | Z80: NON_DUR
C82: HOUSEHOLDS | D82: BOURGS | E82: 4 | F82: L1 | I82: -19052.77244 | J82: 76.44176101 | K82: 228.5861342 | L82: 332.022067 | N82: 260.3574901 | O82: 66.15206179 | P82: 0 | R82: 2331.250746 | S82: 3885.41791 | U82: -100271.5324 | V82: -106245.4634 | W82: 0 | X82: L1 | Y82: 4 | Z82: BOURGS | AA82: HOUSEHOLDS
D83: PRLTRT | E83: 5 | F83: L2 | I83: -3956.371089 | J83: 4.325287275 | K83: 59.61182941 | L83: 53.20639269 | N83: 1.747230913 | O83: 2189.785117 | P83: 0 | R83: 486.6807256 | S83: 811.1345427 | U83: -11141.28138 | V83: 0 | W83: 0 | X83: L2 | Y83: 5 | Z83: PRLTRT
D84: DPNDNT | E84: 6 | F84: L3 | I84: -547.0809464 | J84: 0.4325287275 | K84: 5.961182941 | L84: 5.320639269 | N84: 0.3333333333 | O84: 6.666666667 | P84: 33.33333333 | R84: -410.3107098 | S84: -683.8511829 | U84: 0 | V84: 0 | W84: 0 | X84: L3 | Y84: 6 | Z84: DPNDNT
C86: GOVERNANCE | D86: LOCAL | E86: 7 | F86: G1 | I86: -1548.726868 | J86: 0.6177622581 | K86: 0.7786891274 | L86: 1.936699499 | N86: 2.294118777 | O86: 21.85236126 | P86: 0 | R86: -3097.453736 | S86: 0 | U86: 0 | V86: 0 | W86: 0 | X86: G1 | Y86: 7 | Z86: LOCAL | AA86: GOVERNANCE
D87: NATIONAL | E87: 8 | F87: G2 | I87: -2358.989224 | J87: 0.9307803875 | K87: 0.9159154104 | L87: 2.729643817 | N87: 3.517021574 | O87: 33.33508372 | P87: 0 | R87: 166.6666667 | S87: -4884.645115 | U87: 0 | V87: 0 | W87: 0 | X87: G2 | Y87: 8 | Z87: NATIONAL
C89: BANKING | D89: CMRCL | E89: =1+E87 -> 9 | F89: FI | I89: -264.2562626 | J89: 0.1143233367 | K89: 0.3876161713 | L89: 0.5367780958 | N89: 0.3995509783 | O89: 2.113280795 | P89: 0 | R89: 37.75089466 | S89: 62.91815776 | U89: 111412.8138 | V89: 0 | W89: 0 | X89: FI | Y89: 9 | Z89: CMRCL | AA89: BANKING
D90: RETAIL | E90: =1+E89 -> 10 | F90: FL | I90: -252 | J90: 0.4708903394 | K90: 3.758632751 | L90: 4.247779658 | N90: 0.01792100617 | O90: 2.095428265 | P90: 0 | R90: 36 | S90: 60 | U90: 0 | V90: 106245.4634 | W90: 0 | X90: FL | Y90: 10 | Z90: RETAIL
D91: GOVT | E91: =1+E90 -> 11 | F91: FG | I91: 0 | J91: 0 | K91: 0 | L91: 0 | N91: 0 | O91: 0 | P91: 0 | R91: 0 | S91: 0 | U91: 0 | V91: 0 | W91: 0 | X91: FG | Y91: 11 | Z91: GOVT
I92: 0 | J92: I1 | K92: I2 | L92: I3 | N92: L1 | O92: L2 | P92: L3 | R92: G1 | S92: G2 | U92: F1 | V92: F2 | W92: F2
I93: 0 | J93: 1 | K93: 2 | L93: 3 | N93: 4 | O93: 5 | P93: 6 | R93: 7 | S93: 8 | U93: 9 | V93: 10 | W93: 11
I94: VALUE | J94: CAPITAL | K94: GENERAL | L94: NON_DUR | N94: BOURGS | O94: PRLTRT | P94: DPNDNT | R94: LOCAL | S94: NATIONAL | U94: CMRCL | V94: RETAIL | W94: GOVT | Z94: g
N95: 4 | O95: 5 | P95: 6 | U95: 9 | V95: 10 | W95: 11
N96: L1 | O96: L2 | P96: L3 | U96: F1 | V96: F2 | W96: F2
N97: -840.9275326 | O97: -7321.084177 | P97: -100 | U97: 6 | V97: 6 | W97: 0 | X97: < Term
U98: F1 | V98: F2 | W98: F2
U99: 9 | V99: 10 | W99: 11
U100: COMMERCIAL | V100: RETAIL | W100: GOVT
U101: 9 | V101: 10 | W101: 11
U102: F1 | V102: F2 | W102: F2
U103: 0 | V103: 0 | W103: 0 | Z103: k
U105: 0 | V105: 0 | W105: 0 | X105: 0 | Y105: 0
U106: 158187.2942 | V106: 0 | W106: 0 | X106: I1 | Y106: 1 | Z106: CAPITAL | AA106: INDUSTRIES
U107: 138184.2276 | V107: 0 | W107: 0 | X107: I2 | Y107: 2 | Z107: GENERAL
U108: 119753.8602 | V108: 0 | W108: 0 | X108: I3 | Y108: 3 | Z108: NON_DUR
U110: 0 | V110: 0 | W110: 0 | X110: L1 | Y110: 4 | Z110: BOURGS | AA110: HOUSEHOLDS
U111: 0 | V111: 396825.3968 | W111: 0 | X111: L2 | Y111: 5 | Z111: PRLTRT
U112: 0 | V112: 0 | W112: 0 | X112: L3 | Y112: 6 | Z112: DPNDNT
U114: 0 | V114: 0 | W114: 0 | X114: G1 | Y114: 7 | Z114: LOCAL | AA114: GOVERNANCE
U115: 0 | V115: 0 | W115: 0 | X115: G2 | Y115: 8 | Z115: NATIONAL
U117: -416125.382 | V117: 0 | W117: 0 | X117: FI | Y117: 9 | Z117: CMRCL | AA117: BANKING
U118: 0 | V118: -396825.3968 | W118: 0 | X118: FL | Y118: 10 | Z118: RETAIL
U119: 0 | V119: 0 | W119: 0 | X119: FG | Y119: 11 | Z119: GOVT
U120: FI | V120: FL | W120: FG
U121: 9 | V121: 10 | W121: 11
U122: COMMERCIAL | V122: RETAIL | W122: GOVT | Z122: k

Sheet Boundary
C4: Boundary
C5: Conditions >
I6: INDUSTRIES | M6: HOUSEHOLDS
I8: VALUE | J8: CAPITAL | K8: GENERAL | L8: NON_DUR | N8: BOURGS | O8: PRLTRT | P8: DPNDNT
I9: 0 | J9: =1+I9 -> 1 | K9: =1+J9 -> 2 | L9: =1+K9 -> 3 | N9: =1+L9 -> 4 | O9: =1+N9 -> 5 | P9: =1+O9 -> 6
I10: 0 | J10: I1 | K10: I2 | L10: I3 | N10: L1 | O10: L2 | P10: L3
G11: U > | U11: Z | W11: t
BA12: 0 | BB12: 0
E13: 0 | F13: 0 | X13: 0 | Y13: 0 | AY13: INDUSTRIES | AZ13: CAPITAL | BA13: =1+BA12 -> 1 | BB13: I1
C14: INDUSTRIES | D14: CAPITAL | E14: =1+E13 -> 1 | F14: I1 | J14: 984.6028971 | K14: 8511.048007 | L14: 42087.23884 | N14: 1412.31492 | O14: 75957.22481 | U14: 1114.602897 | X14: I1 | Y14: =1+Y13 -> 1 | Z14: CAPITAL | AA14: INDUSTRIES | AZ14: GENERAL | BA14: =1+BA13 -> 2 | BB14: I2
D15: GENERAL | E15: =1+E14 -> 2 | F15: I2 | J15: 858.4507575 | K15: 7485.018713 | L15: 36643.44121 | N15: 1217.167443 | O15: 66061.09317 | U15: 8335.018713 | X15: I2 | Y15: =1+Y14 -> 2 | Z15: GENERAL | AZ15: NON_DUR | BA15: =1+BA14 -> 3 | BB15: I3
D16: NON_DUR | E16: =1+E15 -> 3 | F16: I3 | J16: 738.6397375 | K16: 6363.432193 | L16: 31567.68255 | N16: 1050.971725 | O16: 56643.43297 | U16: 35267.68255 | X16: I3 | Y16: =1+Y15 -> 3 | Z16: NON_DUR
AY17: HOUSEHOLDS | AZ17: BOURGS | BA17: =1+BA15 -> 4 | BB17: L1
C18: HOUSEHOLDS | D18: BOURGS | E18: =1+E16 -> 4 | F18: L1 | J18: 19.46675055 | K18: 135.4401805 | L18: 796.1502456 | O18: 3000.796579 | W18: 876 | X18: L1 | Y18: =1+Y16 -> 4 | Z18: BOURGS | AA18: HOUSEHOLDS | AZ18: PRLTRT | BA18: =1+BA17 -> 5 | BB18: L2
D19: PRLTRT | E19: =1+E18 -> 5 | F19: L2 | J19: 8.6649777 | K19: 25.92347953 | L19: 261.4981457 | N19: 8.822458794 | W19: 8766 | X19: L2 | Y19: =1+Y18 -> 5 | Z19: PRLTRT | AZ19: DPNDNT | BA19: =1+BA18 -> 6 | BB19: L3
D20: DPNDNT | E20: =1+E19 -> 6 | F20: L3 | J20: 0.05676079413 | K20: -4.359788385 | L20: -8.077746956 | N20: -0.7366905436 | O20: -5.926110968 | W20: 100 | X20: L3 | Y20: =1+Y19 -> 6 | Z20: DPNDNT
AY21: GOVERNANCE | AZ21: LOCAL | BA21: =1+BA19 -> 7 | BB21: G1
C22: GOVERNANCE | D22: LOCAL | E22: =1+E20 -> 7 | F22: G1 | J22: -0.04464959296 | K22: 0.4291353939 | L22: 0.1364028522 | N22: -6.683759665 | O22: -54.94209311 | X22: G1 | Y22: =1+Y20 -> 7 | Z22: LOCAL | AA22: GOVERNANCE | AZ22: NATIONAL | BA22: =1+BA21 -> 8 | BB22: G2
D23: NATIONAL | E23: =1+E22 -> 8 | F23: G2 | J23: -0.01515824886 | K23: 1.351353454 | L23: 2.973548797 | N23: -10.17826882 | O23: -80.07931206 | X23: G2 | Y23: =1+Y22 -> 8 | Z23: NATIONAL
AY24: BANKING | AZ24: CMRCL | BA24: =1+BA22 -> 9 | BB24: FI
C25: BANKING | D25: CMRCL | E25: =1+E23 -> 9 | F25: FI | J25: -0.00436369798 | K25: -0.1306186401 | L25: -0.345054324 | N25: -1.156396091 | O25: -4.08121429 | X25: FI | Y25: 9 | Z25: CMRCL | AA25: BANKING | AZ25: RETAIL | BA25: =1+BA24 -> 10 | BB25: FL
D26: RETAIL | E26: =1+E25 -> 10 | F26: FL | J26: -0.06834267666 | K26: -3.132527532 | L26: -9.660825363 | N26: 0.04918439326 | O26: -0.7837461873 | X26: FL | Y26: 10 | Z26: RETAIL | AZ26: GOVT | BA26: =1+BA25 -> 11 | BB26: FG
D27: GOVT | E27: =1+E26 -> 11 | F27: FG | X27: FG | Y27: 11 | Z27: GOVT
I28: 0 | J28: I1 | K28: I2 | L28: I3 | N28: L1 | O28: L2 | P28: L3
I29: 0 | J29: 1 | K29: 2 | L29: 3 | N29: 4 | O29: 5 | P29: 6
I30: VALUE | J30: CAPITAL | K30: GENERAL | L30: NON_DUR | N30: BOURGS | O30: PRLTRT | P30: DPNDNT | R30: LOCAL | S30: NATIONAL
I31: 0 | J31: 1 | K31: 2 | L31: 3 | N31: 4 | O31: 5 | P31: 6 | R31: 7 | S31: 8
I32: 0 | J32: I1 | K32: I2 | L32: I3 | N32: L1 | O32: L2 | P32: L3 | R32: G1 | S32: G2
G33: V > | I33: 1 | J33: 0.1 | K33: 0.3333333333 | L33: 1 | N33: 1 | O33: 1 | P33: 1 | R33: 1 | S33: 1 | W33: -271197.0825 | X33: < Y00
I34: 0 | J34: I1 | K34: I2 | L34: I3 | N34: L1 | O34: L2 | P34: L3 | R34: G1 | S34: G2
I35: 0 | J35: 1 | K35: 2 | L35: 3 | N35: 4 | O35: 5 | P35: 6 | R35: 7 | S35: 8
C36: State | I36: VALUE | J36: CAPITAL | K36: GENERAL | L36: NON_DUR | N36: BOURGS | O36: PRLTRT | P36: DPNDNT | R36: LOCAL | S36: NATIONAL | U36: CMRCL | V36: RETAIL | W36: GOVT
C37: Variables > | I37: 0 | J37: 1 | K37: 2 | L37: 3 | N37: 4 | O37: 5 | P37: 6 | R37: 7 | S37: 8 | U37: 9 | V37: 10 | W37: 11
I38: 0 | J38: I1 | K38: I2 | L38: I3 | N38: L1 | O38: L2 | P38: L3 | R38: G1 | S38: G2 | U38: FI | V38: FL | W38: FG
G39: A > | I39: 0 | J39: 0 | K39: 0 | L39: 0 | N39: 0 | O39: 0 | P39: 0 | R39: 0 | S39: 0 | U39: 0 | V39: 0 | W39: 0 | Z39: g
E41: 0 | F41: 0 | I41: 90399.02751 | J41: -333.0809951 | K41: -749.4170405 | L41: -1065.819532 | N41: -292 | O41: -2922 | P41: -33.33333333 | R41: 0 | S41: 0 | U41: 0 | V41: 0 | W41: 0 | X41: 0 | Y41: 0
C42: INDUSTRIES | D42: CAPITAL | E42: 1 | F42: I1 | I42: -23817.10493 | J42: 100.2514369 | K42: 200.6739111 | L42: 267.81408 | N42: 6.654394078 | O42: 192.8546809 | P42: 0 | R42: 170.8422778 | S42: 284.7371296 | U42: 0 | V42: 0 | W42: 0 | X42: I1 | Y42: 1 | Z42: CAPITAL | AA42: INDUSTRIES
D43: GENERAL | E43: 2 | F43: I2 | I43: -20805.20533 | J43: 83.55074226 | K43: 100.5829594 | L43: 234.3261571 | N43: 9.989104449 | O43: 193.7671289 | P43: 0 | R43: 149.2389658 | S43: 248.7316097 | U43: 0 | V43: 0 | W43: 0 | X43: I2 | Y43: 2 | Z43: GENERAL
D44: NON_DUR | E44: 3 | F44: I3 | I44: -18029.93765 | J44: 66.85206737 | K44: 150.497256 | L44: 167.5138009 | N44: 6.657129189 | O44: 194.638005 | P44: 0 | R44: 129.334169 | S44: 215.5569483 | U44: 0 | V44: 0 | W44: 0 | X44: I3 | Y44: 3 | Z44: NON_DUR
C46: HOUSEHOLDS | D46: BOURGS | E46: 4 | F46: L1 | I46: -19144.0156 | J46: 76.47124447 | K46: 228.6629714 | L46: 332.1498007 | N46: 260.5245982 | O46: 65.99583619 | P46: 0 | R46: 2331.250746 | S46: 3885.41791 | U46: -111152.1516 | V46: -106191.4484 | W46: 0 | X46: L1 | Y46: 4 | Z46: BOURGS | AA46: HOUSEHOLDS
D47: PRLTRT | E47: 5 | F47: L2 | I47: -3997.058888 | J47: 4.401250411 | K47: 59.80752915 | L47: 53.52797724 | N47: 1.757473066 | O47: 2216.415259 | P47: 0 | R47: 486.6807256 | S47: 811.1345427 | U47: -11552.45205 | V47: 0 | W47: 0 | X47: L2 | Y47: 5 | Z47: PRLTRT
D48: DPNDNT | E48: 6 | F48: L3 | I48: -503.4627262 | J48: 0.3110282881 | K48: 5.647932284 | L48: 4.806431827 | N48: 0.3161527495 | O48: 5.747405076 | P48: 33.33333333 | R48: -410.3107098 | S48: -683.8511829 | U48: 0 | V48: 0 | W48: 0 | X48: L3 | Y48: 6 | Z48: DPNDNT
C50: GOVERNANCE | D50: LOCAL | E50: 7 | F50: G1 | I50: -1425.158866 | J50: 0.2732000604 | K50: -0.1096079314 | L50: 0.4785576276 | N50: 2.245419025 | O50: 19.24912193 | P50: 0 | R50: -3097.453736 | S50: 0 | U50: 0 | V50: 0 | W50: 0 | X50: G1 | Y50: 7 | Z50: LOCAL | AA50: GOVERNANCE
D51: NATIONAL | E51: 8 | F51: G2 | I51: -2170.771454 | J51: 0.4059567561 | K51: -0.4371015615 | L51: 0.5086656032 | N51: 3.442841749 | O51: 29.36949171 | P51: 0 | R51: 166.6666667 | S51: -4884.645115 | U51: 0 | V51: 0 | W51: 0 | X51: G2 | Y51: 8 | Z51: NATIONAL
C53: BANKING | D53: CMRCL | E53: =1+E51 -> 9 | F53: FI | I53: -273.5603944 | J53: 0.1356861836 | K53: 0.4426408566 | L53: 0.6269901278 | N53: 0.4025619984 | O53: 2.273987421 | P53: 0 | R53: 37.75089466 | S53: 62.91815776 | U53: 122704.6036 | V53: 0 | W53: 0 | X53: FI | Y53: 9 | Z53: CMRCL | AA53: BANKING
D54: RETAIL | E54: =1+E53 -> 10 | F54: FL | I54: -232.7516652 | J54: 0.4170614754 | K54: 3.620090771 | L54: 4.020434588 | N54: 0.01032547934 | O54: 1.689084205 | P54: 0 | R54: 36 | S54: 60 | U54: 0 | V54: 106191.4484 | W54: 0 | X54: FL | Y54: 10 | Z54: RETAIL
D55: GOVT | E55: =1+E54 -> 11 | F55: FG | I55: 0 | J55: 0 | K55: 0 | L55: 0 | N55: 0 | O55: 0 | P55: 0 | R55: 0 | S55: 0 | U55: 0 | V55: 0 | W55: 0 | X55: FG | Y55: 11 | Z55: GOVT
G57: B > | I57: 0 | J57: 0 | K57: 0 | L57: 0 | N57: 0 | O57: 0 | P57: 0 | R57: 0 | S57: 0 | U57: 0 | V57: 0 | W57: 0 | Z57: g
E59: 0 | F59: 0 | I59: 90399.02751 | J59: -333.0780092 | K59: -749.4167593 | L59: -1065.819441 | N59: -292 | O59: -2922 | P59: -33.33333333 | R59: 0 | S59: 0 | U59: 0 | V59: 0 | W59: 0 | X59: 0 | Y59: 0
C60: INDUSTRIES | D60: CAPITAL | E60: 1 | F60: I1 | I60: -23817.09462 | J60: 100.250469 | K60: 200.6742656 | L60: 267.814252 | N60: 6.654400136 | O60: 192.8547828 | P60: 0 | R60: 170.8422778 | S60: 284.7371296 | U60: 0 | V60: 0 | W60: 0 | X60: I1 | Y60: 1 | Z60: CAPITAL | AA60: INDUSTRIES
D61: GENERAL | E61: 2 | F61: I2 | I61: -20805.19506 | J61: 83.54988684 | K61: 100.5832388 | L61: 234.3262931 | N61: 9.989109266 | O61: 193.7671931 | P61: 0 | R61: 149.2389658 | S61: 248.7316097 | U61: 0 | V61: 0 | W61: 0 | X61: I2 | Y61: 2 | Z61: GENERAL
D62: NON_DUR | E62: 3 | F62: I3 | I62: -18029.92637 | J62: 66.85156786 | K62: 150.4974277 | L62: 167.5138919 | N62: 6.657132463 | O62: 194.6380141 | P62: 0 | R62: 129.334169 | S62: 215.5569483 | U62: 0 | V62: 0 | W62: 0 | X62: I3 | Y62: 3 | Z62: NON_DUR
C64: HOUSEHOLDS | D64: BOURGS | E64: 4 | F64: L1 | I64: -19144.00159 | J64: 76.47111171 | K64: 228.6630833 | L64: 332.149853 | N64: 260.524564 | O64: 65.99592094 | P64: 0 | R64: 2331.250746 | S64: 3885.41791 | U64: -111144.4041 | V64: -106245.4634 | W64: 0 | X64: L1 | Y64: 4 | Z64: BOURGS | AA64: HOUSEHOLDS
D65: PRLTRT | E65: 5 | F65: L2 | I65: -3997.054912 | J65: 4.40159194 | K65: 59.80751953 | L65: 53.52797337 | N65: 1.75747294 | O65: 2216.413922 | P65: 0 | R65: 486.6807256 | S65: 811.1345427 | U65: -11560.23972 | V65: 0 | W65: 0 | X65: L2 | Y65: 5 | Z65: PRLTRT
D66: DPNDNT | E66: 6 | F66: L3 | I66: -503.4687701 | J66: 0.3113703324 | K66: 5.648048745 | L66: 4.806504414 | N66: 0.3161551735 | O66: 5.747534573 | P66: 33.33333333 | R66: -410.3107098 | S66: -683.8511829 | U66: 0 | V66: 0 | W66: 0 | X66: L3 | Y66: 6 | Z66: DPNDNT
C68: GOVERNANCE | D68: LOCAL | E68: 7 | F68: G1 | I68: -1425.174601 | J68: 0.2741564886 | K68: -0.1093075748 | L68: 0.4787477769 | N68: 2.245425375 | O68: 19.24946124 | P68: 0 | R68: -3097.453736 | S68: 0 | U68: 0 | V68: 0 | W68: 0 | X68: G1 | Y68: 7 | Z68: LOCAL | AA68: GOVERNANCE
D69: NATIONAL | E69: 8 | F69: G2 | I69: -2170.795398 | J69: 0.4074132989 | K69: -0.4366445581 | L69: 0.5089549791 | N69: 3.442851412 | O69: 29.37000806 | P69: 0 | R69: 166.6666667 | S69: -4884.645115 | U69: 0 | V69: 0 | W69: 0 | X69: G2 | Y69: 8 | Z69: NATIONAL
C71: BANKING | D71: CMRCL | E71: =1+E69 -> 9 | F71: FI | I71: -273.564977 | J71: 0.1356004885 | K71: 0.4427073468 | L71: 0.6270440536 | N71: 0.4025637992 | O71: 2.274083641 | P71: 0 | R71: 37.75089466 | S71: 62.91815776 | U71: 122704.6438 | V71: 0 | W71: 0 | X71: FI | Y71: 9 | Z71: CMRCL | AA71: BANKING
D72: RETAIL | E72: =1+E71 -> 10 | F72: FL | I72: -232.7512112 | J72: 0.4170420034 | K72: 3.620068497 | L72: 4.020431914 | N72: 0.01032539006 | O72: 1.689079421 | P72: 0 | R72: 36 | S72: 60 | U72: 0 | V72: 106245.4634 | W72: 0 | X72: FL | Y72: 10 | Z72: RETAIL
D73: GOVT | E73: =1+E72 -> 11 | F73: FG | I73: 0 | J73: 0 | K73: 0 | L73: 0 | N73: 0 | O73: 0 | P73: 0 | R73: 0 | S73: 0 | U73: 0 | V73: 0 | W73: 0 | X73: FG | Y73: 11 | Z73: GOVT
G75: C > | I75: 0 | J75: 0 | K75: 0 | L75: 0 | N75: 0 | O75: 0 | P75: 0 | R75: 0 | S75: 0 | U75: 0 | V75: 0 | W75: 0 | Z75: g
E77: 0 | F77: 0 | I77: 90399.02751 | J77: -333.0730461 | K77: -749.4164104 | L77: -1065.819345 | N77: -292 | O77: -2922 | P77: -33.33333333 | R77: 0 | S77: 0 | U77: 0 | V77: 0 | W77: 0 | X77: 0 | Y77: 0
C78: INDUSTRIES | D78: CAPITAL | E78: 1 | F78: I1 | I78: -23817.08533 | J78: 100.2464694 | K78: 200.6746876 | L78: 267.8144356 | N78: 6.654407891 | O78: 192.8548547 | P78: 0 | R78: 170.8422778 | S78: 284.7371296 | U78: 0 | V78: 0 | W78: 0 | X78: I1 | Y78: 1 | Z78: CAPITAL | AA78: INDUSTRIES
D79: GENERAL | E79: 2 | F79: I2 | I79: -20805.18559 | J79: 83.54654512 | K79: 100.5835774 | L79: 234.3264383 | N79: 9.98911553 | O79: 193.7672296 | P79: 0 | R79: 149.2389658 | S79: 248.7316097 | U79: 0 | V79: 0 | W79: 0 | X79: I2 | Y79: 2 | Z79: GENERAL
D80: NON_DUR | E80: 3 | F80: I3 | I80: -18029.91557 | J80: 66.84936563 | K80: 150.4976307 | L80: 167.5139884 | N80: 6.6571369 | O80: 194.6379951 | P80: 0 | R80: 129.334169 | S80: 215.5569483 | U80: 0 | V80: 0 | W80: 0 | X80: I3 | Y80: 3 | Z80: NON_DUR
C82: HOUSEHOLDS | D82: BOURGS | E82: 4 | F82: L1 | I82: -19143.98756 | J82: 76.4702602 | K82: 228.6632141 | L82: 332.1499068 | N82: 260.5245264 | O82: 65.99600624 | P82: 0 | R82: 2331.250746 | S82: 3885.41791 | U82: -111128.0828 | V82: -106245.4634 | W82: 0 | X82: L1 | Y82: 4 | Z82: BOURGS | AA82: HOUSEHOLDS
D83: PRLTRT | E83: 5 | F83: L2 | I83: -3997.050903 | J83: 4.402169006 | K83: 59.80750815 | L83: 53.52796927 | N83: 1.757472819 | O83: 2216.412715 | P83: 0 | R83: 486.6807256 | S83: 811.1345427 | U83: -11566.9928 | V83: 0 | W83: 0 | X83: L2 | Y83: 5 | Z83: PRLTRT
D84: DPNDNT | E84: 6 | F84: L3 | I84: -503.4746135 | J84: 0.3123637941 | K84: 5.648152654 | L84: 4.806574799 | N84: 0.3161575241 | O84: 5.747660133 | P84: 33.33333333 | R84: -410.3107098 | S84: -683.8511829 | U84: 0 | V84: 0 | W84: 0 | X84: L3 | Y84: 6 | Z84: DPNDNT
C86: GOVERNANCE | D86: LOCAL | E86: 7 | F86: G1 | I86: -1425.189748 | J86: 0.2769997953 | K86: -0.1090425995 | L86: 0.4789314793 | N86: 2.245431509 | O86: 19.24978903 | P86: 0 | R86: -3097.453736 | S86: 0 | U86: 0 | V86: 0 | W86: 0 | X86: G1 | Y86: 7 | Z86: LOCAL | AA86: GOVERNANCE
D87: NATIONAL | E87: 8 | F87: G2 | I87: -2170.818445 | J87: 0.411744485 | K87: -0.4362414467 | L87: 0.5092345317 | N87: 3.442860748 | O87: 29.37050688 | P87: 0 | R87: 166.6666667 | S87: -4884.645115 | U87: 0 | V87: 0 | W87: 0 | X87: G2 | Y87: 8 | Z87: NATIONAL
C89: BANKING | D89: CMRCL | E89: =1+E87 -> 9 | F89: FI | I89: -273.5691923 | J89: 0.135382515 | K89: 0.4427476638 | L89: 0.6270939059 | N89: 0.402565464 | O89: 2.27417259 | P89: 0 | R89: 37.75089466 | S89: 62.91815776 | U89: 122695.0756 | V89: 0 | W89: 0 | X89: FI | Y89: 9 | Z89: CMRCL | AA89: BANKING
D90: RETAIL | E90: =1+E89 -> 10 | F90: FL | I90: -232.7505609 | J90: 0.4172748734 | K90: 3.620031716 | L90: 4.020427065 | N90: 0.01032522821 | O90: 1.689070754 | P90: 0 | R90: 36 | S90: 60 | U90: 0 | V90: 106245.4634 | W90: 0 | X90: FL | Y90: 10 | Z90: RETAIL
D91: GOVT | E91: =1+E90 -> 11 | F91: FG | I91: 0 | J91: 0 | K91: 0 | L91: 0 | N91: 0 | O91: 0 | P91: 0 | R91: 0 | S91: 0 | U91: 0 | V91: 0 | W91: 0 | X91: FG | Y91: 11 | Z91: GOVT
I92: 0 | J92: I1 | K92: I2 | L92: I3 | N92: L1 | O92: L2 | P92: L3 | R92: G1 | S92: G2 | U92: F1 | V92: F2 | W92: F2
I93: 0 | J93: 1 | K93: 2 | L93: 3 | N93: 4 | O93: 5 | P93: 6 | R93: 7 | S93: 8 | U93: 9 | V93: 10 | W93: 11
I94: VALUE | J94: CAPITAL | K94: GENERAL | L94: NON_DUR | N94: BOURGS | O94: PRLTRT | P94: DPNDNT | R94: LOCAL | S94: NATIONAL | U94: CMRCL | V94: RETAIL | W94: GOVT
N95: 4 | O95: 5 | P95: 6 | U95: 9 | V95: 10 | W95: 11
N96: L1 | O96: L2 | P96: L3 | U96: F1 | V96: F2 | W96: F2
N97: -841.4259563 | O97: -7401.922549 | P97: -100 | U97: 6.176248033 | V97: 6.174163207 | W97: 0 | X97: < Term
U98: F1 | V98: F2 | W98: F2
U99: 9 | V99: 10 | W99: 11
U100: COMMERCIAL | V100: RETAIL | W100: GOVT
U101: 9 | V101: 10 | W101: 11
U102: F1 | V102: F2 | W102: F2
U103: 0 | V103: 0 | W103: 0 | Z103: k
U105: -1064.688275 | V105: 2.037268132e-12 | W105: 0 | X105: 0 | Y105: 0
U106: 175394.4416 | V106: 0 | W106: 0 | X106: I1 | Y106: 1 | Z106: CAPITAL | AA106: INDUSTRIES
U107: 153204.0827 | V107: 0 | W107: 0 | X107: I2 | Y107: 2 | Z107: GENERAL
U108: 132766.161 | V108: 0 | W108: 0 | X108: I3 | Y108: 3 | Z108: NON_DUR
U110: 0 | V110: 0 | W110: 0 | X110: L1 | Y110: 4 | Z110: BOURGS | AA110: HOUSEHOLDS
U111: 0 | V111: 398374.9679 | W111: 0 | X111: L2 | Y111: 5 | Z111: PRLTRT
U112: 0 | V112: -23.22383318 | W112: 0 | X112: L3 | Y112: 6 | Z112: DPNDNT
U114: -59.40055903 | V114: 0 | W114: 0 | X114: G1 | Y114: 7 | Z114: LOCAL | AA114: GOVERNANCE
U115: -90.37099968 | V115: 0 | W115: 0 | X115: G2 | Y115: 8 | Z115: NATIONAL
U117: -460150.2255 | V117: 0 | W117: 0 | X117: FI | Y117: 9 | Z117: CMRCL | AA117: BANKING
U118: 0 | V118: -398351.7441 | W118: 0 | X118: FL | Y118: 10 | Z118: RETAIL
U119: 0 | V119: 0 | W119: 0 | X119: FG | Y119: 11 | Z119: GOVT
U120: FI | V120: FL | W120: FG
U121: 9 | V121: 10 | W121: 11
U122: COMMERCIAL | V122: RETAIL | W122: GOVT | Z122: k

Sheet Utility
J6: INDUSTRIES | N6: HOUSEHOLDS
C8: Utility | I8: VALUE | J8: CAPITAL | K8: GENERAL | L8: NON_DUR | N8: BOURGS | O8: PRLTRT | P8: DPNDNT
C9: Tradeoffs > | G9: U > | I9: 0 | J9: 1 | K9: 2 | L9: 3 | N9: 4 | O9: 5 | P9: 6
I10: 0 | J10: I1 | K10: I2 | L10: I3 | N10: L1 | O10: L2 | P10: L3
I11: =PSIU!I11 -> 12203433.14 | J11: =-SUM(J13:J27) -> -3724.352264 | K11: =-SUM(K13:K27) -> -30850.03884 | L11: =-SUM(L13:L27) -> -146608.7199 | N11: =-SUM(N13:N27) -> -3705.14466 | O11: =-SUM(O13:O27) -> -202880.8125 | P11: =-SUM(P13:P27) -> 0
G12: u | K12: Z | O12: t | U12: Z | W12: t
E13: 0 | F13: 0 | G13: =Zeta!G13 -> -26538728.31 | I13: =PSIU!I13 -> -2245306.224 | J13: =U14 -> 1114.602897 | K13: =U15 -> 8335.018713 | L13: =U16 -> 35267.68255 | N13: =W18 -> 876 | O13: =W19 -> 8766 | P13: =W20 -> 100 | Q13: 0 | R13: 0 | X13: 0 | Y13: 0
C14: INDUSTRIES | D14: CAPITAL | E14: 1 | F14: I1 | G14: =Zeta!G14 -> 10044406.72 | I14: =PSIU!I14 -> -3773950.01 | J14: =Boundary!J14 -> 984.6028971 | K14: =Boundary!K14 -> 8511.048007 | L14: =Boundary!L14 -> 42087.23884 | N14: =Boundary!N14 -> 1412.31492 | O14: =Boundary!O14 -> 75957.22481 | P14: =Boundary!P14 -> 0 | Q14: 1 | R14: I1 | S14: CAPITAL | U14: =Boundary!U14 -> 1114.602897 | X14: 1 | Y14: I1 | Z14: CAPITAL | AA14: INDUSTRIES
D15: GENERAL | E15: 2 | F15: I2 | G15: =Zeta!G15 -> 8746040.755 | I15: =PSIU!I15 -> -3285910.129 | J15: =Boundary!J15 -> 858.4507575 | K15: =Boundary!K15 -> 7485.018713 | L15: =Boundary!L15 -> 36643.44121 | N15: =Boundary!N15 -> 1217.167443 | O15: =Boundary!O15 -> 66061.09317 | P15: =Boundary!P15 -> 0 | Q15: 2 | R15: I2 | S15: GENERAL | U15: =Boundary!U15 -> 8335.018713 | X15: 2 | Y15: I2 | Z15: GENERAL
D16: NON_DUR | E16: 3 | F16: I3 | G16: =Zeta!G16 -> 7510489.263 | I16: =PSIU!I16 -> -2821194.014 | J16: =Boundary!J16 -> 738.6397375 | K16: =Boundary!K16 -> 6363.432193 | L16: =Boundary!L16 -> 31567.68255 | N16: =Boundary!N16 -> 1050.971725 | O16: =Boundary!O16 -> 56643.43297 | P16: =Boundary!P16 -> 0 | Q16: 3 | R16: I3 | S16: NON_DUR | U16: =Boundary!U16 -> 35267.68255 | X16: 3 | Y16: I3 | Z16: NON_DUR
M17: Z
C18: HOUSEHOLDS | D18: BOURGS | E18: 4 | F18: L1 | G18: =Zeta!G18 -> 195084.2107 | I18: =PSIU!I18 -> -71141.54527 | J18: =Boundary!J18 -> 19.46675055 | K18: =Boundary!K18 -> 135.4401805 | L18: =Boundary!L18 -> 796.1502456 | N18: =U18 -> -841.4259563 | O18: =Boundary!O18 -> 3000.796579 | P18: =Boundary!P18 -> 0 | Q18: 4 | R18: L1 | S18: BOURGS | U18: =Boundary!N33*Boundary!N97 -> -841.4259563 | W18: =Boundary!W18 -> 876 | X18: 4 | Y18: L1 | Z18: BOURGS | AA18: HOUSEHOLDS
D19: PRLTRT | E19: 5 | F19: L2 | G19: =Zeta!G19 -> 69567.65479 | I19: =PSIU!I19 -> -18282.51694 | J19: =Boundary!J19 -> 8.6649777 | K19: =Boundary!K19 -> 25.92347953 | L19: =Boundary!L19 -> 261.4981457 | N19: =Boundary!N19 -> 8.822458794 | O19: =U19 -> -7401.922549 | P19: =Boundary!P19 -> 0 | Q19: 5 | R19: L2 | S19: PRLTRT | U19: =Boundary!O33*Boundary!O97 -> -7401.922549 | W19: =Boundary!W19 -> 8766 | X19: 5 | Y19: L2 | Z19: PRLTRT
D20: DPNDNT | E20: 6 | F20: L3 | G20: =Zeta!G20 -> -2048.198458 | I20: =PSIU!I20 -> 941.833107 | J20: =Boundary!J20 -> 0.05676079413 | K20: =Boundary!K20 -> -4.359788385 | L20: =Boundary!L20 -> -8.077746956 | N20: =Boundary!N20 -> -0.7366905436 | O20: =Boundary!O20 -> -5.926110968 | P20: =U20 -> -100 | Q20: 6 | R20: L3 | S20: DPNDNT | U20: =Boundary!P33*Boundary!P97 -> -100 | W20: =Boundary!W20 -> 100 | X20: 6 | Y20: L3 | Z20: DPNDNT
Q21: Z
C22: GOVERNANCE | D22: LOCAL | E22: 7 | F22: G1 | G22: =Zeta!G22 -> -8991.350004 | I22: =PSIU!I22 -> 4134.536415 | J22: =Boundary!J22 -> -0.04464959296 | K22: =Boundary!K22 -> 0.4291353939 | L22: =Boundary!L22 -> 0.1364028522 | N22: =Boundary!N22 -> -6.683759665 | O22: =Boundary!O22 -> -54.94209311 | P22: =Boundary!P22 -> 0 | Q22: 7 | R22: G1 | S22: LOCAL | X22: 7 | Y22: G1 | Z22: LOCAL | AA22: GOVERNANCE
D23: NATIONAL | E23: 8 | F23: G2 | G23: =Zeta!G23 -> -13285.01258 | I23: =PSIU!I23 -> 6108.912263 | J23: =Boundary!J23 -> -0.01515824886 | K23: =Boundary!K23 -> 1.351353454 | L23: =Boundary!L23 -> 2.973548797 | N23: =Boundary!N23 -> -10.17826882 | O23: =Boundary!O23 -> -80.07931206 | P23: =Boundary!P23 -> 0 | Q23: 8 | R23: G2 | S23: NATIONAL | X23: 8 | Y23: G2 | Z23: NATIONAL
C25: BANKING | D25: CMRCL | E25: =1+E23 -> 9 | F25: FI | G25: =Zeta!G25 -> -1485.268714 | I25: =PSIU!I25 -> 682.9783716 | J25: -0.00436369798 | K25: -0.1306186401 | L25: -0.345054324 | N25: -1.156396091 | O25: -4.08121429 | P25: =Boundary!P25 -> 0 | Q25: 9 | R25: FI | S25: CMRCL | X25: 9 | Y25: FI | Z25: CMRCL | AA25: BANKING
D26: RETAIL | E26: =1+E25 -> 10 | F26: FL | G26: =Zeta!G26 -> -1050.461689 | I26: =PSIU!I26 -> 483.0389322 | J26: -0.06834267666 | K26: -3.132527532 | L26: -9.660825363 | N26: 0.04918439326 | O26: -0.7837461873 | P26: =Boundary!P26 -> 0 | Q26: 10 | R26: FL | S26: RETAIL | X26: 10 | Y26: FL | Z26: RETAIL
D27: GOVT | E27: =1+E26 -> 11 | F27: FG | G27: =Zeta!G27 -> 0 | I27: 0 | J27: 0 | K27: 0 | L27: 0 | N27: 0 | O27: 0 | P27: 0 | Q27: 11 | R27: FG | S27: GOVT | X27: 11 | Y27: FG | Z27: GOVT
I28: 0 | J28: I1 | K28: I2 | L28: I3 | N28: L1 | O28: L2 | P28: L3
I29: 0 | J29: 1 | K29: 2 | L29: 3 | N29: 4 | O29: 5 | P29: 6
I30: VALUE | J30: CAPITAL | K30: GENERAL | L30: NON_DUR | N30: BOURGS | O30: PRLTRT | P30: DPNDNT
G31: U > | I31: 0 | J31: 1 | K31: 2 | L31: 3 | N31: 4 | O31: 5 | P31: 6
I32: 0 | J32: I1 | K32: I2 | L32: I3 | N32: L1 | O32: L2 | P32: L3
G33: =SUM(Zeta!G14:G27) -> 26538728.31 | I33: =SUM(I14:I27) -> -9958126.916 | J33: =SUM(J14:J27) -> 2609.749367 | K33: =SUM(K14:K27) -> 22515.02013 | L33: =SUM(L14:L27) -> 111341.0373 | N33: =SUM(N14:N27)-N18 -> 3670.570617 | O33: =SUM(O14:O27)-O19 -> 201516.7351 | P33: =SUM(P14:P27)-P20 -> 0
I34: 0 | J34: I1 | K34: I2 | L34: I3 | N34: L1 | O34: L2 | P34: L3
I35: 0 | J35: 1 | K35: 2 | L35: 3 | N35: 4 | O35: 5 | P35: 6
C36: Binary | I36: VALUE | J36: CAPITAL | K36: GENERAL | L36: NON_DUR | N36: BOURGS | O36: PRLTRT | P36: DPNDNT
C37: Integers > | G37: H > | I37: 0 | J37: 1 | K37: 2 | L37: 3 | N37: 4 | O37: 5 | P37: 6
I38: 0 | J38: I1 | K38: I2 | L38: I3 | N38: L1 | O38: L2 | P38: L3
G40: h
E41: 0 | F41: 0 | J41: =IF(J13<>0,1,0) -> 1 | K41: 1 | L41: 1 | N41: 0 | O41: 0 | P41: 0 | Q41: 0 | R41: 0 | T41: INDUSTRIES
C42: INDUSTRIES | D42: CAPITAL | E42: 1 | F42: I1 | G42: =J41-I42 -> 6 | I42: =-SUM(J42:P42) -> -5 | J42: 1 | K42: 1 | L42: 1 | N42: =IF(N14<>0,1,0) -> 1 | O42: 1 | P42: 0 | Q42: 1 | R42: I1 | S42: CAPITAL
D43: GENERAL | E43: 2 | F43: I2 | G43: =K41-I43 -> 6 | I43: =-SUM(J43:P43) -> -5 | J43: 1 | K43: 1 | L43: 1 | N43: 1 | O43: 1 | P43: 0 | Q43: 2 | R43: I2 | S43: GENERAL
D44: NON_DUR | E44: 3 | F44: I3 | G44: =L41-I44 -> 6 | I44: =-SUM(J44:P44) -> -5 | J44: 1 | K44: 1 | L44: 1 | N44: 1 | O44: 1 | P44: 0 | Q44: 3 | R44: I3 | S44: NON_DUR
T45: HOUSEHOLDS
C46: HOUSEHOLDS | D46: BOURGS | E46: 4 | F46: L1 | G46: =N46-I46 -> 3 | I46: =-SUM(J46:P46)+N46 -> -4 | J46: =IF(J18<>0,1,0) -> 1 | K46: 1 | L46: 1 | N46: -1 | O46: =IF(O18<>0,1,0) -> 1 | P46: =IF(P18<>0,1,0) -> 0 | Q46: 4 | R46: L1 | S46: BOURGS
D47: PRLTRT | E47: 5 | F47: L2 | G47: =O47-I47 -> 3 | I47: =-SUM(J47:P47)+O47 -> -4 | J47: 1 | K47: 1 | L47: 1 | N47: 1 | O47: -1 | P47: =IF(P19<>0,1,0) -> 0 | Q47: 5 | R47: L2 | S47: PRLTRT
D48: DPNDNT | E48: 6 | F48: L3 | G48: =P48-I48 -> 5 | I48: =-SUM(J48:P48)+P48 -> -5 | J48: 1 | K48: 1 | L48: 1 | N48: =IF(N20<>0,1,0) -> 1 | O48: =IF(O20<>0,1,0) -> 1 | P48: 0 | Q48: 6 | R48: L3 | S48: DPNDNT
T49: GOVERNANCE
C50: GOVERNANCE | D50: LOCAL | E50: 7 | F50: G1 | G50: =-I50 -> 5 | I50: =-SUM(J50:P50) -> -5 | J50: =IF(J22<>0,1,0) -> 1 | K50: 1 | L50: 1 | N50: =IF(N22<>0,1,0) -> 1 | O50: 1 | P50: 0 | Q50: 7 | R50: G1 | S50: LOCAL
D51: NATIONAL | E51: 8 | F51: G2 | G51: =-I51 -> 5 | I51: =-SUM(J51:P51) -> -5 | J51: 1 | K51: 1 | L51: 1 | N51: 1 | O51: 1 | P51: 0 | Q51: 8 | R51: G2 | S51: NATIONAL
T52: BANKING
C53: BANKING | D53: CMRCL | E53: =1+E51 -> 9 | F53: FI | G53: =-I53 -> 5 | I53: =-SUM(J53:P53) -> -5 | J53: =IF(J25<>0,1,0) -> 1 | K53: 1 | L53: 1 | N53: =IF(N25<>0,1,0) -> 1 | O53: 1 | P53: 0 | Q53: 9 | R53: FI | S53: CMRCL
D54: RETAIL | E54: =1+E53 -> 10 | F54: FL | G54: =-I54 -> 5 | I54: =-SUM(J54:P54) -> -5 | J54: 1 | K54: 1 | L54: 1 | N54: 1 | O54: 1 | P54: 0 | Q54: 10 | R54: FL | S54: RETAIL
D55: GOVT | E55: =1+E54 -> 11 | F55: FG | G55: =-I55 -> 0 | I55: =-SUM(J55:P55) -> 0 | J55: 0 | K55: 0 | L55: 0 | N55: 0 | O55: 0 | P55: 0 | Q55: 11 | R55: FG | S55: GOVT
I56: 0 | J56: I1 | K56: I2 | L56: I3 | N56: L1 | O56: L2 | P56: L3
I57: 0 | J57: 1 | K57: 2 | L57: 3 | N57: 4 | O57: 5 | P57: 6
I58: VALUE | J58: CAPITAL | K58: GENERAL | L58: NON_DUR | N58: BOURGS | O58: PRLTRT | P58: DPNDNT
J60: INDUSTRIES | N60: HOUSEHOLDS

Sheet Rates
I3: INDUSTRIES | M3: HOUSEHOLDS
D5: Markets > | H5: =-SUM(H11:H27) -> -1.921307557e-11 | I5: =-SUM(I11:I27) -> 0.02359146423 | J5: =-SUM(J11:J27) -> 0.07895550982 | K5: =-SUM(K11:K27) -> 0.1364767894 | M5: =-SUM(M11:M27) -> -1.608817246e-13 | N5: =-SUM(N11:N27) -> 2.113864639e-13 | O5: =-SUM(O11:O27) -> 0
H6: 0 | I6: I1 | J6: I2 | K6: I3 | M6: L1 | N6: L2 | O6: L3
H7: 0 | I7: 1 | J7: 2 | K7: 3 | M7: 4 | N7: 5 | O7: 6
C8: Physical State | H8: VALUE | I8: CAPITAL | J8: GENERAL | K8: NON_DUR | M8: BOURGS | N8: PRLTRT | O8: DPNDNT
C9: Variables > | H9: 0 | I9: 1 | J9: 2 | K9: 3 | M9: 4 | N9: 5 | O9: 6
H10: 0 | I10: I1 | J10: I2 | K10: I3 | M10: L1 | N10: L2 | O10: L3
H11: =Boundary!I39+Boundary!I57+Boundary!I75 -> 0 | I11: =Boundary!J39+Boundary!J57+Boundary!J75 -> 0 | J11: =Boundary!K39+Boundary!K57+Boundary!K75 -> 0 | K11: =Boundary!L39+Boundary!L57+Boundary!L75 -> 0 | M11: =Boundary!N39+Boundary!N57+Boundary!N75 -> 0 | N11: =Boundary!O39+Boundary!O57+Boundary!O75 -> 0 | O11: =Boundary!P39+Boundary!P57+Boundary!P75 -> 0
E13: 0 | F13: 0 | H13: =Boundary!I41+Boundary!I59+Boundary!I77 -> 271197.0825 | I13: =Boundary!J41+Boundary!J59+Boundary!J77 -> -999.2320504 | J13: =Boundary!K41+Boundary!K59+Boundary!K77 -> -2248.25021 | K13: =Boundary!L41+Boundary!L59+Boundary!L77 -> -3197.458319 | M13: =Boundary!N41+Boundary!N59+Boundary!N77 -> -876 | N13: =Boundary!O41+Boundary!O59+Boundary!O77 -> -8766 | O13: =Boundary!P41+Boundary!P59+Boundary!P77 -> -100 | P13: 0 | Q13: 0
C14: INDUSTRIES | D14: CAPITAL | E14: 1 | F14: I1 | H14: =Boundary!I42+Boundary!I60+Boundary!I78 -> -71451.28488 | I14: =Boundary!J42+Boundary!J60+Boundary!J78 -> 300.7483753 | J14: =Boundary!K42+Boundary!K60+Boundary!K78 -> 602.0228643 | K14: =Boundary!L42+Boundary!L60+Boundary!L78 -> 803.4427676 | M14: =Boundary!N42+Boundary!N60+Boundary!N78 -> 19.96320211 | N14: =Boundary!O42+Boundary!O60+Boundary!O78 -> 578.5643183 | O14: =Boundary!P42+Boundary!P60+Boundary!P78 -> 0 | P14: 1 | Q14: I1 | R14: CAPITAL | S14: INDUSTRIES
D15: GENERAL | E15: 2 | F15: I2 | H15: =Boundary!I43+Boundary!I61+Boundary!I79 -> -62415.58598 | I15: =Boundary!J43+Boundary!J61+Boundary!J79 -> 250.6471742 | J15: =Boundary!K43+Boundary!K61+Boundary!K79 -> 301.7497755 | K15: =Boundary!L43+Boundary!L61+Boundary!L79 -> 702.9788884 | M15: =Boundary!N43+Boundary!N61+Boundary!N79 -> 29.96732924 | N15: =Boundary!O43+Boundary!O61+Boundary!O79 -> 581.3015516 | O15: =Boundary!P43+Boundary!P61+Boundary!P79 -> 0 | P15: 2 | Q15: I2 | R15: GENERAL
D16: NON_DUR | E16: 3 | F16: I3 | H16: =Boundary!I44+Boundary!I62+Boundary!I80 -> -54089.77959 | I16: =Boundary!J44+Boundary!J62+Boundary!J80 -> 200.5530009 | J16: =Boundary!K44+Boundary!K62+Boundary!K80 -> 451.4923144 | K16: =Boundary!L44+Boundary!L62+Boundary!L80 -> 502.5416811 | M16: =Boundary!N44+Boundary!N62+Boundary!N80 -> 19.97139855 | N16: =Boundary!O44+Boundary!O62+Boundary!O80 -> 583.9140141 | O16: =Boundary!P44+Boundary!P62+Boundary!P80 -> 0 | P16: 3 | Q16: I3 | R16: NON_DUR
C18: HOUSEHOLDS | D18: BOURGS | E18: 4 | F18: L1 | H18: =Boundary!I46+Boundary!I64+Boundary!I82 -> -57432.00474 | I18: =Boundary!J46+Boundary!J64+Boundary!J82 -> 229.4126164 | J18: =Boundary!K46+Boundary!K64+Boundary!K82 -> 685.9892688 | K18: =Boundary!L46+Boundary!L64+Boundary!L82 -> 996.4495604 | M18: =Boundary!N46+Boundary!N64+Boundary!N82 -> 781.5736886 | N18: =Boundary!O46+Boundary!O64+Boundary!O82 -> 197.9877634 | O18: =Boundary!P46+Boundary!P64+Boundary!P82 -> 0 | P18: 4 | Q18: L1 | R18: BOURGS | S18: HOUSEHOLDS
D19: PRLTRT | E19: 5 | F19: L2 | H19: =Boundary!I47+Boundary!I65+Boundary!I83 -> -11991.1647 | I19: =Boundary!J47+Boundary!J65+Boundary!J83 -> 13.20501136 | J19: =Boundary!K47+Boundary!K65+Boundary!K83 -> 179.4225568 | K19: =Boundary!L47+Boundary!L65+Boundary!L83 -> 160.5839199 | M19: =Boundary!N47+Boundary!N65+Boundary!N83 -> 5.272418825 | N19: =Boundary!O47+Boundary!O65+Boundary!O83 -> 6649.241896 | O19: =Boundary!P47+Boundary!P65+Boundary!P83 -> 0 | P19: 5 | Q19: L2 | R19: PRLTRT
D20: DPNDNT | E20: 6 | F20: L3 | H20: =Boundary!I48+Boundary!I66+Boundary!I84 -> -1510.40611 | I20: =Boundary!J48+Boundary!J66+Boundary!J84 -> 0.9347624146 | J20: =Boundary!K48+Boundary!K66+Boundary!K84 -> 16.94413368 | K20: =Boundary!L48+Boundary!L66+Boundary!L84 -> 14.41951104 | M20: =Boundary!N48+Boundary!N66+Boundary!N84 -> 0.948465447 | N20: =Boundary!O48+Boundary!O66+Boundary!O84 -> 17.24259978 | O20: =Boundary!P48+Boundary!P66+Boundary!P84 -> 100 | P20: 6 | Q20: L3 | R20: DPNDNT
C22: GOVERNANCE | D22: LOCAL | E22: 7 | F22: G1 | H22: =Boundary!I50+Boundary!I68+Boundary!I86 -> -4275.523215 | I22: =Boundary!J50+Boundary!J68+Boundary!J86 -> 0.8243563443 | J22: =Boundary!K50+Boundary!K68+Boundary!K86 -> -0.3279581057 | K22: =Boundary!L50+Boundary!L68+Boundary!L86 -> 1.436236884 | M22: =Boundary!N50+Boundary!N68+Boundary!N86 -> 6.736275909 | N22: =Boundary!O50+Boundary!O68+Boundary!O86 -> 57.7483722 | O22: =Boundary!P50+Boundary!P68+Boundary!P86 -> 0 | P22: 7 | Q22: G1 | R22: LOCAL | S22: GOVERNANCE
D23: NATIONAL | E23: 8 | F23: G2 | H23: =Boundary!I51+Boundary!I69+Boundary!I87 -> -6512.385298 | I23: =Boundary!J51+Boundary!J69+Boundary!J87 -> 1.22511454 | J23: =Boundary!K51+Boundary!K69+Boundary!K87 -> -1.309987566 | K23: =Boundary!L51+Boundary!L69+Boundary!L87 -> 1.526855114 | M23: =Boundary!N51+Boundary!N69+Boundary!N87 -> 10.32855391 | N23: =Boundary!O51+Boundary!O69+Boundary!O87 -> 88.11000665 | O23: =Boundary!P51+Boundary!P69+Boundary!P87 -> 0 | P23: 8 | Q23: G2 | R23: NATIONAL
C25: BANKING | D25: CMRCL | E25: =1+E23 -> 9 | F25: FI | H25: =Boundary!I53+Boundary!I71+Boundary!I89 -> -820.6945637 | I25: =Boundary!J53+Boundary!J71+Boundary!J89 -> 0.406669187 | J25: =Boundary!K53+Boundary!K71+Boundary!K89 -> 1.328095867 | K25: =Boundary!L53+Boundary!L71+Boundary!L89 -> 1.881128087 | M25: =Boundary!N53+Boundary!N71+Boundary!N89 -> 1.207691262 | N25: =Boundary!O53+Boundary!O71+Boundary!O89 -> 6.822243651 | O25: =Boundary!P53+Boundary!P71+Boundary!P89 -> 0 | P25: 9 | Q25: FI | R25: CMRCL | S25: BANKING
D26: RETAIL | E26: =1+E25 -> 10 | F26: FL | H26: =Boundary!I54+Boundary!I72+Boundary!I90 -> -698.2534373 | I26: =Boundary!J54+Boundary!J72+Boundary!J90 -> 1.251378352 | J26: =Boundary!K54+Boundary!K72+Boundary!K90 -> 10.86019098 | K26: =Boundary!L54+Boundary!L72+Boundary!L90 -> 12.06129357 | M26: =Boundary!N54+Boundary!N72+Boundary!N90 -> 0.03097609761 | N26: =Boundary!O54+Boundary!O72+Boundary!O90 -> 5.06723438 | O26: =Boundary!P54+Boundary!P72+Boundary!P90 -> 0 | P26: 10 | Q26: FL | R26: RETAIL
D27: GOVT | E27: =1+E26 -> 11 | F27: FG | H27: =Boundary!I55+Boundary!I73+Boundary!I91 -> 0 | I27: =Boundary!J55+Boundary!J73+Boundary!J91 -> 0 | J27: =Boundary!K55+Boundary!K73+Boundary!K91 -> 0 | K27: =Boundary!L55+Boundary!L73+Boundary!L91 -> 0 | M27: =Boundary!N55+Boundary!N73+Boundary!N91 -> 0 | N27: =Boundary!O55+Boundary!O73+Boundary!O91 -> 0 | O27: =Boundary!P55+Boundary!P73+Boundary!P91 -> 0 | P27: 11 | Q27: FG | R27: GOVT
H28: 0 | I28: I1 | J28: I2 | K28: I3 | M28: L1 | N28: L2 | O28: L3
H29: 0 | I29: 1 | J29: 2 | K29: 3 | M29: 4 | N29: 5 | O29: 6
H30: VALUE | I30: CAPITAL | J30: GENERAL | K30: NON_DUR | M30: BOURGS | N30: PRLTRT | O30: DPNDNT
E31: Turnover | H31: 0 | I31: 1 | J31: 2 | K31: 3 | M31: 4 | N31: 5 | O31: 6
E32: Fractions | H32: 0 | I32: I1 | J32: I2 | K32: I3 | M32: L1 | N32: L2 | O32: L3
E33: V > | H33: =Boundary!I33 -> 1 | I33: =Boundary!J33 -> 0.1 | J33: =Boundary!K33 -> 0.3333333333 | K33: =Boundary!L33 -> 1 | M33: =Boundary!N33 -> 1 | N33: =Boundary!O33 -> 1 | O33: =Boundary!P33 -> 1
H34: 0 | I34: I1 | J34: I2 | K34: I3 | M34: L1 | N34: L2 | O34: L3
H35: 0 | I35: 1 | J35: 2 | K35: 3 | M35: 4 | N35: 5 | O35: 6
C36: Rates of Asset | H36: VALUE | I36: CAPITAL | J36: GENERAL | K36: NON_DUR | M36: BOURGS | N36: PRLTRT | O36: DPNDNT
C37: Employment E > | H37: 0 | I37: 1 | J37: 2 | K37: 3 | M37: 4 | N37: 5 | O37: 6
H38: 0 | I38: I1 | J38: I2 | K38: I3 | M38: L1 | N38: L2 | O38: L3
H39: =Rates!H$33*Rates!H11 -> 0 | I39: =Rates!I$33*Rates!I11 -> 0 | J39: =Rates!J$33*Rates!J11 -> 0 | K39: =Rates!K$33*Rates!K11 -> 0 | M39: =Rates!M$33*Rates!M11 -> 0 | N39: =Rates!N$33*Rates!N11 -> 0 | O39: =Rates!O$33*Rates!O11 -> 0
E41: 0 | F41: 0 | H41: =Rates!H$33*Rates!H13 -> 271197.0825 | I41: =Rates!I$33*Rates!I13 -> -99.92320504 | J41: =Rates!J$33*Rates!J13 -> -749.4167367 | K41: =Rates!K$33*Rates!K13 -> -3197.458319 | M41: =Rates!M$33*Rates!M13 -> -876 | N41: =Rates!N$33*Rates!N13 -> -8766 | O41: =Rates!O$33*Rates!O13 -> -100 | P41: 0 | Q41: 0
C42: INDUSTRIES | D42: CAPITAL | E42: 1 | F42: I1 | H42: =Rates!H$33*Rates!H14 -> -71451.28488 | I42: =Rates!I$33*Rates!I14 -> 30.07483753 | J42: =Rates!J$33*Rates!J14 -> 200.6742881 | K42: =Rates!K$33*Rates!K14 -> 803.4427676 | M42: =Rates!M$33*Rates!M14 -> 19.96320211 | N42: =Rates!N$33*Rates!N14 -> 578.5643183 | O42: =Rates!O$33*Rates!O14 -> 0 | P42: 1 | Q42: I1 | R42: CAPITAL | S42: INDUSTRIES
D43: GENERAL | E43: 2 | F43: I2 | H43: =Rates!H$33*Rates!H15 -> -62415.58598 | I43: =Rates!I$33*Rates!I15 -> 25.06471742 | J43: =Rates!J$33*Rates!J15 -> 100.5832585 | K43: =Rates!K$33*Rates!K15 -> 702.9788884 | M43: =Rates!M$33*Rates!M15 -> 29.96732924 | N43: =Rates!N$33*Rates!N15 -> 581.3015516 | O43: =Rates!O$33*Rates!O15 -> 0 | P43: 2 | Q43: I2 | R43: GENERAL
D44: NON_DUR | E44: 3 | F44: I3 | H44: =Rates!H$33*Rates!H16 -> -54089.77959 | I44: =Rates!I$33*Rates!I16 -> 20.05530009 | J44: =Rates!J$33*Rates!J16 -> 150.4974381 | K44: =Rates!K$33*Rates!K16 -> 502.5416811 | M44: =Rates!M$33*Rates!M16 -> 19.97139855 | N44: =Rates!N$33*Rates!N16 -> 583.9140141 | O44: =Rates!O$33*Rates!O16 -> 0 | P44: 3 | Q44: I3 | R44: NON_DUR
C46: HOUSEHOLDS | D46: BOURGS | E46: 4 | F46: L1 | H46: =Rates!H$33*Rates!H18 -> -57432.00474 | I46: =Rates!I$33*Rates!I18 -> 22.94126164 | J46: =Rates!J$33*Rates!J18 -> 228.6630896 | K46: =Rates!K$33*Rates!K18 -> 996.4495604 | M46: =Rates!M$33*Rates!M18 -> 781.5736886 | N46: =Rates!N$33*Rates!N18 -> 197.9877634 | O46: =Rates!O$33*Rates!O18 -> 0 | P46: 4 | Q46: L1 | R46: BOURGS | S46: HOUSEHOLDS
D47: PRLTRT | E47: 5 | F47: L2 | H47: =Rates!H$33*Rates!H19 -> -11991.1647 | I47: =Rates!I$33*Rates!I19 -> 1.320501136 | J47: =Rates!J$33*Rates!J19 -> 59.80751895 | K47: =Rates!K$33*Rates!K19 -> 160.5839199 | M47: =Rates!M$33*Rates!M19 -> 5.272418825 | N47: =Rates!N$33*Rates!N19 -> 6649.241896 | O47: =Rates!O$33*Rates!O19 -> 0 | P47: 5 | Q47: L2 | R47: PRLTRT
D48: DPNDNT | E48: 6 | F48: L3 | H48: =Rates!H$33*Rates!H20 -> -1510.40611 | I48: =Rates!I$33*Rates!I20 -> 0.09347624146 | J48: =Rates!J$33*Rates!J20 -> 5.648044561 | K48: =Rates!K$33*Rates!K20 -> 14.41951104 | M48: =Rates!M$33*Rates!M20 -> 0.948465447 | N48: =Rates!N$33*Rates!N20 -> 17.24259978 | O48: =Rates!O$33*Rates!O20 -> 100 | P48: 6 | Q48: L3 | R48: DPNDNT
C50: GOVERNANCE | D50: LOCAL | E50: 7 | F50: G1 | H50: =Rates!H$33*Rates!H22 -> -4275.523215 | I50: =Rates!I$33*Rates!I22 -> 0.08243563443 | J50: =Rates!J$33*Rates!J22 -> -0.1093193686 | K50: =Rates!K$33*Rates!K22 -> 1.436236884 | M50: =Rates!M$33*Rates!M22 -> 6.736275909 | N50: =Rates!N$33*Rates!N22 -> 57.7483722 | O50: =Rates!O$33*Rates!O22 -> 0 | P50: 7 | Q50: G1 | R50: LOCAL | S50: GOVERNANCE
D51: NATIONAL | E51: 8 | F51: G2 | H51: =Rates!H$33*Rates!H23 -> -6512.385298 | I51: =Rates!I$33*Rates!I23 -> 0.122511454 | J51: =Rates!J$33*Rates!J23 -> -0.4366625221 | K51: =Rates!K$33*Rates!K23 -> 1.526855114 | M51: =Rates!M$33*Rates!M23 -> 10.32855391 | N51: =Rates!N$33*Rates!N23 -> 88.11000665 | O51: =Rates!O$33*Rates!O23 -> 0 | P51: 8 | Q51: G2 | R51: NATIONAL
C53: BANKING | D53: CMRCL | E53: =1+E51 -> 9 | F53: FI | H53: =Rates!H$33*Rates!H25 -> -820.6945637 | I53: =Rates!I$33*Rates!I25 -> 0.0406669187 | J53: =Rates!J$33*Rates!J25 -> 0.4426986224 | K53: =Rates!K$33*Rates!K25 -> 1.881128087 | M53: =Rates!M$33*Rates!M25 -> 1.207691262 | N53: =Rates!N$33*Rates!N25 -> 6.822243651 | O53: =Rates!O$33*Rates!O25 -> 0 | P53: 9 | Q53: FI | R53: CMRCL | S53: BANKING
D54: RETAIL | E54: =1+E53 -> 10 | F54: FL | H54: =Rates!H$33*Rates!H26 -> -698.2534373 | I54: =Rates!I$33*Rates!I26 -> 0.1251378352 | J54: =Rates!J$33*Rates!J26 -> 3.620063661 | K54: =Rates!K$33*Rates!K26 -> 12.06129357 | M54: =Rates!M$33*Rates!M26 -> 0.03097609761 | N54: =Rates!N$33*Rates!N26 -> 5.06723438 | O54: =Rates!O$33*Rates!O26 -> 0 | P54: 10 | Q54: FL | R54: RETAIL
D55: GOVT | E55: =1+E54 -> 11 | F55: FG | H55: 0 | I55: 0 | J55: 0 | K55: 0 | M55: 0 | N55: 0 | O55: 0 | P55: 11 | Q55: FG | R55: GOVT
H56: 0 | I56: I1 | J56: I2 | K56: I3 | M56: L1 | N56: L2 | O56: L3
H57: 0 | I57: 1 | J57: 2 | K57: 3 | M57: 4 | N57: 5 | O57: 6
H58: VALUE | I58: CAPITAL | J58: GENERAL | K58: NON_DUR | M58: BOURGS | N58: PRLTRT | O58: DPNDNT
H59: 0 | I59: 1 | J59: 2 | K59: 3 | M59: 4 | N59: 5 | O59: 6
E60: Market | H60: 0 | I60: I1 | J60: I2 | K60: I3 | M60: L1 | N60: L2 | O60: L3
F61: Pressure > | H61: =-SUM(H39:H55) -> -1.921307557e-11 | I61: =-SUM(I39:I55) -> 0.002359146423 | J61: =-SUM(J39:J55) -> 0.02631850327 | K61: =-SUM(K39:K55) -> 0.1364767894 | M61: =-SUM(M39:M55) -> -1.608817246e-13 | N61: =-SUM(N39:N55) -> 2.113864639e-13 | O61: =-SUM(O39:O55) -> 0
H62: 0 | I62: I1 | J62: I2 | K62: I3 | M62: L1 | N62: L2 | O62: L3
H63: 0 | I63: 1 | J63: 2 | K63: 3 | M63: 4 | N63: 5 | O63: 6
H64: VALUE | I64: CAPITAL | J64: GENERAL | K64: NON_DUR | M64: BOURGS | N64: PRLTRT | O64: DPNDNT
I66: INDUSTRIES | M66: HOUSEHOLDS

Sheet Nexus
J6: INDUSTRIES | N6: HOUSEHOLDS
C8: U + E | E8: m > | I8: VALUE | J8: CAPITAL | K8: GENERAL | L8: NON_DUR | N8: BOURGS | O8: PRLTRT | P8: DPNDNT
I9: 0 | J9: 1 | K9: 2 | L9: 3 | N9: 4 | O9: 5 | P9: 6
I10: 0 | J10: I1 | K10: I2 | L10: I3 | N10: L1 | O10: L2 | P10: L3
G11: u + e | I11: =PSIU!I11+Rates!H39 -> 12203433.14 | J11: =Utility!J11+Rates!I39 -> -3724.352264 | K11: =Utility!K11+Rates!J39 -> -30850.03884 | L11: =Utility!L11+Rates!K39 -> -146608.7199 | N11: =Utility!N11+Rates!M39 -> -3705.14466 | O11: =Utility!O11+Rates!N39 -> -202880.8125 | P11: =Utility!P11+Rates!O39 -> 0 | V11: l | W11: Z | X11: Y
K12: l
E13: 0 | F13: 0 | G13: =Zeta!G13+Finance!H69 -> -26538680.03 | I13: =V13 -> -1974090.373 | J13: =V14 -> 1014.678279 | K13: =V15 -> 7585.601441 | L13: =V16 -> 32070.22369 | N13: =Utility!N13+Rates!M41 -> 0 | O13: =Utility!O13+Rates!N41 -> 0 | P13: =Utility!P13+Rates!O41 -> 0 | Q13: 0 | R13: 0 | T13: 0 | U13: 0 | V13: =-Value!J48*V14-Value!K48*V15-Value!L48*V16-Value!N48*V18-Value!O48*V19-Value!P48*V20 -> -1974090.373 | W13: =V13+X13 -> -2245287.455 | X13: =-Transactions!I13 -> -271197.0825 | Y13: 0 | Z13: 0
C14: INDUSTRIES | D14: CAPITAL | E14: 1 | F14: I1 | G14: =Zeta!G14+Finance!H70 -> 10035085.6 | I14: =Utility!I14+Rates!H42 -> -3845401.295 | J14: =Utility!J14+Rates!I42 -> 1014.677735 | K14: =Utility!K14+Rates!J42 -> 8711.722295 | L14: =Utility!L14+Rates!K42 -> 42890.68161 | N14: =Utility!N14+Rates!M42 -> 1432.278122 | O14: =Utility!O14+Rates!N42 -> 76535.78913 | P14: =Utility!P14+Rates!O42 -> 0 | Q14: 1 | R14: I1 | T14: 1 | U14: I1 | V14: =W14*V36 -> 1014.678279 | W14: =Boundary!U14 -> 1114.602897 | X14: =W14-V14 -> 99.92461844 | Y14: 1 | Z14: I1 | AA14: CAPITAL | AB14: INDUSTRIES
D15: GENERAL | E15: 2 | F15: I2 | G15: =Zeta!G15+Finance!H71 -> 8737898.824 | I15: =Utility!I15+Rates!H43 -> -3348325.715 | J15: =Utility!J15+Rates!I43 -> 883.515475 | K15: =Utility!K15+Rates!J43 -> 7585.601971 | L15: =Utility!L15+Rates!K43 -> 37346.4201 | N15: =Utility!N15+Rates!M43 -> 1247.134773 | O15: =Utility!O15+Rates!N43 -> 66642.39472 | P15: =Utility!P15+Rates!O43 -> 0 | Q15: 2 | R15: I2 | T15: 2 | U15: I2 | V15: =W15*V37 -> 7585.601441 | W15: =Boundary!U15 -> 8335.018713 | X15: =W15-V15 -> 749.4172721 | Y15: 2 | Z15: I2 | AA15: GENERAL
D16: NON_DUR | E16: 3 | F16: I3 | G16: =Zeta!G16+Finance!H72 -> 7503433.459 | I16: =Utility!I16+Rates!H44 -> -2875283.793 | J16: =Utility!J16+Rates!I44 -> 758.6950376 | K16: =Utility!K16+Rates!J44 -> 6513.929631 | L16: =Utility!L16+Rates!K44 -> 32070.22423 | N16: =Utility!N16+Rates!M44 -> 1070.943124 | O16: =Utility!O16+Rates!N44 -> 57227.34699 | P16: =Utility!P16+Rates!O44 -> 0 | Q16: 3 | R16: I3 | T16: 3 | U16: I3 | V16: =W16*V38 -> 32070.22369 | W16: =Boundary!U16 -> 35267.68255 | X16: =W16-V16 -> 3197.458855 | Y16: 3 | Z16: I3 | AA16: NON_DUR
M17: l
C18: HOUSEHOLDS | D18: BOURGS | E18: 4 | F18: L1 | G18: =Zeta!G18+Finance!H74 -> 209705.812 | I18: =Utility!I18+Rates!H46 -> -128573.55 | J18: =Utility!J18+Rates!I46 -> 42.40801219 | K18: =Utility!K18+Rates!J46 -> 364.1032701 | L18: =Utility!L18+Rates!K46 -> 1792.599806 | N18: =V18 -> -59.8615117 | O18: =Utility!O18+Rates!N46 -> 3198.784342 | P18: =Utility!P18+Rates!O46 -> 0 | Q18: 4 | R18: L1 | T18: 4 | U18: L1 | V18: =W18*V40 -> -59.8615117 | W18: =Utility!U18 -> -841.4259563 | X18: =W18-V18 -> -781.5644446 | Y18: 4 | Z18: L1 | AA18: BOURGS | AB18: HOUSEHOLDS
D19: PRLTRT | E19: 5 | F19: L2 | G19: =Zeta!G19+Finance!H75 -> 49376.80551 | I19: =Utility!I19+Rates!H47 -> -30273.68165 | J19: =Utility!J19+Rates!I47 -> 9.985478836 | K19: =Utility!K19+Rates!J47 -> 85.73099847 | L19: =Utility!L19+Rates!K47 -> 422.0820655 | N19: =Utility!N19+Rates!M47 -> 14.09487762 | O19: =V19 -> -753.1795948 | P19: =Utility!P19+Rates!O47 -> 0 | Q19: 5 | R19: L2 | T19: 5 | U19: L2 | V19: =W19*V41 -> -753.1795948 | W19: =Utility!U19 -> -7401.922549 | X19: =W19-V19 -> -6648.742954 | Y19: 5 | Z19: L2 | AA19: PRLTRT
D20: DPNDNT | E20: 6 | F20: L3 | G20: =Zeta!G20+Finance!H76 -> 1235.340453 | I20: =Utility!I20+Rates!H48 -> -568.5730028 | J20: =Utility!J20+Rates!I48 -> 0.1502370356 | K20: =Utility!K20+Rates!J48 -> 1.288256175 | L20: =Utility!L20+Rates!K48 -> 6.341764084 | N20: =Utility!N20+Rates!M48 -> 0.2117749034 | O20: =Utility!O20+Rates!N48 -> 11.31648881 | P20: =V20 -> 0 | Q20: 6 | R20: L3 | T20: 6 | U20: L3 | W20: =Utility!U20 -> -100 | X20: =W20-V20 -> -100 | Y20: 6 | Z20: L3 | AA20: DPNDNT
Q21: l
C22: GOVERNANCE | D22: LOCAL | E22: 7 | F22: G1 | G22: =Zeta!G22+Finance!H78 -> 303.7051017 | I22: =Utility!I22+Rates!H50 -> -140.9868004 | J22: =Utility!J22+Rates!I50 -> 0.03778604148 | K22: =Utility!K22+Rates!J50 -> 0.3198160254 | L22: =Utility!L22+Rates!K50 -> 1.572639736 | N22: =Utility!N22+Rates!M50 -> 0.0525162437 | O22: =Utility!O22+Rates!N50 -> 2.806279096 | P22: =Utility!P22+Rates!O50 -> 0 | Q22: 7 | R22: G1 | T22: 7 | U22: G1 | Y22: 7 | Z22: G1 | AA22: LOCAL | AB22: GOVERNANCE
D23: NATIONAL | E23: 8 | F23: G2 | G23: =Zeta!G23+Finance!H79 -> 873.0212118 | I23: =Utility!I23+Rates!H51 -> -403.4730348 | J23: =Utility!J23+Rates!I51 -> 0.1073532051 | K23: =Utility!K23+Rates!J51 -> 0.9146909319 | L23: =Utility!L23+Rates!K51 -> 4.500403911 | N23: =Utility!N23+Rates!M51 -> 0.1502850927 | O23: =Utility!O23+Rates!N51 -> 8.030694589 | P23: =Utility!P23+Rates!O51 -> 0 | Q23: 8 | R23: G2 | T23: 8 | U23: G2 | Y23: 8 | Z23: G2 | AA23: NATIONAL
C25: BANKING | D25: CMRCL | E25: =1+E23 -> 9 | F25: FI | G25: =Zeta!G25+Finance!H81 -> 299.429904 | I25: =Utility!I25+Rates!H53 -> -137.7161921 | J25: =Utility!J25+Rates!I53 -> 0.03630322072 | K25: =Utility!K25+Rates!J53 -> 0.3120799823 | L25: =Utility!L25+Rates!K53 -> 1.536073763 | N25: =Utility!N25+Rates!M53 -> 0.05129517095 | O25: =Utility!O25+Rates!N53 -> 2.741029362 | P25: =Utility!P25+Rates!O53 -> 0 | Q25: =1+Q23 -> 9 | R25: FI | T25: =1+T23 -> 9 | U25: FI | Y25: FI | Z25: 9 | AA25: CMRCL | AB25: BANKING
D26: RETAIL | E26: =1+E25 -> 10 | F26: FL | G26: =Zeta!G26+Finance!H82 -> 468.0313306 | I26: =Utility!I26+Rates!H54 -> -215.2145052 | J26: =Utility!J26+Rates!I54 -> 0.05679515857 | K26: =Utility!K26+Rates!J54 -> 0.4875361294 | L26: =Utility!L26+Rates!K54 -> 2.400468204 | N26: =Utility!N26+Rates!M54 -> 0.08016049087 | O26: =Utility!O26+Rates!N54 -> 4.283488193 | P26: =Utility!P26+Rates!O54 -> 0 | Q26: =1+Q25 -> 10 | R26: FL | T26: =1+T25 -> 10 | U26: FL | Y26: FL | Z26: 10 | AA26: RETAIL
D27: GOVT | E27: =1+E26 -> 11 | F27: FG | G27: =Zeta!G27+Finance!H83 -> 0 | I27: =Utility!I27+Rates!H55 -> 0 | J27: =Utility!J27+Rates!I55 -> 0 | K27: =Utility!K27+Rates!J55 -> 0 | L27: =Utility!L27+Rates!K55 -> 0 | N27: =Utility!N27+Rates!M55 -> 0 | O27: =Utility!O27+Rates!N55 -> 0 | P27: =Utility!P27+Rates!O55 -> 0 | Q27: =1+Q26 -> 11 | R27: FG | T27: =1+T26 -> 11 | U27: FG | Y27: FG | Z27: 11 | AA27: GOVT
I28: 0 | J28: I1 | K28: I2 | L28: I3 | N28: L1 | O28: L2 | P28: L3
I29: 0 | J29: 1 | K29: 2 | L29: 3 | N29: 4 | O29: 5 | P29: 6
C30: E | E30: W > | I30: VALUE | J30: CAPITAL | K30: GENERAL | L30: NON_DUR | N30: BOURGS | O30: PRLTRT | P30: DPNDNT
C31: U + E | I31: 0 | J31: 1 | K31: 2 | L31: 3 | N31: 4 | O31: 5 | P31: 6
I32: 0 | J32: I1 | K32: I2 | L32: I3 | N32: L1 | O32: L2 | P32: L3
G33: w | V33: l/Z | X33: t
E35: 0 | F35: 0 | J35: =IF(Nexus!J13<>0,Rates!I41/Nexus!J13,0) -> -0.0984777216 | K35: =IF(Nexus!K13<>0,Rates!J41/Nexus!K13,0) -> -0.09879463647 | L35: =IF(Nexus!L13<>0,Rates!K41/Nexus!L13,0) -> -0.09970177787 | Q35: 0 | R35: 0 | T35: 0 | U35: 0 | Y35: 0 | Z35: 0
C36: INDUSTRIES | D36: CAPITAL | E36: 1 | F36: I1 | G36: =J35-I36 -> -0.005573145235 | I36: =-SUM(J36:P36) -> -0.09290457636 | J36: =IF(Nexus!J14<>0,Rates!I42/Nexus!J14,0) -> 0.02963979252 | K36: =IF(Nexus!K14<>0,Rates!J42/Nexus!K14,0) -> 0.02303497303 | L36: =IF(Nexus!L14<>0,Rates!K42/Nexus!L14,0) -> 0.01873233853 | N36: =IF(Nexus!N14<>0,Rates!M42/Nexus!N14,0) -> 0.01393807655 | O36: =IF(Nexus!O14<>0,Rates!N42/Nexus!O14,0) -> 0.00755939574 | P36: =IF(Nexus!P14<>0,Rates!O42/Nexus!P14,0) -> 0 | Q36: 1 | R36: I1 | T36: 1 | U36: I1 | V36: =(1-J36)*(1-K36)*(1-L36)*(1-N36)*(1-O36)*(1-P36) -> 0.9103495795 | Y36: 1 | Z36: I1 | AA36: CAPITAL | AB36: INDUSTRIES
D37: GENERAL | E37: 2 | F37: I2 | G37: =K35-I37 -> -0.005590740244 | I37: =-SUM(J37:P37) -> -0.09320389623 | J37: =IF(Nexus!J15<>0,Rates!I43/Nexus!J15,0) -> 0.0283693021 | K37: =IF(Nexus!K15<>0,Rates!J43/Nexus!K15,0) -> 0.01325975959 | L37: =IF(Nexus!L15<>0,Rates!K43/Nexus!L15,0) -> 0.0188231934 | N37: =IF(Nexus!N15<>0,Rates!M43/Nexus!N15,0) -> 0.0240289421 | O37: =IF(Nexus!O15<>0,Rates!N43/Nexus!O15,0) -> 0.008722699028 | P37: =IF(Nexus!P15<>0,Rates!O43/Nexus!P15,0) -> 0 | Q37: 2 | R37: I2 | T37: 2 | U37: I2 | V37: =(1-J37)*(1-K37)*(1-L37)*(1-N37)*(1-O37)*(1-P37) -> 0.9100881116 | Y37: 2 | Z37: I2 | AA37: GENERAL
D38: NON_DUR | E38: 3 | F38: I3 | G38: =L35-I38 -> -0.005642027179 | I38: =-SUM(J38:P38) -> -0.09405975069 | J38: =IF(Nexus!J16<>0,Rates!I44/Nexus!J16,0) -> 0.0264339413 | K38: =IF(Nexus!K16<>0,Rates!J44/Nexus!K16,0) -> 0.02310393981 | L38: =IF(Nexus!L16<>0,Rates!K44/Nexus!L16,0) -> 0.01567003952 | N38: =IF(Nexus!N16<>0,Rates!M44/Nexus!N16,0) -> 0.01864842129 | O38: =IF(Nexus!O16<>0,Rates!N44/Nexus!O16,0) -> 0.01020340877 | P38: =IF(Nexus!P16<>0,Rates!O44/Nexus!P16,0) -> 0 | Q38: 3 | R38: I3 | T38: 3 | U38: I3 | V38: =(1-J38)*(1-K38)*(1-L38)*(1-N38)*(1-O38)*(1-P38) -> 0.9093374267 | Y38: 3 | Z38: I3 | AA38: NON_DUR
C40: HOUSEHOLDS | D40: BOURGS | E40: 4 | F40: L1 | G40: =N40-I40 -> 0.2091783023 | I40: =-SUM(J40:P40)+N40 -> -1.786745469 | J40: =IF(Nexus!J18<>0,Rates!I46/Nexus!J18,0) -> 0.540965267 | K40: =IF(Nexus!K18<>0,Rates!J46/Nexus!K18,0) -> 0.6280171269 | L40: =IF(Nexus!L18<>0,Rates!K46/Nexus!L18,0) -> 0.5558683857 | N40: =(X40+X18)/V18 -> -1.577567167 | O40: =IF(Nexus!O18<>0,Rates!N46/Nexus!O18,0) -> 0.06189468942 | P40: =IF(Nexus!P18<>0,Rates!O46/Nexus!P18,0) -> 0 | Q40: 4 | R40: L1 | T40: 4 | U40: L1 | V40: =(1-J40)*(1-K40)*(1-L40)*(1-O40)*(1-P40) -> 0.07114293451 | X40: =Utility!W18 -> 876 | Y40: 4 | Z40: L1 | AA40: BOURGS | AB40: HOUSEHOLDS
D41: PRLTRT | E41: 5 | F41: L2 | G41: =O41-I41 -> -1.226708438 | I41: =-SUM(J41:P41)+O41 -> -1.584383446 | J41: =IF(Nexus!J19<>0,Rates!I47/Nexus!J19,0) -> 0.1322421446 | K41: =IF(Nexus!K19<>0,Rates!J47/Nexus!K19,0) -> 0.6976183646 | L41: =IF(Nexus!L19<>0,Rates!K47/Nexus!L19,0) -> 0.3804566291 | N41: =IF(Nexus!N19<>0,Rates!M47/Nexus!N19,0) -> 0.3740663075 | O41: =(X41+X19)/V19 -> -2.811091883 | P41: =IF(Nexus!P19<>0,Rates!O47/Nexus!P19,0) -> 0 | Q41: 5 | R41: L2 | T41: 5 | U41: L2 | V41: =(1-J41)*(1-K41)*(1-L41)*(1-N41)*(1-P41) -> 0.1017545901 | X41: =Utility!W19 -> 8766 | Y41: 5 | Z41: L2 | AA41: PRLTRT
D42: DPNDNT | E42: 6 | F42: L3 | G42: =P42-I42 -> 13.28250507 | I42: =-SUM(J42:P42) -> -13.28250507 | J42: =IF(Nexus!J20<>0,Rates!I48/Nexus!J20,0) -> 0.6221917325 | K42: =IF(Nexus!K20<>0,Rates!J48/Nexus!K20,0) -> 4.384255763 | L42: =IF(Nexus!L20<>0,Rates!K48/Nexus!L20,0) -> 2.273738166 | N42: =IF(Nexus!N20<>0,Rates!M48/Nexus!N20,0) -> 4.478648942 | O42: =IF(Nexus!O20<>0,Rates!N48/Nexus!O20,0) -> 1.523670466 | P42: 0 | Q42: 6 | R42: L3 | T42: 6 | U42: L3 | V42: 0 | X42: =Utility!W20 -> 100 | Y42: 6 | Z42: L3 | AA42: DPNDNT
C44: GOVERNANCE | D44: LOCAL | E44: 7 | F44: G1 | G44: =-I44 -> 151.6016891 | I44: =-SUM(J44:P44) -> -151.6016891 | J44: =IF(Nexus!J22<>0,Rates!I50/Nexus!J22,0) -> 2.181642512 | K44: =IF(Nexus!K22<>0,Rates!J50/Nexus!K22,0) -> -0.341819546 | L44: =IF(Nexus!L22<>0,Rates!K50/Nexus!L22,0) -> 0.9132650352 | N44: =IF(Nexus!N22<>0,Rates!M50/Nexus!N22,0) -> 128.27033 | O44: =IF(Nexus!O22<>0,Rates!N50/Nexus!O22,0) -> 20.57827117 | P44: =IF(Nexus!P22<>0,Rates!O50/Nexus!P22,0) -> 0 | Q44: 7 | R44: G1 | T44: 7 | U44: G1 | Y44: 7 | Z44: G1 | AA44: LOCAL | AB44: GOVERNANCE
D45: NATIONAL | E45: 8 | F45: G2 | G45: =-I45 -> 80.70114035 | I45: =-SUM(J45:P45) -> -80.70114035 | J45: =IF(Nexus!J23<>0,Rates!I51/Nexus!J23,0) -> 1.141199779 | K45: =IF(Nexus!K23<>0,Rates!J51/Nexus!K23,0) -> -0.4773880519 | L45: =IF(Nexus!L23<>0,Rates!K51/Nexus!L23,0) -> 0.3392706842 | N45: =IF(Nexus!N23<>0,Rates!M51/Nexus!N23,0) -> 68.72640341 | O45: =IF(Nexus!O23<>0,Rates!N51/Nexus!O23,0) -> 10.97165453 | P45: =IF(Nexus!P23<>0,Rates!O51/Nexus!P23,0) -> 0 | Q45: 8 | R45: G2 | T45: 8 | U45: G2 | Y45: 8 | Z45: G2 | AA45: NATIONAL
C47: BANKING | D47: CMRCL | E47: =1+E45 -> 9 | F47: FI | G47: =-I47 -> 29.79626872 | I47: =-SUM(J47:P47) -> -29.79626872 | J47: =IF(Nexus!J25<>0,Rates!I53/Nexus!J25,0) -> 1.120201401 | K47: =IF(Nexus!K25<>0,Rates!J53/Nexus!K25,0) -> 1.418542193 | L47: =IF(Nexus!L25<>0,Rates!K53/Nexus!L25,0) -> 1.224633955 | N47: =IF(Nexus!N25<>0,Rates!M53/Nexus!N25,0) -> 23.54395627 | O47: =IF(Nexus!O25<>0,Rates!N53/Nexus!O25,0) -> 2.488934904 | P47: =IF(Nexus!P25<>0,Rates!O53/Nexus!P25,0) -> 0 | Q47: =1+Q45 -> 9 | R47: FI | T47: =1+T45 -> 9 | U47: FI | Y47: FI | Z47: 9 | AA47: CMRCL | AB47: BANKING
D48: RETAIL | E48: =1+E47 -> 10 | F48: FL | G48: =-I48 -> 16.22249394 | I48: =-SUM(J48:P48) -> -16.22249394 | J48: =IF(Nexus!J26<>0,Rates!I54/Nexus!J26,0) -> 2.203318705 | K48: =IF(Nexus!K26<>0,Rates!J54/Nexus!K26,0) -> 7.425221319 | L48: =IF(Nexus!L26<>0,Rates!K54/Nexus!L26,0) -> 5.024558771 | N48: =IF(Nexus!N26<>0,Rates!M54/Nexus!N26,0) -> 0.3864259971 | O48: =IF(Nexus!O26<>0,Rates!N54/Nexus!O26,0) -> 1.182969149 | P48: =IF(Nexus!P26<>0,Rates!O54/Nexus!P26,0) -> 0 | Q48: =1+Q47 -> 10 | R48: FL | T48: =1+T47 -> 10 | U48: FL | Y48: FL | Z48: 10 | AA48: RETAIL
D49: GOVT | E49: =1+E48 -> 11 | F49: FG | G49: =-I49 -> 0 | I49: =-SUM(J49:P49) -> 0 | J49: =IF(Nexus!J27<>0,Rates!I55/Nexus!J27,0) -> 0 | K49: =IF(Nexus!K27<>0,Rates!J55/Nexus!K27,0) -> 0 | L49: =IF(Nexus!L27<>0,Rates!K55/Nexus!L27,0) -> 0 | N49: =IF(Nexus!N27<>0,Rates!M55/Nexus!N27,0) -> 0 | O49: =IF(Nexus!O27<>0,Rates!N55/Nexus!O27,0) -> 0 | P49: =IF(Nexus!P27<>0,Rates!O55/Nexus!P27,0) -> 0 | Q49: =1+Q48 -> 11 | R49: FG | T49: =1+T48 -> 11 | U49: FG | Y49: FG | Z49: 11 | AA49: GOVT
I50: 0 | J50: I1 | K50: I2 | L50: I3 | N50: L1 | O50: L2 | P50: L3
I51: 0 | J51: 1 | K51: 2 | L51: 3 | N51: 4 | O51: 5 | P51: 6
C52: E | I52: VALUE | J52: CAPITAL | K52: GENERAL | L52: NON_DUR | N52: BOURGS | O52: PRLTRT | P52: DPNDNT
C53: U + E
J54: INDUSTRIES | N54: HOUSEHOLDS
G55: b | I55: Q
E57: 0 | F57: 0
C58: INDUSTRIES | D58: CAPITAL | E58: 1 | F58: I1 | G58: =Finance!H70/G36 -> 1672506.436 | I58: =IF(I36<>0,Rates!H42/I36,0) -> 769082.5111
D59: GENERAL | E59: 2 | F59: I2 | G59: =Finance!H71/G37 -> 1456324.321 | I59: =IF(I37<>0,Rates!H43/I37,0) -> 669667.1331
D60: NON_DUR | E60: 3 | F60: I3 | G60: =Finance!H72/G38 -> 1250579.637 | I60: =IF(I38<>0,Rates!H44/I38,0) -> 575057.6543
C62: HOUSEHOLDS | D62: BOURGS | E62: 4 | F62: L1 | G62: =Finance!H74/G40 -> 69900.18147 | I62: =IF(I40<>0,Rates!H46/I40,0) -> 32143.36106
D63: PRLTRT | E63: 5 | F63: L2 | G63: =Finance!H75/G41 -> 16459.371 | I63: =IF(I41<>0,Rates!H47/I41,0) -> 7568.347635
D64: DPNDNT | E64: 6 | F64: L3 | G64: =Finance!H76/G42 -> 247.2078041 | I64: =IF(I42<>0,Rates!H48/I42,0) -> 113.7139494
C66: GOVERNANCE | D66: LOCAL | E66: 7 | F66: G1 | G66: =Finance!H78/G44 -> 61.31234525 | I66: =IF(I44<>0,Rates!H50/I44,0) -> 28.20234549
D67: NATIONAL | E67: 8 | F67: G2 | G67: =Finance!H79/G45 -> 175.4378406 | I67: =IF(I45<>0,Rates!H51/I45,0) -> 80.69756226
C69: BANKING | D69: CMRCL | E69: =1+E67 -> 9 | F69: FI | G69: =Finance!H81/G47 -> 59.89671509 | I69: =IF(I47<>0,Rates!H53/I47,0) -> 27.54353477
D70: RETAIL | E70: =1+E69 -> 10 | F70: FL | G70: =Finance!H82/G48 -> 93.60416624 | I70: =IF(I48<>0,Rates!H54/I48,0) -> 43.04229916
D71: GOVT | E71: =1+E70 -> 11 | F71: FG | I71: =IF(I49<>0,Rates!H55/I49,0) -> 0

Sheet Value
J6: INDUSTRIES | N6: HOUSEHOLDS
G8: HQ > | I8: VALUE | J8: CAPITAL | K8: GENERAL | L8: NON_DUR | N8: BOURGS | O8: PRLTRT | P8: DPNDNT
I9: 0 | J9: 1 | K9: 2 | L9: 3 | N9: 4 | O9: 5 | P9: 6
I10: 0 | J10: I1 | K10: I2 | L10: I3 | N10: L1 | O10: L2 | P10: L3
I11: =-SUM(J11:P11) -> 12203444.92 | J11: =-SUM(J13:J27) -> -2822894.718 | K11: =-SUM(K13:K27) -> -2723479.34 | L11: =-SUM(L13:L27) -> -2628869.861 | N11: =-SUM(N13:N27) -> -1989525.485 | O11: =-SUM(O13:O27) -> -2038675.512 | P11: =-SUM(P13:P27) -> 0
E13: 0 | F13: 0 | G13: =-SUM(G14:G26) -> -12203444.92 | I13: =-I11-SUM(I14:I27) -> -1974095.59 | J13: =Nexus!I58*Utility!J41 -> 769082.5111 | K13: =Nexus!$I59*Utility!K41 -> 669667.1331 | L13: =Nexus!$I60*Utility!L41 -> 575057.6543 | N13: =Nexus!$I57*Utility!N41 -> 0 | O13: =Nexus!$I57*Utility!O41 -> 0 | P13: =Nexus!$I57*Utility!P41 -> 0 | Q13: 0 | R13: 0
C14: INDUSTRIES | D14: CAPITAL | E14: 1 | F14: I1 | G14: =Nexus!$I58*Utility!G42 -> 4614495.067 | I14: =Nexus!$I58*Utility!I42 -> -3845412.556 | J14: =Nexus!$I58*Utility!J42 -> 769082.5111 | K14: =Nexus!$I58*Utility!K42 -> 769082.5111 | L14: =Nexus!$I58*Utility!L42 -> 769082.5111 | N14: =Nexus!$I58*Utility!N42 -> 769082.5111 | O14: =Nexus!$I58*Utility!O42 -> 769082.5111 | P14: =Nexus!$I58*Utility!P42 -> 0 | Q14: 1 | R14: I1 | S14: CAPITAL | T14: INDUSTRIES
D15: GENERAL | E15: 2 | F15: I2 | G15: =Nexus!$I59*Utility!G43 -> 4018002.799 | I15: =Nexus!$I59*Utility!I43 -> -3348335.665 | J15: =Nexus!$I59*Utility!J43 -> 669667.1331 | K15: =Nexus!$I59*Utility!K43 -> 669667.1331 | L15: =Nexus!$I59*Utility!L43 -> 669667.1331 | N15: =Nexus!$I59*Utility!N43 -> 669667.1331 | O15: =Nexus!$I59*Utility!O43 -> 669667.1331 | P15: =Nexus!$I59*Utility!P43 -> 0 | Q15: 2 | R15: I2 | S15: GENERAL
D16: NON_DUR | E16: 3 | F16: I3 | G16: =Nexus!$I60*Utility!G44 -> 3450345.926 | I16: =Nexus!$I60*Utility!I44 -> -2875288.271 | J16: =Nexus!$I60*Utility!J44 -> 575057.6543 | K16: =Nexus!$I60*Utility!K44 -> 575057.6543 | L16: =Nexus!$I60*Utility!L44 -> 575057.6543 | N16: =Nexus!$I60*Utility!N44 -> 575057.6543 | O16: =Nexus!$I60*Utility!O44 -> 575057.6543 | P16: =Nexus!$I60*Utility!P44 -> 0 | Q16: 3 | R16: I3 | S16: NON_DUR
C18: HOUSEHOLDS | D18: BOURGS | E18: 4 | F18: L1 | G18: =Nexus!$I62*Utility!G46 -> 96430.08319 | I18: =Nexus!$I62*Utility!I46 -> -128573.4443 | J18: =Nexus!$I62*Utility!J46 -> 32143.36106 | K18: =Nexus!$I62*Utility!K46 -> 32143.36106 | L18: =Nexus!$I62*Utility!L46 -> 32143.36106 | N18: =Nexus!$I62*Utility!N46 -> -32143.36106 | O18: =Nexus!$I62*Utility!O46 -> 32143.36106 | P18: =Nexus!$I62*Utility!P46 -> 0 | Q18: 4 | R18: L1 | S18: BOURGS | T18: HOUSEHOLDS
D19: PRLTRT | E19: 5 | F19: L2 | G19: =Nexus!$I63*Utility!G47 -> 22705.0429 | I19: =Nexus!$I63*Utility!I47 -> -30273.39054 | J19: =Nexus!$I63*Utility!J47 -> 7568.347635 | K19: =Nexus!$I63*Utility!K47 -> 7568.347635 | L19: =Nexus!$I63*Utility!L47 -> 7568.347635 | N19: =Nexus!$I63*Utility!N47 -> 7568.347635 | O19: =Nexus!$I63*Utility!O47 -> -7568.347635 | P19: =Nexus!$I63*Utility!P47 -> 0 | Q19: 5 | R19: L2 | S19: PRLTRT
D20: DPNDNT | E20: 6 | F20: L3 | G20: =Nexus!$I64*Utility!G48 -> 568.5697471 | I20: =Nexus!$I64*Utility!I48 -> -568.5697471 | J20: =Nexus!$I64*Utility!J48 -> 113.7139494 | K20: =Nexus!$I64*Utility!K48 -> 113.7139494 | L20: =Nexus!$I64*Utility!L48 -> 113.7139494 | N20: =Nexus!$I64*Utility!N48 -> 113.7139494 | O20: =Nexus!$I64*Utility!O48 -> 113.7139494 | P20: =Nexus!$I64*Utility!P48 -> 0 | Q20: 6 | R20: L3 | S20: DPNDNT
C22: GOVERNANCE | D22: LOCAL | E22: 7 | F22: G1 | G22: =Nexus!$I66*Utility!G50 -> 141.0117275 | I22: =Nexus!$I66*Utility!I50 -> -141.0117275 | J22: =Nexus!$I66*Utility!J50 -> 28.20234549 | K22: =Nexus!$I66*Utility!K50 -> 28.20234549 | L22: =Nexus!$I66*Utility!L50 -> 28.20234549 | N22: =Nexus!$I66*Utility!N50 -> 28.20234549 | O22: =Nexus!$I66*Utility!O50 -> 28.20234549 | P22: =Nexus!$I66*Utility!P50 -> 0 | Q22: 7 | R22: G1 | S22: LOCAL | T22: GOVERNANCE
D23: NATIONAL | E23: 8 | F23: G2 | G23: =Nexus!$I67*Utility!G51 -> 403.4878113 | I23: =Nexus!$I67*Utility!I51 -> -403.4878113 | J23: =Nexus!$I67*Utility!J51 -> 80.69756226 | K23: =Nexus!$I67*Utility!K51 -> 80.69756226 | L23: =Nexus!$I67*Utility!L51 -> 80.69756226 | N23: =Nexus!$I67*Utility!N51 -> 80.69756226 | O23: =Nexus!$I67*Utility!O51 -> 80.69756226 | P23: =Nexus!$I67*Utility!P51 -> 0 | Q23: 8 | R23: G2 | S23: NATIONAL
C25: BANKING | D25: CMRCL | E25: =1+E23 -> 9 | F25: FI | G25: =Nexus!$I69*Utility!G53 -> 137.7176739 | I25: =Nexus!$I69*Utility!I53 -> -137.7176739 | J25: =Nexus!$I69*Utility!J53 -> 27.54353477 | K25: =Nexus!$I69*Utility!K53 -> 27.54353477 | L25: =Nexus!$I69*Utility!L53 -> 27.54353477 | N25: =Nexus!$I69*Utility!N53 -> 27.54353477 | O25: =Nexus!$I69*Utility!O53 -> 27.54353477 | P25: =Nexus!$I69*Utility!P53 -> 0 | Q25: 9 | R25: FI | S25: CMRCL | T25: BANKING
D26: RETAIL | E26: =1+E25 -> 10 | F26: FL | G26: =Nexus!$I70*Utility!G54 -> 215.2114958 | I26: =Nexus!$I70*Utility!I54 -> -215.2114958 | J26: =Nexus!$I70*Utility!J54 -> 43.04229916 | K26: =Nexus!$I70*Utility!K54 -> 43.04229916 | L26: =Nexus!$I70*Utility!L54 -> 43.04229916 | N26: =Nexus!$I70*Utility!N54 -> 43.04229916 | O26: =Nexus!$I70*Utility!O54 -> 43.04229916 | P26: =Nexus!$I70*Utility!P54 -> 0 | Q26: 10 | R26: FL | S26: RETAIL
D27: GOVT | E27: =1+E26 -> 11 | F27: FG | G27: =Nexus!$I71*Utility!G55 -> 0 | I27: =Nexus!$I71*Utility!I55 -> 0 | J27: =Nexus!$I71*Utility!J55 -> 0 | K27: =Nexus!$I71*Utility!K55 -> 0 | L27: =Nexus!$I71*Utility!L55 -> 0 | N27: =Nexus!$I71*Utility!N55 -> 0 | O27: =Nexus!$I71*Utility!O55 -> 0 | P27: =Nexus!$I71*Utility!P55 -> 0 | Q27: 11 | R27: FG | S27: GOVT
I28: 0 | J28: I1 | K28: I2 | L28: I3 | N28: L1 | O28: L2 | P28: L3
I29: 0 | J29: 1 | K29: 2 | L29: 3 | N29: 4 | O29: 5 | P29: 6
I30: VALUE | J30: CAPITAL | K30: GENERAL | L30: NON_DUR | N30: BOURGS | O30: PRLTRT | P30: DPNDNT
I31: 0 | J31: 1 | K31: 2 | L31: 3 | N31: 4 | O31: 5 | P31: 6
I32: 0 | J32: I1 | K32: I2 | L32: I3 | N32: L1 | O32: L2 | P32: L3
E33: Q > | G33: =SUM(G14:G26) -> 12203444.92 | I33: =SUM(I14:I26) -> -10229349.33 | J33: =SUM(J14:J26) -> 2053812.207 | K33: =SUM(K14:K26) -> 2053812.207 | L33: =SUM(L14:L26) -> 2053812.207 | N33: =SUM(N14:N26)-N18 -> 2021668.846 | O33: =SUM(O14:O26)-O19 -> 2046243.859 | P33: =SUM(P14:P26)-P20 -> 0
D37: eXports | E37: X > | G37: =-Finance!H69 -> -48.28510123 | I37: =Rates!H39 -> 0 | J37: =Rates!I39 -> 0 | K37: =Rates!J39 -> 0 | L37: =Rates!K39 -> 0 | N37: =Rates!M39 -> 0 | O37: =Rates!N39 -> 0 | P37: =Rates!O39 -> 0
E39: Output > | G39: =Transactions!G35 -> -9.549694369e-12 | I39: =Nexus!X13 -> -271197.0825 | J39: =Nexus!X14 -> 99.92461844 | K39: =Nexus!X15 -> 749.4172721 | L39: =Nexus!X16 -> 3197.458855 | N39: =Nexus!X40 -> 876 | O39: =Nexus!X41 -> 8766 | P39: =Nexus!X42 -> 100
K40: Y | O40: t
D42: Supply | E42: S > | G42: =Transactions!G35 -> -9.549694369e-12 | I42: =Y00 -> -271197.0825 | J42: =J39+Rates!I61-J37 -> 99.92697759 | K42: =K39+Rates!J61-K37 -> 749.4435906 | L42: =L39+Rates!K61-L37 -> 3197.595332 | N42: =N39+Rates!M61-N37+Nexus!X18 -> 94.43555542 | O42: =O39+Rates!N61-O37+Nexus!X19 -> 2117.257046 | P42: =P39+Rates!O61-P37+Nexus!X20 -> 0
I43: 0 | J43: 1 | K43: 2 | L43: 3 | N43: 4 | O43: 5 | P43: 6
I44: 0 | J44: I1 | K44: I2 | L44: I3 | N44: L1 | O44: L2 | P44: L3
I45: VALUE | J45: CAPITAL | K45: GENERAL | L45: NON_DUR | N45: BOURGS | O45: PRLTRT | P45: DPNDNT
I46: 0 | J46: I1 | K46: I2 | L46: I3 | N46: L1 | O46: L2 | P46: L3
G47: G / $ | I47: 0 | J47: 1 | K47: 2 | L47: 3 | N47: 4 | O47: 5 | P47: 6
D48: Values | E48: Y > | G48: =IF(G33<>0,G33/(Utility!G33+G42),0) -> 0.4598353309 | I48: =IF(I33<>0,I33/(Utility!I33+I42),0) -> 1.000002476 | J48: =IF(J33<>0,J33/(Utility!J33+J42),0) -> 757.9548055 | K48: =IF(K33<>0,K33/(Utility!K33+K42),0) -> 88.28108964 | L48: =IF(L33<>0,L33/(Utility!L33+L42),0) -> 17.93117448 | N48: =IF(N33<>0,N33/(Utility!N33+N42),0) -> 536.9629566 | O48: =IF(O33<>0,O33/(Utility!O33+O42),0) -> 10.04863598 | P48: =IF(P33<>0,P33/(Utility!P33+P42),0) -> 0
I49: 0 | J49: I1 | K49: I2 | L49: I3 | N49: L1 | O49: L2 | P49: L3
I50: 0 | J50: 1 | K50: 2 | L50: 3 | N50: 4 | O50: 5 | P50: 6
I51: VALUE | J51: CAPITAL | K51: GENERAL | L51: NON_DUR | N51: BOURGS | O51: PRLTRT | P51: DPNDNT
I52: 0 | J52: I1 | K52: I2 | L52: I3 | N52: L1 | O52: L2 | P52: L3
I53: 0 | J53: 1 | K53: 2 | L53: 3 | N53: 4 | O53: 5 | P53: 6
G54: YY > | I54: =-SUM(J54:L54) -> -199231.9107 | J54: =J48*J39 -> 75738.34474 | K54: =K48*K39 -> 66159.37338 | L54: =L48*L39 -> 57334.19262
E57: Return Rate > | G57: =I54/I59-V0 -> 0.05998862111 | I57: a
E59: 0 | F59: 0 | I59: =-SUM(I60:I62) -> -187956.6505
C60: INDUSTRIES | D60: CAPITAL | E60: 1 | F60: I1 | I60: =-Rates!H14 -> 71451.28488
D61: GENERAL | E61: 2 | F61: I2 | I61: =-Rates!H15 -> 62415.58598
D62: NON_DUR | E62: 3 | F62: I3 | I62: =-Rates!H16 -> 54089.77959

Sheet PSIU
I8: VALUE | J8: CAPITAL | K8: GENERAL | L8: NON_DUR | N8: BOURGS | O8: PRLTRT | P8: DPNDNT
E9: YU > | I9: 0 | J9: 1 | K9: 2 | L9: 3 | N9: 4 | O9: 5 | P9: 6
I10: 0 | J10: I1 | K10: I2 | L10: I3 | N10: L1 | O10: L2 | P10: L3
G11: ¡ | I11: =-SUM(J11:P11) -> 12203433.14 | J11: =Value!J$48*Utility!J11 -> -2822890.696 | K11: =Value!K$48*Utility!K11 -> -2723475.044 | L11: =Value!L$48*Utility!L11 -> -2628866.536 | N11: =Value!N$48*Utility!N11 -> -1989525.431 | O11: =Value!O$48*Utility!O11 -> -2038675.432 | P11: =Value!P$48*Utility!P11 -> 0
E13: 0 | F13: 0 | G13: =-SUM(G14:G26) -> -11644967.25 | I13: =-I11-SUM(I14:I27) -> -2245306.224 | J13: =Value!J$48*Utility!J13 -> 844818.6221 | K13: =Value!K$48*Utility!K13 -> 735824.5341 | L13: =Value!L$48*Utility!L13 -> 632390.9693 | N13: =Value!N$48*Utility!N13 -> 470379.55 | O13: =Value!O$48*Utility!O13 -> 88086.34298 | P13: =Value!P$48*Utility!P13 -> 0 | Q13: 0 | R13: 0
C14: INDUSTRIES | D14: CAPITAL | E14: 1 | F14: I1 | G14: =J13-I14 -> 4618768.632 | I14: =-SUM(J14:P14) -> -3773950.01 | J14: =Value!J$48*Utility!J14 -> 746284.4974 | K14: =Value!K$48*Utility!K14 -> 751364.592 | L14: =Value!L$48*Utility!L14 -> 754673.6231 | N14: =Value!N$48*Utility!N14 -> 758360.7952 | O14: =Value!O$48*Utility!O14 -> 763266.502 | P14: =Value!P$48*Utility!P14 -> 0 | Q14: 1 | R14: I1
D15: GENERAL | E15: 2 | F15: I2 | G15: =K13-I15 -> 4021734.664 | I15: =-SUM(J15:P15) -> -3285910.129 | J15: =Value!J$48*Utility!J15 -> 650666.877 | K15: =Value!K$48*Utility!K15 -> 660785.6079 | L15: =Value!L$48*Utility!L15 -> 657059.938 | N15: =Value!N$48*Utility!N15 -> 653573.8291 | O15: =Value!O$48*Utility!O15 -> 663823.8775 | P15: =Value!P$48*Utility!P15 -> 0 | Q15: 2 | R15: I2
D16: NON_DUR | E16: 3 | F16: I3 | G16: =L13-I16 -> 3453584.983 | I16: =-SUM(J16:P16) -> -2821194.014 | J16: =Value!J$48*Utility!J16 -> 559855.5386 | K16: =Value!K$48*Utility!K16 -> 561770.7279 | L16: =Value!L$48*Utility!L16 -> 566045.6237 | N16: =Value!N$48*Utility!N16 -> 564332.8848 | O16: =Value!O$48*Utility!O16 -> 569189.2385 | P16: =Value!P$48*Utility!P16 -> 0 | Q16: 3 | R16: I3
C18: HOUSEHOLDS | D18: BOURGS | E18: 4 | F18: L1 | G18: =N18-I18 -> -380673.024 | I18: =-SUM(J18:P18)+N18 -> -71141.54527 | J18: =Value!J$48*Utility!J18 -> 14754.91713 | K18: =Value!K$48*Utility!K18 -> 11956.80672 | L18: =Value!L$48*Utility!L18 -> 14275.90897 | N18: =Value!N$48*Utility!N18 -> -451814.5692 | O18: =Value!O$48*Utility!O18 -> 30153.91246 | P18: =Value!P$48*Utility!P18 -> 0 | Q18: 4 | R18: L1
D19: PRLTRT | E19: 5 | F19: L2 | G19: =O19-I19 -> -56096.70829 | I19: =-SUM(J19:P19)+O19 -> -18282.51694 | J19: =Value!J$48*Utility!J19 -> 6567.661488 | K19: =Value!K$48*Utility!K19 -> 2288.55302 | L19: =Value!L$48*Utility!L19 -> 4688.968877 | N19: =Value!N$48*Utility!N19 -> 4737.333558 | O19: =Value!O$48*Utility!O19 -> -74379.22523 | P19: =Value!P$48*Utility!P19 -> 0 | Q19: 5 | R19: L2
D20: DPNDNT | E20: 6 | F20: L3 | G20: =P20-I20 -> -941.833107 | I20: =-SUM(J20:P20)+P20 -> 941.833107 | J20: =Value!J$48*Utility!J20 -> 43.02211668 | K20: =Value!K$48*Utility!K20 -> -384.8868693 | L20: =Value!L$48*Utility!L20 -> -144.8434901 | N20: =Value!N$48*Utility!N20 -> -395.5755324 | O20: =Value!O$48*Utility!O20 -> -59.54933188 | P20: =Value!P$48*Utility!P20 -> 0 | Q20: 6 | R20: L3
C22: GOVERNANCE | D22: LOCAL | E22: 7 | F22: G1 | G22: =-I22 -> -4134.536415 | I22: =-SUM(J22:P22) -> 4134.536415 | J22: =Value!J$48*Utility!J22 -> -33.84237355 | K22: =Value!K$48*Utility!K22 -> 37.88454018 | L22: =Value!L$48*Utility!L22 -> 2.445863342 | N22: =Value!N$48*Utility!N22 -> -3588.931351 | O22: =Value!O$48*Utility!O22 -> -552.0930935 | P22: =Value!P$48*Utility!P22 -> 0 | Q22: 7 | R22: G1
D23: NATIONAL | E23: 8 | F23: G2 | G23: =-I23 -> -6108.912263 | I23: =-SUM(J23:P23) -> 6108.912263 | J23: =Value!J$48*Utility!J23 -> -11.48926757 | K23: =Value!K$48*Utility!K23 -> 119.2989554 | L23: =Value!L$48*Utility!L23 -> 53.3192223 | N23: =Value!N$48*Utility!N23 -> -5465.353317 | O23: =Value!O$48*Utility!O23 -> -804.6878562 | P23: =Value!P$48*Utility!P23 -> 0 | Q23: 8 | R23: G2
C25: BANKING | D25: CMRCL | E25: =1+E23 -> 9 | F25: FI | G25: =-I25 -> -682.9783716 | I25: =-SUM(J25:P25) -> 682.9783716 | J25: =Value!J$48*Utility!J25 -> -3.307485854 | K25: =Value!K$48*Utility!K25 -> -11.53115588 | L25: =Value!L$48*Utility!L25 -> -6.18722929 | N25: =Value!N$48*Utility!N25 -> -620.9418638 | O25: =Value!O$48*Utility!O25 -> -41.01063674 | P25: =Value!P$48*Utility!P25 -> 0 | Q25: 9 | R25: FI
D26: RETAIL | E26: =1+E25 -> 10 | F26: FL | G26: =-I26 -> -483.0389322 | I26: =-SUM(J26:P26) -> 483.0389322 | J26: =Value!J$48*Utility!J26 -> -51.8006602 | K26: =Value!K$48*Utility!K26 -> -276.5429439 | L26: =Value!L$48*Utility!L26 -> -173.2299452 | N26: =Value!N$48*Utility!N26 -> 26.41019722 | O26: =Value!O$48*Utility!O26 -> -7.875580135 | P26: =Value!P$48*Utility!P26 -> 0 | Q26: 10 | R26: FL
D27: GOVT | E27: =1+E26 -> 11 | F27: FG | G27: =-I27 -> 0 | I27: =-SUM(J27:P27) -> 0 | J27: =Value!J$48*Utility!J27 -> 0 | K27: =Value!K$48*Utility!K27 -> 0 | L27: =Value!L$48*Utility!L27 -> 0 | N27: =Value!N$48*Utility!N27 -> 0 | O27: =Value!O$48*Utility!O27 -> 0 | P27: =Value!P$48*Utility!P27 -> 0 | Q27: 11 | R27: FG
I28: 0 | J28: I1 | K28: I2 | L28: I3 | N28: L1 | O28: L2 | P28: L3
I29: 0 | J29: 1 | K29: 2 | L29: 3 | N29: 4 | O29: 5 | P29: 6
I30: VALUE | J30: CAPITAL | K30: GENERAL | L30: NON_DUR | N30: BOURGS | O30: PRLTRT | P30: DPNDNT
I31: 0
I32: 0
G33: HQ - ¡ | I33: a
N34: n
E35: 0 | F35: 0 | G35: =-SUM(G36:G38) -> 11244.48737 | I35: =-SUM(I36:I38) -> -187956.6505 | K35: =-G35/I35 -> 0.05982489763 | N35: =-N44 -> -0.04535139756
C36: INDUSTRIES | D36: CAPITAL | E36: 1 | F36: I1 | G36: =Value!G14-PSIU!G14 -> -4273.565116 | I36: =-Rates!H14 -> 71451.28488 | K36: =-G36/I36 -> 0.05981089246
D37: GENERAL | E37: 2 | F37: I2 | G37: =Value!G15-PSIU!G15 -> -3731.865044 | I37: =-Rates!H15 -> 62415.58598 | K37: =-G37/I37 -> 0.05979059533
D38: NON_DUR | E38: 3 | F38: I3 | G38: =Value!G16-PSIU!G16 -> -3239.057212 | I38: =-Rates!H16 -> 54089.77959 | K38: =-G38/I38 -> 0.05988298041
C40: HOUSEHOLDS | D40: BOURGS | E40: 4 | F40: L1 | G40: =Value!G18-PSIU!G18 -> 477103.1072
D41: PRLTRT | E41: 5 | F41: L2 | G41: =Value!G19-PSIU!G19 -> 78801.75119
D42: DPNDNT | E42: 6 | F42: L3 | G42: =Value!G20-PSIU!G20 -> 1510.402854 | K42: tax
K43: rates
C44: GOVERNANCE | D44: LOCAL | E44: 7 | F44: G1 | G44: =Value!G22-PSIU!G22 -> 4275.548142 | K44: 0.06 | L44: local | N44: =Value!G57*(1-K45-K44)*(1-N47) -> 0.04535139756
D45: NATIONAL | E45: 8 | F45: G2 | G45: =Value!G23-PSIU!G23 -> 6512.400074 | K45: 0.1 | L45: national
C47: BANKING | D47: CMRCL | E47: =1+E45 -> 9 | F47: FI | G47: =Value!G25-PSIU!G25 -> 820.6960455 | K47: 0.1 | L47: commercial | N47: =K47 -> 0.1
D48: RETAIL | E48: =1+E47 -> 10 | F48: FL | G48: =Value!G26-PSIU!G26 -> 698.250428 | K48: 0.1 | L48: retail
D49: GOVT | E49: =1+E48 -> 11 | F49: FG | G49: =Value!G27-PSIU!G27 -> 0 | K49: 0.1 | L49: government
K50: agents'
K51: fees

Sheet Finance
J5: GOVERNMENT | M5: COMMERCIAL BANKING | P5: RETAIL BANKING | S5: GOVERNMENT BANKING | AD5: COMMERCIAL BANKING | AH5: RETAIL BANKING | AL5: GOVERNMENT BANKING
J8: LOCAL | K8: NATIONAL | M8: SAVINGS | N8: INVESTMENT | P8: SAVINGS | Q8: INVESTMENT | S8: SAVINGS | T8: INVESTMENT | AD8: SAVINGS | AE8: INVESTMENT | AH8: SAVINGS | AI8: INVESTMENT | AL8: SAVINGS | AM8: INVESTMENT
J9: 7 | K9: 8 | M9: 9 | N9: 9 | P9: 10 | Q9: 10 | S9: 11 | T9: 11 | AD9: 9 | AE9: 9 | AH9: 10 | AI9: 10 | AL9: 11 | AM9: 11
J10: G1 | K10: G2 | M10: FI | N10: FI | P10: FL | Q10: FL | S10: FG | T10: FG | AD10: FI | AE10: FI | AH10: FL | AI10: FL | AL10: FG | AM10: FG
J11: =Boundary!R39+Boundary!R57+Boundary!R75 -> 0 | K11: =Boundary!S39+Boundary!S57+Boundary!S75 -> 0 | M11: =Boundary!U39+Boundary!U57+Boundary!U75 -> 0 | N11: =Boundary!U103 -> 0 | P11: =Boundary!V39+Boundary!V57+Boundary!V75 -> 0 | Q11: =Boundary!V103 -> 0 | S11: =Boundary!W39+Boundary!W57+Boundary!W75 -> 0 | T11: =Boundary!W103 -> 0
M12: g | N12: k | P12: g | Q12: k | S12: g | T12: k | AA12: Margin | AD12: =1/9 -> 0.1111111111 | AH12: =1/9 -> 0.1111111111 | AL12: =IF(AM15>0,1/AM15-1,0) -> 0
F13: 0 | G13: 0 | J13: =Boundary!R41+Boundary!R59+Boundary!R77 -> 0 | K13: =Boundary!S41+Boundary!S59+Boundary!S77 -> 0 | M13: =Boundary!U41+Boundary!U59+Boundary!U77 -> 0 | N13: =Boundary!V41+Boundary!V59+Boundary!V77 -> 0 | P13: =Boundary!X41+Boundary!X59+Boundary!X77 -> 0 | Q13: =Boundary!Y41+Boundary!Y59+Boundary!Y77 -> 0 | S13: =Boundary!AA41+Boundary!AA59+Boundary!AA77 -> 0 | T13: =Boundary!#REF!+Boundary!#REF!+Boundary!#REF! ->  | U13: 0 | V13: 0
D14: INDUSTRIES | E14: CAPITAL | F14: 1 | G14: I1 | J14: =Boundary!R42+Boundary!R60+Boundary!R78 -> 512.5268333 | K14: =Boundary!S42+Boundary!S60+Boundary!S78 -> 854.2113889 | M14: =Boundary!U42+Boundary!U60+Boundary!U78 -> 0 | N14: =Boundary!U106 -> 175394.4416 | P14: =Boundary!V42+Boundary!V60+Boundary!V78 -> 0 | Q14: =Boundary!V106 -> 0 | S14: =Boundary!W42+Boundary!W60+Boundary!W78 -> 0 | T14: =Boundary!W106 -> 0 | U14: I1 | V14: 1 | W14: CAPITAL | X14: INDUSTRIES
E15: GENERAL | F15: 2 | G15: I2 | J15: =Boundary!R43+Boundary!R61+Boundary!R79 -> 447.7168974 | K15: =Boundary!S43+Boundary!S61+Boundary!S79 -> 746.1948291 | M15: =Boundary!U43+Boundary!U61+Boundary!U79 -> 0 | N15: =Boundary!U107 -> 153204.0827 | P15: =Boundary!V43+Boundary!V61+Boundary!V79 -> 0 | Q15: =Boundary!V107 -> 0 | S15: =Boundary!W43+Boundary!W61+Boundary!W79 -> 0 | T15: =Boundary!W107 -> 0 | U15: I2 | V15: 2 | W15: GENERAL | AA15: T | AB15: n | AD15: =GetTerm(AE15,N25,M25,AD12,Boundary!U97) -> 6.176225046 | AE15: =Nu -> -0.04535139756 | AH15: =GetTerm(AI15,Q26,P26,AH12,Boundary!V97) -> 6.174146534 | AI15: =Nu -> -0.04535139756 | AL15: =GetTerm(AM15,T27,S27,AL12,Boundary!W97) -> 0 | AM15: =Nu -> -0.04535139756
E16: NON_DUR | F16: 3 | G16: I3 | J16: =Boundary!R44+Boundary!R62+Boundary!R80 -> 388.0025069 | K16: =Boundary!S44+Boundary!S62+Boundary!S80 -> 646.6708449 | M16: =Boundary!U44+Boundary!U62+Boundary!U80 -> 0 | N16: =Boundary!U108 -> 132766.161 | P16: =Boundary!V44+Boundary!V62+Boundary!V80 -> 0 | Q16: =Boundary!V108 -> 0 | S16: =Boundary!W44+Boundary!W62+Boundary!W80 -> 0 | T16: =Boundary!W108 -> 0 | U16: I3 | V16: 3 | W16: NON_DUR
D18: HOUSEHOLDS | E18: BOURGS | F18: 4 | G18: L1 | J18: =Boundary!R46+Boundary!R64+Boundary!R82 -> 6993.752238 | K18: =Boundary!S46+Boundary!S64+Boundary!S82 -> 11656.25373 | M18: =Boundary!U46+Boundary!U64+Boundary!U82 -> -333424.6385 | N18: =Boundary!U110 -> 0 | P18: =Boundary!V46+Boundary!V64+Boundary!V82 -> -318682.3753 | Q18: =Boundary!V110 -> 0 | S18: =Boundary!W46+Boundary!W64+Boundary!W82 -> 0 | T18: =Boundary!W110 -> 0 | U18: L1 | V18: 4 | W18: BOURGS | X18: HOUSEHOLDS | AA18: NPV | AB18: P | AD18: =IF(M33>0,(1+N33)^(-1/M33),0) -> 0.7603817318 | AE18: =IF(AD18>0,1/AD18-1,0) -> 0.3151289124 | AH18: =IF(P33>0,(1+Q33)^(-1/P33),0) -> 0.7604518334 | AI18: =IF(AH18>0,1/AH18-1,0) -> 0.3150076784 | AL18: =IF(S33>0,(1+T33)^(-1/S33),0) -> 0 | AM18: =IF(AL18>0,1/AL18-1,0) -> 0
E19: PRLTRT | F19: 5 | G19: L2 | J19: =Boundary!R47+Boundary!R65+Boundary!R83 -> 1460.042177 | K19: =Boundary!S47+Boundary!S65+Boundary!S83 -> 2433.403628 | M19: =Boundary!U47+Boundary!U65+Boundary!U83 -> -34679.68457 | N19: =Boundary!U111 -> 0 | P19: =Boundary!V47+Boundary!V65+Boundary!V83 -> 0 | Q19: =Boundary!V111 -> 398374.9679 | S19: =Boundary!W47+Boundary!W65+Boundary!W83 -> 0 | T19: =Boundary!W111 -> 0 | U19: L2 | V19: 5 | W19: PRLTRT
E20: DPNDNT | F20: 6 | G20: L3 | J20: =Boundary!R48+Boundary!R66+Boundary!R84 -> -1230.932129 | K20: =Boundary!S48+Boundary!S66+Boundary!S84 -> -2051.553549 | M20: =Boundary!U48+Boundary!U66+Boundary!U84 -> 0 | N20: =Boundary!U112 -> 0 | P20: =Boundary!V48+Boundary!V66+Boundary!V84 -> 0 | Q20: =Boundary!V112 -> -23.22383318 | S20: =Boundary!W48+Boundary!W66+Boundary!W84 -> 0 | T20: =Boundary!W112 -> 0 | U20: L3 | V20: 6 | W20: DPNDNT | AA20: 1 | AD20: FI | AE20: FI | AH20: FL | AI20: FL | AL20: FG | AM20: FG
AA21: (1 - n)T | AD21: 9 | AE21: 9 | AH21: 10 | AI21: 10 | AL21: 11 | AM21: 11
D22: GOVERNANCE | E22: LOCAL | F22: 7 | G22: G1 | J22: =Boundary!R50+Boundary!R68+Boundary!R86 -> -9292.361207 | K22: =Boundary!S50+Boundary!S68+Boundary!S86 -> 0 | M22: =Boundary!U50+Boundary!U68+Boundary!U86 -> 0 | N22: =Boundary!U114 -> -59.40055903 | P22: =Boundary!V50+Boundary!V68+Boundary!V86 -> 0 | Q22: =Boundary!V114 -> 0 | S22: =Boundary!W50+Boundary!W68+Boundary!W86 -> 0 | T22: =Boundary!W114 -> 0 | U22: G1 | V22: 7 | W22: LOCAL | X22: GOVERNANCE | AD22: SAVINGS | AE22: INVESTMENT | AI22: SAVINGS | AJ22: INVESTMENT | AL22: SAVINGS | AM22: INVESTMENT
E23: NATIONAL | F23: 8 | G23: G2 | J23: =Boundary!R51+Boundary!R69+Boundary!R87 -> 500 | K23: =Boundary!S51+Boundary!S69+Boundary!S87 -> -14653.93535 | M23: =Boundary!U51+Boundary!U69+Boundary!U87 -> 0 | N23: =Boundary!U115 -> -90.37099968 | P23: =Boundary!V51+Boundary!V69+Boundary!V87 -> 0 | Q23: =Boundary!V115 -> 0 | S23: =Boundary!W51+Boundary!W69+Boundary!W87 -> 0 | T23: =Boundary!W115 -> 0 | U23: G2 | V23: 8 | W23: NATIONAL
D25: BANKING | E25: CMRCL | F25: =1+F23 -> 9 | G25: FI | J25: =Boundary!R53+Boundary!R71+Boundary!R89 -> 113.252684 | K25: =Boundary!S53+Boundary!S71+Boundary!S89 -> 188.7544733 | M25: =Boundary!U53+Boundary!U71+Boundary!U89 -> 368104.3231 | N25: =Boundary!U117 -> -460150.2255 | P25: =Boundary!V53+Boundary!V71+Boundary!V89 -> 0 | Q25: =Boundary!V117 -> 0 | S25: =Boundary!W53+Boundary!W71+Boundary!W89 -> 0 | T25: =Boundary!W117 -> 0 | U25: F1 | V25: 9 | W25: RETAIL | X25: BANKING | AD25: COMMERCIAL BANKING | AH25: RETAIL BANKING | AL25: GOVERNMENT BANKING
E26: RETAIL | F26: =1+F25 -> 10 | G26: FL | J26: =Boundary!R54+Boundary!R72+Boundary!R90 -> 108 | K26: =Boundary!S54+Boundary!S72+Boundary!S90 -> 180 | M26: =Boundary!U54+Boundary!U72+Boundary!U90 -> 0 | N26: =Boundary!U118 -> 0 | P26: =Boundary!V54+Boundary!V72+Boundary!V90 -> 318682.3753 | Q26: =Boundary!V118 -> -398351.7441 | S26: =Boundary!W54+Boundary!W72+Boundary!W90 -> 0 | T26: =Boundary!W118 -> 0 | U26: F2 | V26: 10 | W26: COMMERCIAL
E27: GOVT | F27: =1+F26 -> 11 | G27: FG | J27: =Boundary!R55+Boundary!R73+Boundary!R91 -> 0 | K27: =Boundary!S55+Boundary!S73+Boundary!S91 -> 0 | M27: =Boundary!U55+Boundary!U73+Boundary!U91 -> 0 | N27: =Boundary!U119 -> 0 | P27: =Boundary!V55+Boundary!V73+Boundary!V91 -> 0 | Q27: =Boundary!V119 -> 0 | S27: =Boundary!W55+Boundary!W73+Boundary!W91 -> 0 | T27: =Boundary!W119 -> 0
J28: G1 | K28: G2 | M28: FI | N28: FI | P28: FL | Q28: FL | S28: FG | T28: FG
J29: 7 | K29: 8 | M29: 9 | N29: 9 | P29: 10 | Q29: 10 | S29: 11 | T29: 11
J30: LOCAL | K30: NATIONAL | M30: SAVINGS | N30: INVESTMENT | P30: SAVINGS | Q30: INVESTMENT | S30: SAVINGS | T30: INVESTMENT
J31: 9 | K31: 9 | M31: 9 | N31: 9 | P31: 10 | Q31: 10 | S31: 11 | T31: 11
J32: F1 | K32: F1 | M32: FI | N32: FI | P32: FL | Q32: FL | S32: FG | T32: FG
J33: =Boundary!R33 -> 1 | K33: =Boundary!S33 -> 1 | M33: =IF(AD15>0,1/AD15,0) -> 0.1619111986 | N33: =-AE15 -> 0.04535139756 | P33: =IF(AH15>0,1/AH15,0) -> 0.1619657056 | Q33: =-AI15 -> 0.04535139756 | S33: =IF(AL15>0,1/AL15,0) -> 0 | T33: =-AM15 -> 0.04535139756 | W33: 1/T | X33: -n
J34: G1 | K34: G2 | M34: FI | N34: FI | P34: FL | Q34: FL | S34: FG | T34: FG
J35: 7 | K35: 8 | M35: 9 | N35: 9 | P35: 10 | Q35: 10 | S35: 11 | T35: 11
J36: LOCAL | K36: NATIONAL | M36: SAVINGS | N36: INVESTMENT | P36: SAVINGS | Q36: INVESTMENT | S36: SAVINGS | T36: INVESTMENT
J37: 7 | K37: 8 | M37: 9 | N37: 9 | P37: 10 | Q37: 10 | S37: 11 | T37: 11
J38: G1 | K38: G2 | M38: FI | N38: FI | P38: FL | Q38: FL | S38: FG | T38: FG
J39: =J$33*J11 -> 0 | K39: =K$33*K11 -> 0 | M39: =M$33*M11 -> 0 | N39: =N$33*N11 -> 0 | P39: =P$33*P11 -> 0 | Q39: =Q$33*Q11 -> 0 | S39: =S$33*S11 -> 0 | T39: =T$33*T11 -> 0
M40: g / T | N40: -nkk | P40: g / T | Q40: -nkk | S40: g / T | T40: -nkk
F41: 0 | G41: 0 | J41: =J$33*J13 -> 0 | K41: 0 | M41: =M$33*M13 -> 0 | N41: 0 | P41: =P$33*P13 -> 0 | Q41: 0 | S41: =S$33*S13 -> 0 | U41: 0 | V41: 0
D42: INDUSTRIES | E42: CAPITAL | F42: 1 | G42: I1 | J42: 512.5268333 | K42: 854.2113889 | M42: 0 | N42: 7954.383051 | P42: 0 | Q42: 0 | S42: 0 | T42: 0 | U42: I1 | V42: 1 | W42: CAPITAL | X42: INDUSTRIES
E43: GENERAL | F43: 2 | G43: I2 | J43: 447.7168974 | K43: 746.1948291 | M43: 0 | N43: 6948.019263 | P43: 0 | Q43: 0 | S43: 0 | T43: 0 | U43: I2 | V43: 2 | W43: GENERAL
E44: NON_DUR | F44: 3 | G44: I3 | J44: 388.0025069 | K44: 646.6708449 | M44: 0 | N44: 6021.130949 | P44: 0 | Q44: 0 | S44: 0 | T44: 0 | U44: I3 | V44: 3 | W44: NON_DUR
D46: HOUSEHOLDS | E46: BOURGS | F46: 4 | G46: L1 | J46: =J$33*J18 -> 6993.752238 | K46: 11656.25373 | M46: =M$33*M18 -> -53985.18286 | N46: 0 | P46: =P$33*P18 -> -51615.61578 | Q46: 0 | S46: =S$33*S18 -> 0 | T46: 0 | U46: L1 | V46: 4 | W46: BOURGS | X46: HOUSEHOLDS
E47: PRLTRT | F47: 5 | G47: L2 | J47: 1460.042177 | K47: 2433.403628 | M47: -5615.029296 | N47: 0 | P47: 0 | Q47: 18066.86155 | S47: 0 | T47: 0 | U47: L2 | V47: 5 | W47: PRLTRT
E48: DPNDNT | F48: 6 | G48: L3 | J48: -1230.932129 | K48: -2051.553549 | M48: 0 | N48: 0 | P48: 0 | Q48: -1.053233292 | S48: 0 | T48: 0 | U48: L3 | V48: 6 | W48: DPNDNT
D50: GOVERNANCE | E50: LOCAL | F50: 7 | G50: G1 | J50: =J$33*J22 -> -9292.361207 | K50: =K$33*K22 -> 0 | M50: =M$33*M22 -> 0 | N50: =N$33*N22 -> -2.693898367 | P50: =P$33*P22 -> 0 | Q50: =Q$33*Q22 -> 0 | S50: =S$33*S22 -> 0 | T50: =T$33*T22 -> 0 | U50: G1 | V50: 7 | W50: LOCAL | X50: GOVERNANCE
E51: NATIONAL | F51: 8 | G51: G2 | J51: =J$33*J23 -> 500 | K51: =K$33*K23 -> -14653.93535 | M51: =M$33*M23 -> 0 | N51: =N$33*N23 -> -4.098451134 | P51: =P$33*P23 -> 0 | Q51: =Q$33*Q23 -> 0 | S51: =S$33*S23 -> 0 | T51: =T$33*T23 -> 0 | U51: G2 | V51: 8 | W51: NATIONAL
D53: BANKING | E53: CMRCL | F53: =1+F51 -> 9 | G53: FI | J53: =J$33*J25 -> 113.252684 | K53: 188.7544733 | M53: =M$33*M25 -> 59600.21215 | N53: -20868.45581 | P53: =P$33*P25 -> 0 | Q53: 0 | S53: =S$33*S25 -> 0 | T53: 0 | U53: F1 | V53: 9 | W53: RETAIL | X53: BANKING
E54: RETAIL | F54: =1+F53 -> 10 | G54: FL | J54: 108 | K54: 180 | M54: 0 | N54: 0 | P54: 51615.61578 | Q54: -18065.80831 | S54: 0 | T54: 0 | U54: F2 | V54: 10 | W54: COMMERCIAL
E55: GOVT | F55: =1+F54 -> 11 | G55: FG | J55: 0 | K55: 0 | M55: 0 | N55: 0 | P55: 0 | Q55: 0 | S55: 0 | T55: 0
J56: G1 | K56: G2 | M56: FI | N56: FI | P56: FL | Q56: FL | S56: FG | T56: FG
J57: 7 | K57: 8 | M57: 9 | N57: 9 | P57: 10 | Q57: 10 | S57: 11 | T57: 11
J58: LOCAL | K58: NATIONAL | M58: SAVINGS | N58: INVESTMENT | P58: SAVINGS | Q58: INVESTMENT | S58: SAVINGS | T58: INVESTMENT
J59: 7 | K59: 8 | M59: 9 | N59: 9 | P59: 10 | Q59: 10 | S59: 11 | T59: 11
J60: G1 | K60: G2 | M60: FI | N60: FI | P60: FL | Q60: FL | S60: FG | T60: FG
J61: 1 | K61: 1 | M61: =AE18 -> 0.3151289124 | N61: 1 | P61: =AI18 -> 0.3150076784 | Q61: 1 | S61: =AL15 -> 0 | T61: 1 | W61: 1/NPV - 1 | X61: 1
J62: G1 | K62: G2 | M62: FI | N62: FI | P62: FL | Q62: FL | S62: FG | T62: FG
J63: 7 | K63: 8 | M63: 9 | N63: 9 | P63: 10 | Q63: 10 | S63: 11 | T63: 11
J64: LOCAL | K64: NATIONAL | M64: SAVINGS | N64: INVESTMENT | P64: SAVINGS | Q64: INVESTMENT | S64: SAVINGS | T64: INVESTMENT
J65: 7 | K65: 8 | M65: 9 | N65: 9 | P65: 10 | Q65: 10 | S65: 11 | T65: 11
J66: G1 | K66: G2 | M66: FI | N66: FI | P66: FL | Q66: FL | S66: FG | T66: FG
J67: =J$61*Finance!J39 -> 0 | K67: =K$61*Finance!K39 -> 0 | M67: =M$61*Finance!M39 -> 0 | N67: =N$61*Finance!N39 -> 0 | P67: =P$61*Finance!P39 -> 0 | Q67: =Q$61*Finance!Q39 -> 0 | S67: =S$61*Finance!S39 -> 0 | T67: =T$61*Finance!T39 -> 0 | AD67: w | AE67: b
H68: e
F69: 0 | G69: 0 | H69: =-SUM(H70:H83) -> 48.28510123 | J69: =-J67-SUM(J70:J83) -> 5.684341886e-13 | K69: =-K67-SUM(K70:K83) -> -9.094947018e-13 | M69: =-M67-SUM(M70:M83) -> 7.275957614e-12 | N69: =-N67-SUM(N70:N83) -> -48.28510123 | P69: =-P67-SUM(P70:P83) -> 0 | Q69: =-Q67-SUM(Q70:Q83) -> 3.637978807e-12 | S69: =-S67-SUM(S70:S83) -> 0 | T69: =-T67-SUM(T70:T83) -> 0 | U69: 0 | V69: 0 | AB69: 0 | AC69: 0
D70: INDUSTRIES | E70: CAPITAL | F70: 1 | G70: I1 | H70: =-SUM(J70:T70) -> -9321.121273 | J70: =J$61*Finance!J42 -> 512.5268333 | K70: =K$61*Finance!K42 -> 854.2113889 | M70: =M$61*Finance!M42 -> 0 | N70: =N$61*Finance!N42 -> 7954.383051 | P70: =P$61*Finance!P42 -> 0 | Q70: =Q$61*Finance!Q42 -> 0 | S70: =S$61*Finance!S42 -> 0 | T70: =T$61*Finance!T42 -> 0 | U70: I1 | V70: 1 | W70: CAPITAL | X70: INDUSTRIES | AB70: I1 | AC70: 1 | AD70: =Nexus!G36 -> -0.005573145235 | AE70: =Finance!H70/Nexus!G36 -> 1672506.436
E71: GENERAL | F71: 2 | G71: I2 | H71: =-SUM(J71:T71) -> -8141.93099 | J71: =J$61*Finance!J43 -> 447.7168974 | K71: =K$61*Finance!K43 -> 746.1948291 | M71: =M$61*Finance!M43 -> 0 | N71: =N$61*Finance!N43 -> 6948.019263 | P71: =P$61*Finance!P43 -> 0 | Q71: =Q$61*Finance!Q43 -> 0 | S71: =S$61*Finance!S43 -> 0 | T71: =T$61*Finance!T43 -> 0 | U71: I2 | V71: 2 | W71: GENERAL | AB71: I2 | AC71: 2 | AD71: =Nexus!G37 -> -0.005590740244 | AE71: =Finance!H71/Nexus!G37 -> 1456324.321
E72: NON_DUR | F72: 3 | G72: I3 | H72: =-SUM(J72:T72) -> -7055.804301 | J72: =J$61*Finance!J44 -> 388.0025069 | K72: =K$61*Finance!K44 -> 646.6708449 | M72: =M$61*Finance!M44 -> 0 | N72: =N$61*Finance!N44 -> 6021.130949 | P72: =P$61*Finance!P44 -> 0 | Q72: =Q$61*Finance!Q44 -> 0 | S72: =S$61*Finance!S44 -> 0 | T72: =T$61*Finance!T44 -> 0 | U72: I3 | V72: 3 | W72: NON_DUR | AB72: I3 | AC72: 3 | AD72: =Nexus!G38 -> -0.005642027179 | AE72: =Finance!H72/Nexus!G38 -> 1250579.637
D74: HOUSEHOLDS | E74: BOURGS | F74: 4 | G74: L1 | H74: =-SUM(J74:T74) -> 14621.60129 | J74: =J$61*Finance!J46 -> 6993.752238 | K74: =K$61*Finance!K46 -> 11656.25373 | M74: =M$61*Finance!M46 -> -17012.29196 | N74: =N$61*Finance!N46 -> 0 | P74: =P$61*Finance!P46 -> -16259.31529 | Q74: =Q$61*Finance!Q46 -> 0 | S74: =S$61*Finance!S46 -> 0 | T74: =T$61*Finance!T46 -> 0 | U74: L1 | V74: 4 | W74: BOURGS | X74: HOUSEHOLDS | AB74: L1 | AC74: 4 | AD74: =Nexus!G40 -> 0.2091783023 | AE74: =Finance!H74/Nexus!G40 -> 69900.18147
E75: PRLTRT | F75: 5 | G75: L2 | H75: =-SUM(J75:T75) -> -20190.84928 | J75: =J$61*Finance!J47 -> 1460.042177 | K75: =K$61*Finance!K47 -> 2433.403628 | M75: =M$61*Finance!M47 -> -1769.458075 | N75: =N$61*Finance!N47 -> 0 | P75: =P$61*Finance!P47 -> 0 | Q75: =Q$61*Finance!Q47 -> 18066.86155 | S75: =S$61*Finance!S47 -> 0 | T75: =T$61*Finance!T47 -> 0 | U75: L2 | V75: 5 | W75: PRLTRT | AB75: L2 | AC75: 5 | AD75: =Nexus!G41 -> -1.226708438 | AE75: =Finance!H75/Nexus!G41 -> 16459.371
E76: DPNDNT | F76: 6 | G76: L3 | H76: =-SUM(J76:T76) -> 3283.538911 | J76: =J$61*Finance!J48 -> -1230.932129 | K76: =K$61*Finance!K48 -> -2051.553549 | M76: =M$61*Finance!M48 -> 0 | N76: =N$61*Finance!N48 -> 0 | P76: =P$61*Finance!P48 -> 0 | Q76: =Q$61*Finance!Q48 -> -1.053233292 | S76: =S$61*Finance!S48 -> 0 | T76: =T$61*Finance!T48 -> 0 | U76: L3 | V76: 6 | W76: DPNDNT | AB76: L3 | AC76: 6 | AD76: =Nexus!G42 -> 13.28250507 | AE76: =Finance!H76/Nexus!G42 -> 247.2078041
D78: GOVERNANCE | E78: LOCAL | F78: 7 | G78: G1 | H78: =-SUM(J78:T78) -> 9295.055106 | J78: =J$61*Finance!J50 -> -9292.361207 | K78: =K$61*Finance!K50 -> 0 | M78: =M$61*Finance!M50 -> 0 | N78: =N$61*Finance!N50 -> -2.693898367 | P78: =P$61*Finance!P50 -> 0 | Q78: =Q$61*Finance!Q50 -> 0 | S78: =S$61*Finance!S50 -> 0 | T78: =T$61*Finance!T50 -> 0 | U78: G1 | V78: 7 | W78: LOCAL | X78: GOVERNANCE | AB78: G1 | AC78: 7 | AD78: =Nexus!G44 -> 151.6016891 | AE78: =Finance!H78/Nexus!G44 -> 61.31234525
E79: NATIONAL | F79: 8 | G79: G2 | H79: =-SUM(J79:T79) -> 14158.0338 | J79: =J$61*Finance!J51 -> 500 | K79: =K$61*Finance!K51 -> -14653.93535 | M79: =M$61*Finance!M51 -> 0 | N79: =N$61*Finance!N51 -> -4.098451134 | P79: =P$61*Finance!P51 -> 0 | Q79: =Q$61*Finance!Q51 -> 0 | S79: =S$61*Finance!S51 -> 0 | T79: =T$61*Finance!T51 -> 0 | U79: G2 | V79: 8 | W79: NATIONAL | AB79: G2 | AC79: 8 | AD79: =Nexus!G45 -> 80.70114035 | AE79: =Finance!H79/Nexus!G45 -> 175.4378406
D81: BANKING | E81: CMRCL | F81: =1+F79 -> 9 | G81: FI | H81: =-SUM(J81:T81) -> 1784.698618 | J81: =J$61*Finance!J53 -> 113.252684 | K81: =K$61*Finance!K53 -> 188.7544733 | M81: =M$61*Finance!M53 -> 18781.75004 | N81: =N$61*Finance!N53 -> -20868.45581 | P81: =P$61*Finance!P53 -> 0 | Q81: =Q$61*Finance!Q53 -> 0 | S81: =S$61*Finance!S53 -> 0 | T81: =T$61*Finance!T53 -> 0 | U81: F1 | V81: 9 | W81: RETAIL | X81: BANKING | AB81: F1 | AC81: 9 | AD81: =Nexus!G47 -> 29.79626872 | AE81: =Finance!H81/Nexus!G47 -> 59.89671509
E82: RETAIL | F82: =1+F81 -> 10 | G82: FL | H82: =-SUM(J82:T82) -> 1518.49302 | J82: =J$61*Finance!J54 -> 108 | K82: =K$61*Finance!K54 -> 180 | M82: =M$61*Finance!M54 -> 0 | N82: =N$61*Finance!N54 -> 0 | P82: =P$61*Finance!P54 -> 16259.31529 | Q82: =Q$61*Finance!Q54 -> -18065.80831 | S82: =S$61*Finance!S54 -> 0 | T82: =T$61*Finance!T54 -> 0 | U82: F2 | V82: 10 | W82: COMMERCIAL | AB82: F2 | AC82: 10 | AD82: =Nexus!G48 -> 16.22249394 | AE82: =Finance!H82/Nexus!G48 -> 93.60416624
E83: GOVT | F83: =1+F82 -> 11 | G83: FG | H83: =-SUM(J83:T83) -> 0 | J83: =J$61*Finance!J55 -> 0 | K83: =K$61*Finance!K55 -> 0 | M83: =M$61*Finance!M55 -> 0 | N83: =N$61*Finance!N55 -> 0 | P83: =P$61*Finance!P55 -> 0 | Q83: =Q$61*Finance!Q55 -> 0 | S83: =S$61*Finance!S55 -> 0 | T83: =T$61*Finance!T55 -> 0 | U83: FG | V83: 11 | W83: GOVT | AB83: FG | AC83: 11 | AD83: =Nexus!G49 -> 0
J84: G1 | K84: G2 | M84: FI | N84: FI | P84: FL | Q84: FL | S84: FG | T84: FG
J85: 7 | K85: 8 | M85: 9 | N85: 9 | P85: 10 | Q85: 10 | S85: 11 | T85: 11
J86: LOCAL | K86: NATIONAL | M86: SAVINGS | N86: INVESTMENT | P86: SAVINGS | Q86: INVESTMENT | S86: SAVINGS | T86: INVESTMENT
J89: GOVERNMENT | M89: COMMERCIAL BANKING | P89: RETAIL BANKING | S89: GOVERNMENT BANKING

Sheet Price
J6: INDUSTRIES | N6: HOUSEHOLDS
I8: VALUE | J8: CAPITAL | K8: GENERAL | L8: NON_DUR | N8: BOURGS | O8: PRLTRT | P8: DPNDNT
I9: 0 | J9: 1 | K9: 2 | L9: 3 | N9: 4 | O9: 5 | P9: 6
C10: beta > | G10: Hb > | I10: 0 | J10: I1 | K10: I2 | L10: I3 | N10: L1 | O10: L2 | P10: L3
I11: =-SUM(J11:P11) -> 26538728.31 | J11: =-SUM(J13:J27) -> -6138913.841 | K11: =-SUM(K13:K27) -> -5922731.726 | L11: =-SUM(L13:L27) -> -5716987.042 | N11: =-SUM(N13:N27) -> -4326607.042 | O11: =-SUM(O13:O27) -> -4433488.663 | P11: =-SUM(P13:P27) -> 0
E13: 0 | F13: 0 | G13: =-SUM(G14:G26) -> -26538728.31 | I13: =-I11-SUM(I14:I27) -> -4293050.841 | J13: =Finance!AE70*Utility!J41 -> 1672506.436 | K13: =Finance!AE71*Utility!K41 -> 1456324.321 | L13: =Finance!AE72*Utility!L41 -> 1250579.637 | N13: =Finance!AE74*Utility!N41 -> 0 | O13: =Finance!AE75*Utility!O41 -> 0 | P13: =Finance!AE76*Utility!P41 -> 0 | Q13: 0 | R13: 0
C14: INDUSTRIES | D14: CAPITAL | E14: 1 | F14: I1 | G14: =Finance!$AE70*Utility!G42 -> 10035038.61 | I14: =Finance!$AE70*Utility!I42 -> -8362532.179 | J14: =Finance!$AE70*Utility!J42 -> 1672506.436 | K14: =Finance!$AE70*Utility!K42 -> 1672506.436 | L14: =Finance!$AE70*Utility!L42 -> 1672506.436 | N14: =Finance!$AE70*Utility!N42 -> 1672506.436 | O14: =Finance!$AE70*Utility!O42 -> 1672506.436 | P14: =Finance!$AE70*Utility!P42 -> 0 | Q14: I1 | R14: 1 | S14: CAPITAL | T14: INDUSTRIES
D15: GENERAL | E15: 2 | F15: I2 | G15: =Finance!$AE71*Utility!G43 -> 8737945.926 | I15: =Finance!$AE71*Utility!I43 -> -7281621.605 | J15: =Finance!$AE71*Utility!J43 -> 1456324.321 | K15: =Finance!$AE71*Utility!K43 -> 1456324.321 | L15: =Finance!$AE71*Utility!L43 -> 1456324.321 | N15: =Finance!$AE71*Utility!N43 -> 1456324.321 | O15: =Finance!$AE71*Utility!O43 -> 1456324.321 | P15: =Finance!$AE71*Utility!P43 -> 0 | Q15: I2 | R15: 2 | S15: GENERAL
D16: NON_DUR | E16: 3 | F16: I3 | G16: =Finance!$AE72*Utility!G44 -> 7503477.822 | I16: =Finance!$AE72*Utility!I44 -> -6252898.185 | J16: =Finance!$AE72*Utility!J44 -> 1250579.637 | K16: =Finance!$AE72*Utility!K44 -> 1250579.637 | L16: =Finance!$AE72*Utility!L44 -> 1250579.637 | N16: =Finance!$AE72*Utility!N44 -> 1250579.637 | O16: =Finance!$AE72*Utility!O44 -> 1250579.637 | P16: =Finance!$AE72*Utility!P44 -> 0 | Q16: I3 | R16: 3 | S16: NON_DUR
C18: HOUSEHOLDS | D18: BOURGS | E18: 4 | F18: L1 | G18: =Finance!$AE74*Utility!G46 -> 209700.5444 | I18: =Finance!$AE74*Utility!I46 -> -279600.7259 | J18: =Finance!$AE74*Utility!J46 -> 69900.18147 | K18: =Finance!$AE74*Utility!K46 -> 69900.18147 | L18: =Finance!$AE74*Utility!L46 -> 69900.18147 | N18: =Finance!$AE74*Utility!N46 -> -69900.18147 | O18: =Finance!$AE74*Utility!O46 -> 69900.18147 | P18: =Finance!$AE74*Utility!P46 -> 0 | Q18: L1 | R18: 4 | S18: BOURGS | T18: HOUSEHOLDS
D19: PRLTRT | E19: 5 | F19: L2 | G19: =Finance!$AE75*Utility!G47 -> 49378.11299 | I19: =Finance!$AE75*Utility!I47 -> -65837.48398 | J19: =Finance!$AE75*Utility!J47 -> 16459.371 | K19: =Finance!$AE75*Utility!K47 -> 16459.371 | L19: =Finance!$AE75*Utility!L47 -> 16459.371 | N19: =Finance!$AE75*Utility!N47 -> 16459.371 | O19: =Finance!$AE75*Utility!O47 -> -16459.371 | P19: =Finance!$AE75*Utility!P47 -> 0 | Q19: L2 | R19: 5 | S19: PRLTRT
D20: DPNDNT | E20: 6 | F20: L3 | G20: =Finance!$AE76*Utility!G48 -> 1236.039021 | I20: =Finance!$AE76*Utility!I48 -> -1236.039021 | J20: =Finance!$AE76*Utility!J48 -> 247.2078041 | K20: =Finance!$AE76*Utility!K48 -> 247.2078041 | L20: =Finance!$AE76*Utility!L48 -> 247.2078041 | N20: =Finance!$AE76*Utility!N48 -> 247.2078041 | O20: =Finance!$AE76*Utility!O48 -> 247.2078041 | P20: =Finance!$AE76*Utility!P48 -> 0 | Q20: L3 | R20: 6 | S20: DPNDNT
C22: GOVERNANCE | D22: LOCAL | E22: 7 | F22: G1 | G22: =Finance!$AE78*Utility!G50 -> 306.5617262 | I22: =Finance!$AE78*Utility!I50 -> -306.5617262 | J22: =Finance!$AE78*Utility!J50 -> 61.31234525 | K22: =Finance!$AE78*Utility!K50 -> 61.31234525 | L22: =Finance!$AE78*Utility!L50 -> 61.31234525 | N22: =Finance!$AE78*Utility!N50 -> 61.31234525 | O22: =Finance!$AE78*Utility!O50 -> 61.31234525 | P22: =Finance!$AE78*Utility!P50 -> 0 | Q22: G1 | R22: 7 | S22: LOCAL | T22: GOVERNANCE
D23: NATIONAL | E23: 8 | F23: G2 | G23: =Finance!$AE79*Utility!G51 -> 877.189203 | I23: =Finance!$AE79*Utility!I51 -> -877.189203 | J23: =Finance!$AE79*Utility!J51 -> 175.4378406 | K23: =Finance!$AE79*Utility!K51 -> 175.4378406 | L23: =Finance!$AE79*Utility!L51 -> 175.4378406 | N23: =Finance!$AE79*Utility!N51 -> 175.4378406 | O23: =Finance!$AE79*Utility!O51 -> 175.4378406 | P23: =Finance!$AE79*Utility!P51 -> 0 | Q23: G2 | R23: 8 | S23: NATIONAL
C25: BANKING | D25: CMRCL | E25: =1+E23 -> 9 | F25: FI | G25: =Finance!$AE81*Utility!G53 -> 299.4835754 | I25: =Finance!$AE81*Utility!I53 -> -299.4835754 | J25: =Finance!$AE81*Utility!J53 -> 59.89671509 | K25: =Finance!$AE81*Utility!K53 -> 59.89671509 | L25: =Finance!$AE81*Utility!L53 -> 59.89671509 | N25: =Finance!$AE81*Utility!N53 -> 59.89671509 | O25: =Finance!$AE81*Utility!O53 -> 59.89671509 | P25: =Finance!$AE81*Utility!P53 -> 0 | Q25: 9 | R25: FI | S25: CMRCL | T25: BANKING
D26: RETAIL | E26: =1+E25 -> 10 | F26: FL | G26: =Finance!$AE82*Utility!G54 -> 468.0208312 | I26: =Finance!$AE82*Utility!I54 -> -468.0208312 | J26: =Finance!$AE82*Utility!J54 -> 93.60416624 | K26: =Finance!$AE82*Utility!K54 -> 93.60416624 | L26: =Finance!$AE82*Utility!L54 -> 93.60416624 | N26: =Finance!$AE82*Utility!N54 -> 93.60416624 | O26: =Finance!$AE82*Utility!O54 -> 93.60416624 | P26: =Finance!$AE82*Utility!P54 -> 0 | Q26: 10 | R26: FL | S26: RETAIL
D27: GOVT | E27: =1+E26 -> 11 | F27: FG | G27: =Finance!$AE83*Utility!G55 -> 0 | I27: =Finance!$AE83*Utility!I55 -> 0 | J27: =Finance!$AE83*Utility!J55 -> 0 | K27: =Finance!$AE83*Utility!K55 -> 0 | L27: =Finance!$AE83*Utility!L55 -> 0 | N27: =Finance!$AE83*Utility!N55 -> 0 | O27: =Finance!$AE83*Utility!O55 -> 0 | P27: =Finance!$AE83*Utility!P55 -> 0 | Q27: 11 | R27: FG | S27: GOVT
I28: 0 | J28: I1 | K28: I2 | L28: I3 | N28: L1 | O28: L2 | P28: L3
I29: 0 | J29: 1 | K29: 2 | L29: 3 | N29: 4 | O29: 5 | P29: 6
I30: VALUE | J30: CAPITAL | K30: GENERAL | L30: NON_DUR | N30: BOURGS | O30: PRLTRT | P30: DPNDNT
I31: 0 | J31: 1 | K31: 2 | L31: 3 | N31: 4 | O31: 5 | P31: 6
I32: 0 | J32: I1 | K32: I2 | L32: I3 | N32: L1 | O32: L2 | P32: L3
I33: =I11/Nexus!I11 -> 2.17469363 | J33: =J11/Nexus!J11 -> 1648.317185 | K33: =K11/Nexus!K11 -> 191.9845792 | L33: =L11/Nexus!L11 -> 38.99486365 | M33: S:D | N33: =N11/Nexus!N11 -> 1167.729586 | O33: =O11/Nexus!O11 -> 21.852676
G34: i
E35: 0 | F35: 0 | G35: =G13/Nexus!G13 -> 1.000001819 | I35: =I13/Nexus!I13 -> 2.174698231 | J35: =J13/Nexus!J13 -> 1648.312052 | K35: =K13/Nexus!K13 -> 191.9853465 | L35: =L13/Nexus!L13 -> 38.99503941 | M35: MC | Q35: 0 | R35: 0
C36: INDUSTRIES | D36: CAPITAL | E36: 1 | F36: I1 | G36: =IF(Utility!G42<>0,G14/Nexus!G14,0) -> 0.9999953178 | I36: =IF(Utility!I42<>0,I14/Nexus!I14,0) -> 2.174683873 | J36: =IF(Utility!J42<>0,J14/Nexus!J14,0) -> 1648.312936 | K36: =IF(Utility!K42<>0,K14/Nexus!K14,0) -> 191.9834424 | L36: =IF(Utility!L42<>0,L14/Nexus!L14,0) -> 38.9946341 | N36: =IF(Utility!N42<>0,N14/Nexus!N14,0) -> 1167.724627 | O36: =IF(Utility!O42<>0,O14/Nexus!O14,0) -> 21.85260588 | P36: =IF(Utility!P42<>0,P14/Nexus!P14,0) -> 0 | Q36: I1 | R36: 1 | S36: CAPITAL | T36: INDUSTRIES
D37: GENERAL | E37: 2 | F37: I2 | G37: =IF(Utility!G43<>0,G15/Nexus!G15,0) -> 1.000005391 | I37: =IF(Utility!I43<>0,I15/Nexus!I15,0) -> 2.174705278 | J37: =IF(Utility!J43<>0,J15/Nexus!J15,0) -> 1648.32916 | K37: =IF(Utility!K43<>0,K15/Nexus!K15,0) -> 191.9853331 | L37: =IF(Utility!L43<>0,L15/Nexus!L15,0) -> 38.99501792 | N37: =IF(Utility!N43<>0,N15/Nexus!N15,0) -> 1167.73612 | O37: =IF(Utility!O43<>0,O15/Nexus!O15,0) -> 21.85282097 | P37: =IF(Utility!P43<>0,P15/Nexus!P15,0) -> 0 | Q37: I2 | R37: 2 | S37: GENERAL
D38: NON_DUR | E38: 3 | F38: I3 | G38: =IF(Utility!G44<>0,G16/Nexus!G16,0) -> 1.000005912 | I38: =IF(Utility!I44<>0,I16/Nexus!I16,0) -> 2.174706441 | J38: =IF(Utility!J44<>0,J16/Nexus!J16,0) -> 1648.329797 | K38: =IF(Utility!K44<>0,K16/Nexus!K16,0) -> 191.9854386 | L38: =IF(Utility!L44<>0,L16/Nexus!L16,0) -> 38.99503876 | N38: =IF(Utility!N44<>0,N16/Nexus!N16,0) -> 1167.736745 | O38: =IF(Utility!O44<>0,O16/Nexus!O16,0) -> 21.85283265 | P38: =IF(Utility!P44<>0,P16/Nexus!P16,0) -> 0 | Q38: I3 | R38: 3 | S38: NON_DUR
M39: VMP
C40: HOUSEHOLDS | D40: BOURGS | E40: 4 | F40: L1 | G40: =IF(Utility!G46<>0,G18/Nexus!G18,0) -> 0.9999748811 | I40: =IF(Utility!I46<>0,I18/Nexus!I18,0) -> 2.174636431 | J40: =IF(Utility!J46<>0,J18/Nexus!J18,0) -> 1648.277716 | K40: =IF(Utility!K46<>0,K18/Nexus!K18,0) -> 191.9789994 | L40: =IF(Utility!L46<>0,L18/Nexus!L18,0) -> 38.99374597 | N40: =IF(Utility!N46<>0,N18/Nexus!N18,0) -> 1167.698233 | O40: =IF(Utility!O46<>0,O18/Nexus!O18,0) -> 21.85210817 | P40: =IF(Utility!P46<>0,P18/Nexus!P18,0) -> 0 | Q40: L1 | R40: 4 | S40: BOURGS | T40: HOUSEHOLDS
D41: PRLTRT | E41: 5 | F41: L2 | G41: =IF(Utility!G47<>0,G19/Nexus!G19,0) -> 1.00002648 | I41: =IF(Utility!I47<>0,I19/Nexus!I19,0) -> 2.174743223 | J41: =IF(Utility!J47<>0,J19/Nexus!J19,0) -> 1648.330668 | K41: =IF(Utility!K47<>0,K19/Nexus!K19,0) -> 191.9885606 | L41: =IF(Utility!L47<>0,L19/Nexus!L19,0) -> 38.99566539 | N41: =IF(Utility!N47<>0,N19/Nexus!N19,0) -> 1167.75551 | O41: =IF(Utility!O47<>0,O19/Nexus!O19,0) -> 21.85318231 | P41: =IF(Utility!P47<>0,P19/Nexus!P19,0) -> 0 | Q41: L2 | R41: 5 | S41: PRLTRT
D42: DPNDNT | E42: 6 | F42: L3 | G42: =IF(Utility!G48<>0,G20/Nexus!G20,0) -> 1.000565486 | I42: =IF(Utility!I48<>0,I20/Nexus!I20,0) -> 2.173931957 | J42: =IF(Utility!J48<>0,J20/Nexus!J20,0) -> 1645.451823 | K42: =IF(Utility!K48<>0,K20/Nexus!K20,0) -> 191.8933585 | L42: =IF(Utility!L48<>0,L20/Nexus!L20,0) -> 38.9809209 | N42: =IF(Utility!N48<>0,N20/Nexus!N20,0) -> 1167.313974 | O42: =IF(Utility!O48<>0,O20/Nexus!O20,0) -> 21.844921 | Q42: L3 | R42: 6 | S42: DPNDNT
M43: VMP
C44: GOVERNANCE | D44: LOCAL | E44: 7 | F44: G1 | G44: =IF(Utility!G50<>0,G22/Nexus!G22,0) -> 1.009405916 | I44: =IF(Utility!I50<>0,I22/Nexus!I22,0) -> 2.174400194 | J44: =IF(Utility!J50<>0,J22/Nexus!J22,0) -> 1622.618905 | K44: =IF(Utility!K50<>0,K22/Nexus!K22,0) -> 191.7112977 | L44: =IF(Utility!L50<>0,L22/Nexus!L22,0) -> 38.98689817 | N44: =IF(Utility!N50<>0,N22/Nexus!N22,0) -> 1167.492968 | O44: =IF(Utility!O50<>0,O22/Nexus!O22,0) -> 21.84827067 | P44: =IF(Utility!P50<>0,P22/Nexus!P22,0) -> 0 | Q44: G1 | R44: 7 | S44: LOCAL | T44: GOVERNANCE
D45: NATIONAL | E45: 8 | F45: G2 | G45: =IF(Utility!G51<>0,G23/Nexus!G23,0) -> 1.004774215 | I45: =IF(Utility!I51<>0,I23/Nexus!I23,0) -> 2.174096228 | J45: =IF(Utility!J51<>0,J23/Nexus!J23,0) -> 1634.211483 | K45: =IF(Utility!K51<>0,K23/Nexus!K23,0) -> 191.800131 | L45: =IF(Utility!L51<>0,L23/Nexus!L23,0) -> 38.98268779 | N45: =IF(Utility!N51<>0,N23/Nexus!N23,0) -> 1167.366885 | O45: =IF(Utility!O51<>0,O23/Nexus!O23,0) -> 21.84591117 | P45: =IF(Utility!P51<>0,P23/Nexus!P23,0) -> 0 | Q45: G2 | R45: 8 | S45: NATIONAL
M46: VMP
C47: BANKING | D47: CMRCL | E47: =1+E45 -> 9 | F47: FI | G47: =IF(Utility!G53<>0,G25/Nexus!G25,0) -> 1.000179245 | I47: =IF(Utility!I53<>0,I25/Nexus!I25,0) -> 2.174643162 | J47: =IF(Utility!J53<>0,J25/Nexus!J25,0) -> 1649.90086 | K47: =IF(Utility!K53<>0,K25/Nexus!K25,0) -> 191.9274496 | L47: =IF(Utility!L53<>0,L25/Nexus!L25,0) -> 38.99338464 | N47: =IF(Utility!N53<>0,N25/Nexus!N25,0) -> 1167.687211 | O47: =IF(Utility!O53<>0,O25/Nexus!O25,0) -> 21.85190568 | P47: =IF(Utility!P53<>0,P25/Nexus!P25,0) -> 0 | Q47: 9 | R47: FI | S47: CMRCL | T47: BANKING
D48: RETAIL | E48: =1+E47 -> 10 | F48: FL | G48: =IF(Utility!G54<>0,G26/Nexus!G26,0) -> 0.9999775668 | I48: =IF(Utility!I54<>0,I26/Nexus!I26,0) -> 2.174671409 | J48: =IF(Utility!J54<>0,J26/Nexus!J26,0) -> 1648.101151 | K48: =IF(Utility!K54<>0,K26/Nexus!K26,0) -> 191.9943171 | L48: =IF(Utility!L54<>0,L26/Nexus!L26,0) -> 38.99412877 | N48: =IF(Utility!N54<>0,N26/Nexus!N26,0) -> 1167.709494 | O48: =IF(Utility!O54<>0,O26/Nexus!O26,0) -> 21.85232269 | P48: =IF(Utility!P54<>0,P26/Nexus!P26,0) -> 0 | Q48: 10 | R48: FL | S48: RETAIL
D49: GOVT | E49: =1+E48 -> 11 | F49: FG | Q49: 11 | R49: FG | S49: GOVT
I50: 0 | J50: I1 | K50: I2 | L50: I3 | N50: L1 | O50: L2 | P50: L3
I51: 0 | J51: 1 | K51: 2 | L51: 3 | N51: 4 | O51: 5 | P51: 6
I52: VALUE | J52: CAPITAL | K52: GENERAL | L52: NON_DUR | N52: BOURGS | O52: PRLTRT | P52: DPNDNT
I53: 0 | J53: 1 | K53: 2 | L53: 3 | N53: 4 | O53: 5 | P53: 6
I54: 0 | J54: I1 | K54: I2 | L54: I3 | N54: L1 | O54: L2 | P54: L3
E55: Nominal Prices > | G55: =$I55*Value!G48 -> 1.000000965 | I55: =I11/(PSIU!I11) -> 2.17469363 | J55: =$I55*Value!J48 -> 1648.319487 | K55: =$I55*Value!K48 -> 191.9843233 | L55: =$I55*Value!L48 -> 38.99481092 | N55: =$I55*Value!N48 -> 1167.729921 | O55: =$I55*Value!O48 -> 21.85270465 | P55: =$I55*Value!P48 -> 0
J56: 1509.107141 | K56: 175.7704097 | L56: 35.70163337 | N56: 1068.99988 | O56: 19.99999975 | P56: 0
D58: Prices | E58: P > | G58: 1 | I58: =$G58*I55 -> 2.17469363 | J58: =$G58*J55 -> 1648.319487 | K58: =$G58*K55 -> 191.9843233 | L58: =$G58*L55 -> 38.99481092 | N58: =$G58*N55 -> 1167.729921 | O58: =$G58*O55 -> 21.85270465 | P58: =$G58*P55 -> 0
I59: 0 | J59: I1 | K59: I2 | L59: I3 | N59: L1 | O59: L2 | P59: L3
I60: 0 | J60: 1 | K60: 2 | L60: 3 | N60: 4 | O60: 5 | P60: 6
I61: VALUE | J61: CAPITAL | K61: GENERAL | L61: NON_DUR | N61: BOURGS | O61: PRLTRT | P61: DPNDNT
J63: INDUSTRIES | N63: HOUSEHOLDS

Sheet Zeta
J5: INDUSTRIES | N5: HOUSEHOLDS
I8: VALUE | J8: CAPITAL | K8: GENERAL | L8: NON_DUR | N8: BOURGS | O8: PRLTRT | P8: DPNDNT
E9: PU > | I9: 0 | J9: 1 | K9: 2 | L9: 3 | N9: 4 | O9: 5 | P9: 6
I10: 0 | J10: I1 | K10: I2 | L10: I3 | N10: L1 | O10: L2 | P10: L3
I11: =-SUM(J11:P11) -> 26538728.31 | J11: =Price!J$58*Utility!J11 -> -6138922.415 | K11: =Price!K$58*Utility!K11 -> -5922723.83 | L11: =Price!L$58*Utility!L11 -> -5716979.311 | N11: =Price!N$58*Utility!N11 -> -4326608.283 | O11: =Price!O$58*Utility!O11 -> -4433494.475 | P11: =Price!P$58*Utility!P11 -> 0 | W11: z | Z11: p | AB11: -s
G12: u
E13: 0 | F13: 0 | G13: =-SUM(G14:G26) -> -26538728.31 | I13: =-SUM(J13:P13) -> -6027163.436 | J13: =Price!J$58*Utility!J13 -> 1837221.676 | K13: =Price!K$58*Utility!K13 -> 1600192.927 | L13: =Price!L$58*Utility!L13 -> 1375256.613 | N13: =Price!N$58*Utility!N13 -> 1022931.411 | O13: =Price!O$58*Utility!O13 -> 191560.809 | P13: =Price!P$58*Utility!P13 -> 0 | X13: 0 | Y13: 0 | AC13: 0 | AD13: 0
C14: INDUSTRIES | D14: CAPITAL | E14: 1 | F14: I1 | G14: =J13-I14 -> 10044406.72 | I14: =-SUM(J14:P14) -> -8207185.046 | J14: =Price!J$58*Utility!J14 -> 1622940.143 | K14: =Price!K$58*Utility!K14 -> 1633987.792 | L14: =Price!L$58*Utility!L14 -> 1641183.921 | N14: =Price!N$58*Utility!N14 -> 1649202.391 | O14: =Price!O$58*Utility!O14 -> 1659870.8 | P14: =Price!P$58*Utility!P14 -> 0 | W14: =Z14*Nexus!V14 -> 1672513.98 | X14: I1 | Y14: 1 | Z14: =Price!J55 -> 1648.319487 | AC14: I1 | AD14: 1 | AE14: CAPITAL | AF14: INDUSTRIES
D15: GENERAL | E15: 2 | F15: I2 | G15: =K13-I15 -> 8746040.755 | I15: =-SUM(J15:P15) -> -7145847.828 | J15: =Price!J$58*Utility!J15 -> 1415001.113 | K15: =Price!K$58*Utility!K15 -> 1437006.252 | L15: =Price!L$58*Utility!L15 -> 1428904.062 | N15: =Price!N$58*Utility!N15 -> 1421322.843 | O15: =Price!O$58*Utility!O15 -> 1443613.558 | P15: =Price!P$58*Utility!P15 -> 0 | W15: =Z15*Nexus!V15 -> 1456316.559 | X15: I2 | Y15: 2 | Z15: =Price!K55 -> 191.9843233 | AC15: I2 | AD15: 2 | AE15: GENERAL
D16: NON_DUR | E16: 3 | F16: I3 | G16: =L13-I16 -> 7510489.263 | I16: =-SUM(J16:P16) -> -6135232.65 | J16: =Price!J$58*Utility!J16 -> 1217514.274 | K16: =Price!K$58*Utility!K16 -> 1221679.223 | L16: =Price!L$58*Utility!L16 -> 1230975.812 | N16: =Price!N$58*Utility!N16 -> 1227251.13 | O16: =Price!O$58*Utility!O16 -> 1237812.211 | P16: =Price!P$58*Utility!P16 -> 0 | W16: =Z16*Nexus!V16 -> 1250572.309 | X16: I3 | Y16: 3 | Z16: =Price!L58 -> 38.99481092 | AC16: I3 | AD16: 3 | AE16: NON_DUR
C18: HOUSEHOLDS | D18: BOURGS | E18: 4 | F18: L1 | G18: =N13-I18 -> 195084.2107 | I18: =-SUM(J18:P18) -> 827847.2004 | J18: =Price!J$58*Utility!J18 -> 32087.42429 | K18: =Price!K$58*Utility!K18 -> 26002.3914 | L18: =Price!L$58*Utility!L18 -> 31045.72829 | N18: =Price!N$58*Utility!N18 -> -982558.2657 | O18: =Price!O$58*Utility!O18 -> 65575.52135 | P18: =Price!P$58*Utility!P18 -> 0 | W18: =Z18*Nexus!V18 -> 69902.07835 | X18: L1 | Y18: 4 | Z18: =-Price!N58 -> -1167.729921 | AC18: L1 | AD18: 4 | AE18: BOURGS | AF18: HOUSEHOLDS
D19: PRLTRT | E19: 5 | F19: L2 | G19: =O13-I19 -> 69567.65479 | I19: =-SUM(J19:P19) -> 121993.1542 | J19: =Price!J$58*Utility!J19 -> 14282.6516 | K19: =Price!K$58*Utility!K19 -> 4976.901674 | L19: =Price!L$58*Utility!L19 -> 10197.07075 | N19: =Price!N$58*Utility!N19 -> 10302.24911 | O19: =Price!O$58*Utility!O19 -> -161752.0273 | P19: =Price!P$58*Utility!P19 -> 0 | W19: =Z19*Nexus!V19 -> 16459.01123 | X19: L2 | Y19: 5 | Z19: =-Price!O58 -> -21.85270465 | AC19: L2 | AD19: 5 | AE19: PRLTRT
D20: DPNDNT | E20: 6 | F20: L3 | G20: =P13-I20 -> -2048.198458 | I20: =-SUM(J20:P20) -> 2048.198458 | J20: =Price!J$58*Utility!J20 -> 93.55992309 | K20: =Price!K$58*Utility!K20 -> -837.0110229 | L20: =Price!L$58*Utility!L20 -> -314.9902152 | N20: =Price!N$58*Utility!N20 -> -860.2555905 | O20: =Price!O$58*Utility!O20 -> -129.5015527 | P20: =Price!P$58*Utility!P20 -> 0 | W20: =(I20+AB20)/Utility!I48 -> 247.2787373 | X20: L3 | Y20: 6 | AB20: =Finance!J76+Finance!K76+2*Finance!Q76 -> -3284.592145 | AC20: L3 | AD20: 6 | AE20: DPNDNT
C22: GOVERNANCE | D22: LOCAL | E22: 7 | F22: G1 | G22: =-I22 -> -8991.350004 | I22: =-SUM(J22:P22) -> 8991.350004 | J22: =Price!J$58*Utility!J22 -> -73.59679418 | K22: =Price!K$58*Utility!K22 -> 82.38726821 | L22: =Price!L$58*Utility!L22 -> 5.319003429 | N22: =Price!N$58*Utility!N22 -> -7804.826148 | O22: =Price!O$58*Utility!O22 -> -1200.633334 | P22: =Price!P$58*Utility!P22 -> 0 | W22: =(I22+AB22)/Utility!I50 -> 61.27980001 | X22: G1 | Y22: 7 | AB22: =Finance!J78+Finance!K78+2*Finance!N78 -> -9297.749004 | AC22: G1 | AD22: 7 | AE22: LOCAL | AF22: GOVERNANCE
D23: NATIONAL | E23: 8 | F23: G2 | G23: =-I23 -> -13285.01258 | I23: =-SUM(J23:P23) -> 13285.01258 | J23: =Price!J$58*Utility!J23 -> -24.98563699 | K23: =Price!K$58*Utility!K23 -> 259.4386784 | L23: =Price!L$58*Utility!L23 -> 115.9529731 | N23: =Price!N$58*Utility!N23 -> -11885.46904 | O23: =Price!O$58*Utility!O23 -> -1749.949555 | P23: =Price!P$58*Utility!P23 -> 0 | W23: =(I23+AB23)/Utility!I51 -> 175.4239326 | X23: G2 | Y23: 8 | AB23: =Finance!J79+Finance!K79+2*Finance!N79 -> -14162.13225 | AC23: G2 | AD23: 8 | AE23: NATIONAL
C25: BANKING | D25: CMRCL | E25: =1+E23 -> 9 | F25: FI | G25: =-I25 -> -1485.268714 | I25: =-SUM(J25:P25) -> 1485.268714 | J25: =Price!J$58*Utility!J25 -> -7.192768418 | K25: =Price!K$58*Utility!K25 -> -25.07673124 | L25: =Price!L$58*Utility!L25 -> -13.45532812 | N25: =Price!N$58*Utility!N25 -> -1350.358316 | O25: =Price!O$58*Utility!O25 -> -89.18557049 | P25: =Price!P$58*Utility!P25 -> 0 | W25: =(I25+AB25)/Utility!I53 -> 59.88598081 | X25: FI | Y25: 9 | AB25: =-Finance!H81 -> -1784.698618 | AC25: FI | AD25: 9 | AE25: CMRCL | AF25: BANKING
D26: RETAIL | E26: =1+E25 -> 10 | F26: FL | G26: =-I26 -> -1050.461689 | I26: =-SUM(J26:P26) -> 1050.461689 | J26: =Price!J$58*Utility!J26 -> -112.6505658 | K26: =Price!K$58*Utility!K26 -> -601.3961784 | L26: =Price!L$58*Utility!L26 -> -376.7220584 | N26: =Price!N$58*Utility!N26 -> 57.43408766 | O26: =Price!O$58*Utility!O26 -> -17.12697395 | P26: =Price!P$58*Utility!P26 -> 0 | W26: =(I26+AB26)/Utility!I54 -> 93.60626613 | X26: FL | Y26: 10 | AB26: =-Finance!H82 -> -1518.49302 | AC26: FL | AD26: 10 | AE26: RETAIL
D27: GOVT | E27: =1+E26 -> 11 | F27: FG | G27: 0 | I27: 0 | J27: 0 | K27: 0 | L27: 0 | N27: 0 | O27: 0 | P27: 0 | X27: FG | Y27: 11 | AB27: =-Finance!H83 -> 0 | AC27: FG | AD27: 11 | AE27: GOVT
I28: 0 | J28: I1 | K28: I2 | L28: I3 | N28: L1 | O28: L2 | P28: L3
I29: 0 | J29: 1 | K29: 2 | L29: 3 | N29: 4 | O29: 5 | P29: 6
I30: VALUE | J30: CAPITAL | K30: GENERAL | L30: NON_DUR | N30: BOURGS | O30: PRLTRT | P30: DPNDNT
N31: 4 | O31: 5 | P31: 6
N32: L1 | O32: L2 | P32: L3 | W32: u + e | Z32: u
N33: =(G18/(Utility!G46/Nexus!G40-1)-Finance!H74)/Price!N58/(1-Nexus!V40) -> 0.0003640018645 | O33: =(G19/(Utility!G47/Nexus!G41-1)-Finance!H75)/Price!O58/(1-Nexus!V41) -> 0.01933179547 | P33: 0 | W33: h | Z33: h - w
X35: 0 | Y35: 0
W36: =Nexus!G14/Utility!G42 -> 1672514.267 | X36: I1 | Y36: 1 | Z36: =G14/(Utility!G42-Nexus!G36) -> 1672514.26
W37: =Nexus!G15/Utility!G43 -> 1456316.471 | X37: I2 | Y37: 2 | Z37: =G15/(Utility!G43-Nexus!G37) -> 1456316.478
W38: =Nexus!G16/Utility!G44 -> 1250572.243 | X38: I3 | Y38: 3 | Z38: =G16/(Utility!G44-Nexus!G38) -> 1250572.25
W40: =Nexus!G18/Utility!G46 -> 69901.93732 | X40: L1 | Y40: 4 | Z40: =G18/(Utility!G46-Nexus!G40) -> 69902.06893
W41: =Nexus!G19/Utility!G47 -> 16458.93517 | X41: L2 | Y41: 5 | Z41: =G19/(Utility!G47-Nexus!G41) -> 16459.06166
W42: =Nexus!G20/Utility!G48 -> 247.0680906 | X42: L3 | Y42: 6 | Z42: =G20/(Utility!G48-Nexus!G42) -> 247.2921466
W44: =Nexus!G22/Utility!G50 -> 60.74102034 | X44: G1 | Y44: 7 | Z44: =G22/(Utility!G50-Nexus!G44) -> 61.33183087
W45: =Nexus!G23/Utility!G51 -> 174.6042424 | X45: G2 | Y45: 8 | Z45: =G23/(Utility!G51-Nexus!G45) -> 175.4928991
W47: =Nexus!G25/Utility!G53 -> 59.88598081 | X47: FI | Y47: 9 | Z47: =G25/(Utility!G53-Nexus!G47) -> 59.89887958
W48: =Nexus!G26/Utility!G54 -> 93.60626613 | X48: FL | Y48: 10 | Z48: =G26/(Utility!G54-Nexus!G48) -> 93.60323066
W49: 0 | X49: FG | Y49: 11
W55: b | Z55: q
X57: 0 | Y57: 0
W58: =Finance!AE70 -> 1672506.436 | X58: I1 | Y58: 1 | Z58: =Nexus!I58*Price!I$58 -> 1672518.838
W59: =Finance!AE71 -> 1456324.321 | X59: I2 | Y59: 2 | Z59: =Nexus!I59*Price!I$58 -> 1456320.849
W60: =Finance!AE72 -> 1250579.637 | X60: I3 | Y60: 3 | Z60: =Nexus!I60*Price!I$58 -> 1250574.218
W62: =Finance!AE74 -> 69900.18147 | X62: L1 | Y62: 4 | Z62: =Nexus!I62*Price!I$58 -> 69901.96255
W63: =Finance!AE75 -> 16459.371 | X63: L2 | Y63: 5 | Z63: =Nexus!I63*Price!I$58 -> 16458.83739
W64: =Finance!AE76 -> 247.2078041 | X64: L3 | Y64: 6 | Z64: =Nexus!I64*Price!I$58 -> 247.2930015
W66: =Finance!AE78 -> 61.31234525 | X66: G1 | Y66: 7 | Z66: =Nexus!I66*Price!I$58 -> 61.3314611
W67: =Finance!AE79 -> 175.4378406 | X67: G2 | Y67: 8 | Z67: =Nexus!I67*Price!I$58 -> 175.4924746
W69: =Finance!AE81 -> 59.89671509 | X69: FI | Y69: 9 | Z69: =Nexus!I69*Price!I$58 -> 59.89874962
W70: =Finance!AE82 -> 93.60416624 | X70: FL | Y70: 10 | Z70: =Nexus!I70*Price!I$58 -> 93.60381381
W71: 0 | X71: FG | Y71: 11 | Z71: 0

Sheet Demand
J6: INDUSTRIES | N6: HOUSEHOLDS
I8: VALUE | J8: CAPITAL | K8: GENERAL | L8: NON_DUR | N8: BOURGS | O8: PRLTRT | P8: DPNDNT
I9: 0 | J9: 1 | K9: 2 | L9: 3 | N9: 4 | O9: 5 | P9: 6
E10: zeta > | G10: Hz > | I10: 0 | J10: I1 | K10: I2 | L10: I3 | N10: L1 | O10: L2 | P10: L3
I11: =-SUM(J11:P11) -> 26538687.73 | J11: =-SUM(J13:J27) -> -6138915.393 | K11: =-SUM(K13:K27) -> -5922717.972 | L11: =-SUM(L13:L27) -> -5716973.722 | N11: =-SUM(N13:N27) -> -4326597.256 | O11: =-SUM(O13:O27) -> -4433483.391 | P11: =-SUM(P13:P27) -> 0
E13: 0 | F13: 0 | G13: =-SUM(G14:G26) -> -26538687.73 | I13: =-SUM(J13:P13) -> -4379402.849 | J13: =Zeta!W14*Utility!J41 -> 1672513.98 | K13: =Zeta!$W15*Utility!K41 -> 1456316.559 | L13: =Zeta!$W16*Utility!L41 -> 1250572.309 | N13: =Zeta!$W13*Utility!N41 -> 0 | O13: =Zeta!$W13*Utility!O41 -> 0 | P13: =Zeta!$W13*Utility!P41 -> 0 | Q13: 0 | R13: 0
C14: INDUSTRIES | D14: CAPITAL | E14: 1 | F14: I1 | G14: =Zeta!$W14*Utility!G42 -> 10035083.88 | I14: =Zeta!$W14*Utility!I42 -> -8362569.901 | J14: =Zeta!$W14*Utility!J42 -> 1672513.98 | K14: =Zeta!$W14*Utility!K42 -> 1672513.98 | L14: =Zeta!$W14*Utility!L42 -> 1672513.98 | N14: =Zeta!$W14*Utility!N42 -> 1672513.98 | O14: =Zeta!$W14*Utility!O42 -> 1672513.98 | P14: =Zeta!$W14*Utility!P42 -> 0 | Q14: I1 | R14: 1 | S14: CAPITAL | T14: INDUSTRIES
D15: GENERAL | E15: 2 | F15: I2 | G15: =Zeta!$W15*Utility!G43 -> 8737899.356 | I15: =Zeta!$W15*Utility!I43 -> -7281582.797 | J15: =Zeta!$W15*Utility!J43 -> 1456316.559 | K15: =Zeta!$W15*Utility!K43 -> 1456316.559 | L15: =Zeta!$W15*Utility!L43 -> 1456316.559 | N15: =Zeta!$W15*Utility!N43 -> 1456316.559 | O15: =Zeta!$W15*Utility!O43 -> 1456316.559 | P15: =Zeta!$W15*Utility!P43 -> 0 | Q15: I2 | R15: 2 | S15: GENERAL
D16: NON_DUR | E16: 3 | F16: I3 | G16: =Zeta!$W16*Utility!G44 -> 7503433.855 | I16: =Zeta!$W16*Utility!I44 -> -6252861.546 | J16: =Zeta!$W16*Utility!J44 -> 1250572.309 | K16: =Zeta!$W16*Utility!K44 -> 1250572.309 | L16: =Zeta!$W16*Utility!L44 -> 1250572.309 | N16: =Zeta!$W16*Utility!N44 -> 1250572.309 | O16: =Zeta!$W16*Utility!O44 -> 1250572.309 | P16: =Zeta!$W16*Utility!P44 -> 0 | Q16: I3 | R16: 3 | S16: NON_DUR
C18: HOUSEHOLDS | D18: BOURGS | E18: 4 | F18: L1 | G18: =Zeta!$W18*Utility!G46 -> 209706.2351 | I18: =Zeta!$W18*Utility!I46 -> -279608.3134 | J18: =Zeta!$W18*Utility!J46 -> 69902.07835 | K18: =Zeta!$W18*Utility!K46 -> 69902.07835 | L18: =Zeta!$W18*Utility!L46 -> 69902.07835 | N18: =Zeta!$W18*Utility!N46 -> -69902.07835 | O18: =Zeta!$W18*Utility!O46 -> 69902.07835 | P18: =Zeta!$W18*Utility!P46 -> 0 | Q18: L1 | R18: 4 | S18: BOURGS | T18: HOUSEHOLDS
D19: PRLTRT | E19: 5 | F19: L2 | G19: =Zeta!$W19*Utility!G47 -> 49377.0337 | I19: =Zeta!$W19*Utility!I47 -> -65836.04494 | J19: =Zeta!$W19*Utility!J47 -> 16459.01123 | K19: =Zeta!$W19*Utility!K47 -> 16459.01123 | L19: =Zeta!$W19*Utility!L47 -> 16459.01123 | N19: =Zeta!$W19*Utility!N47 -> 16459.01123 | O19: =Zeta!$W19*Utility!O47 -> -16459.01123 | P19: =Zeta!$W19*Utility!P47 -> 0 | Q19: L2 | R19: 5 | S19: PRLTRT
D20: DPNDNT | E20: 6 | F20: L3 | G20: =Zeta!$W20*Utility!G48 -> 1236.393686 | I20: =Zeta!$W20*Utility!I48 -> -1236.393686 | J20: =Zeta!$W20*Utility!J48 -> 247.2787373 | K20: =Zeta!$W20*Utility!K48 -> 247.2787373 | L20: =Zeta!$W20*Utility!L48 -> 247.2787373 | N20: =Zeta!$W20*Utility!N48 -> 247.2787373 | O20: =Zeta!$W20*Utility!O48 -> 247.2787373 | P20: =Zeta!$W20*Utility!P48 -> 0 | Q20: L3 | R20: 6 | S20: DPNDNT
C22: GOVERNANCE | D22: LOCAL | E22: 7 | F22: G1 | G22: =Zeta!$W22*Utility!G50 -> 306.399 | I22: =Zeta!$W22*Utility!I50 -> -306.399 | J22: =Zeta!$W22*Utility!J50 -> 61.27980001 | K22: =Zeta!$W22*Utility!K50 -> 61.27980001 | L22: =Zeta!$W22*Utility!L50 -> 61.27980001 | N22: =Zeta!$W22*Utility!N50 -> 61.27980001 | O22: =Zeta!$W22*Utility!O50 -> 61.27980001 | P22: =Zeta!$W22*Utility!P50 -> 0 | Q22: G1 | R22: 7 | S22: LOCAL | T22: GOVERNANCE
D23: NATIONAL | E23: 8 | F23: G2 | G23: =Zeta!$W23*Utility!G51 -> 877.1196629 | I23: =Zeta!$W23*Utility!I51 -> -877.1196629 | J23: =Zeta!$W23*Utility!J51 -> 175.4239326 | K23: =Zeta!$W23*Utility!K51 -> 175.4239326 | L23: =Zeta!$W23*Utility!L51 -> 175.4239326 | N23: =Zeta!$W23*Utility!N51 -> 175.4239326 | O23: =Zeta!$W23*Utility!O51 -> 175.4239326 | P23: =Zeta!$W23*Utility!P51 -> 0 | Q23: G2 | R23: 8 | S23: NATIONAL
C25: BANKING | D25: CMRCL | E25: =1+E23 -> 9 | F25: FI | G25: =Zeta!$W25*Utility!G53 -> 299.429904 | I25: =Zeta!$W25*Utility!I53 -> -299.429904 | J25: =Zeta!$W25*Utility!J53 -> 59.88598081 | K25: =Zeta!$W25*Utility!K53 -> 59.88598081 | L25: =Zeta!$W25*Utility!L53 -> 59.88598081 | N25: =Zeta!$W25*Utility!N53 -> 59.88598081 | O25: =Zeta!$W25*Utility!O53 -> 59.88598081 | P25: =Zeta!$W25*Utility!P53 -> 0 | Q25: 9 | R25: FI | S25: CMRCL | T25: BANKING
D26: RETAIL | E26: =1+E25 -> 10 | F26: FL | G26: =Zeta!$W26*Utility!G54 -> 468.0313306 | I26: =Zeta!$W26*Utility!I54 -> -468.0313306 | J26: =Zeta!$W26*Utility!J54 -> 93.60626613 | K26: =Zeta!$W26*Utility!K54 -> 93.60626613 | L26: =Zeta!$W26*Utility!L54 -> 93.60626613 | N26: =Zeta!$W26*Utility!N54 -> 93.60626613 | O26: =Zeta!$W26*Utility!O54 -> 93.60626613 | P26: =Zeta!$W26*Utility!P54 -> 0 | Q26: 10 | R26: FL | S26: RETAIL
D27: GOVT | E27: =1+E26 -> 11 | F27: FG | G27: =Zeta!$W27*Utility!G55 -> 0 | I27: =Zeta!$W27*Utility!I55 -> 0 | J27: =Zeta!$W27*Utility!J55 -> 0 | K27: =Zeta!$W27*Utility!K55 -> 0 | L27: =Zeta!$W27*Utility!L55 -> 0 | N27: =Zeta!$W27*Utility!N55 -> 0 | O27: =Zeta!$W27*Utility!O55 -> 0 | P27: =Zeta!$W27*Utility!P55 -> 0 | Q27: 11 | R27: FG | S27: GOVT
I28: 0 | J28: I1 | K28: I2 | L28: I3 | N28: L1 | O28: L2 | P28: L3
I29: 0 | J29: 1 | K29: 2 | L29: 3 | N29: 4 | O29: 5 | P29: 6
I30: VALUE | J30: CAPITAL | K30: GENERAL | L30: NON_DUR | N30: BOURGS | O30: PRLTRT | P30: DPNDNT
I31: 0 | J31: 1 | K31: 2 | L31: 3 | N31: 4 | O31: 5 | P31: 6
D32: Optimality > | G32: Q > | I32: 0 | J32: I1 | K32: I2 | L32: I3 | N32: L1 | O32: L2 | P32: L3
I33: =IF(Price!I$58>0,I11/Price!I$58,0)-Utility!I11 -> -18.65959287 | J33: =IF(Price!J$58>0,J11/Price!J$58,0)-Utility!J11 -> 0.004260020636 | K33: =IF(Price!K$58>0,K11/Price!K$58,0)-Utility!K11 -> 0.03051166842 | L33: =IF(Price!L$58>0,L11/Price!L$58,0)-Utility!L11 -> 0.143316901 | N33: =IF(Price!N$58>0,N11/Price!N$58,0)-Utility!N11 -> 0.009442508789 | O33: =IF(Price!O$58>0,O11/Price!O$58,0)-Utility!O11 -> 0.5072299006 | P33: =IF(Price!P$58>0,P11/Price!P$58,0)-Utility!P11 -> 0
G34: -f
E35: 0 | F35: 0 | G35: =IF(Price!G$58>0,G13/Price!G$58,0)-Utility!G13 -> 40.57889776 | I35: =IF(Price!I$58>0,I13/Price!I$58,0)-Utility!I13 -> 231504.0092 | J35: =IF(Price!J$58>0,J13/Price!J$58,0)-Utility!J13 -> -99.92461844 | K35: =IF(Price!K$58>0,K13/Price!K$58,0)-Utility!K13 -> -749.4172721 | L35: =IF(Price!L$58>0,L13/Price!L$58,0)-Utility!L13 -> -3197.458855 | N35: =IF(Price!N$58>0,N13/Price!N$58,0)-Utility!N13 -> -876 | O35: =IF(Price!O$58>0,O13/Price!O$58,0)-Utility!O13 -> -8766 | P35: =IF(Price!P$58>0,P13/Price!P$58,0)-Utility!P13 -> -100 | Q35: 0 | R35: 0
C36: INDUSTRIES | D36: CAPITAL | E36: 1 | F36: I1 | G36: =IF(Price!G$58>0,G14/Price!G$58,0)-Utility!G14 -> -9322.840581 | I36: =IF(Price!I$58>0,I14/Price!I$58,0)-Utility!I14 -> -71451.37739 | J36: =IF(Price!J$58>0,J14/Price!J$58,0)-Utility!J14 -> 30.07538156 | K36: =IF(Price!K$58>0,K14/Price!K$58,0)-Utility!K14 -> 200.6736151 | L36: =IF(Price!L$58>0,L14/Price!L$58,0)-Utility!L14 -> 803.4417569 | N36: =IF(Price!N$58>0,N14/Price!N$58,0)-Utility!N14 -> 19.96316899 | O36: =IF(Price!O$58>0,O14/Price!O$58,0)-Utility!O14 -> 578.5636429 | P36: =IF(Price!P$58>0,P14/Price!P$58,0)-Utility!P14 -> 0 | Q36: I1 | R36: 1 | S36: CAPITAL | T36: INDUSTRIES
D37: GENERAL | E37: 2 | F37: I2 | G37: =IF(Price!G$58>0,G15/Price!G$58,0)-Utility!G15 -> -8141.398747 | I37: =IF(Price!I$58>0,I15/Price!I$58,0)-Utility!I15 -> -62415.67421 | J37: =IF(Price!J$58>0,J15/Price!J$58,0)-Utility!J15 -> 25.06519333 | K37: =IF(Price!K$58>0,K15/Price!K$58,0)-Utility!K15 -> 100.5827279 | L37: =IF(Price!L$58>0,L15/Price!L$58,0)-Utility!L15 -> 702.9780888 | N37: =IF(Price!N$58>0,N15/Price!N$58,0)-Utility!N15 -> 29.9673031 | O37: =IF(Price!O$58>0,O15/Price!O$58,0)-Utility!O15 -> 581.3011071 | P37: =IF(Price!P$58>0,P15/Price!P$58,0)-Utility!P15 -> 0 | Q37: I2 | R37: 2 | S37: GENERAL
D38: NON_DUR | E38: 3 | F38: I3 | G38: =IF(Price!G$58>0,G16/Price!G$58,0)-Utility!G16 -> -7055.407889 | I38: =IF(Price!I$58>0,I16/Price!I$58,0)-Utility!I16 -> -54089.86993 | J38: =IF(Price!J$58>0,J16/Price!J$58,0)-Utility!J16 -> 20.05559956 | K38: =IF(Price!K$58>0,K16/Price!K$58,0)-Utility!K16 -> 150.4971096 | L38: =IF(Price!L$58>0,L16/Price!L$58,0)-Utility!L16 -> 502.541145 | N38: =IF(Price!N$58>0,N16/Price!N$58,0)-Utility!N16 -> 19.97138112 | O38: =IF(Price!O$58>0,O16/Price!O$58,0)-Utility!O16 -> 583.9139009 | P38: =IF(Price!P$58>0,P16/Price!P$58,0)-Utility!P16 -> 0 | Q38: I3 | R38: 3 | S38: NON_DUR
C40: HOUSEHOLDS | D40: BOURGS | E40: 4 | F40: L1 | G40: =IF(Price!G$58>0,G18/Price!G$58,0)-Utility!G18 -> 14622.02437 | I40: =IF(Price!I$58>0,I18/Price!I$58,0)-Utility!I18 -> -57432.11197 | J40: =IF(Price!J$58>0,J18/Price!J$58,0)-Utility!J18 -> 22.94133774 | K40: =IF(Price!K$58>0,K18/Price!K$58,0)-Utility!K18 -> 228.6628731 | L40: =IF(Price!L$58>0,L18/Price!L$58,0)-Utility!L18 -> 996.449249 | N40: =IF(Price!N$58>0,N18/Price!N$58,0)-Utility!N18 -> 781.5644446 | O40: =IF(Price!O$58>0,O18/Price!O$58,0)-Utility!O18 -> 197.9872548 | P40: =IF(Price!P$58>0,P18/Price!P$58,0)-Utility!P18 -> 0 | Q40: L1 | R40: 4 | S40: BOURGS | T40: HOUSEHOLDS
D41: PRLTRT | E41: 5 | F41: L2 | G41: =IF(Price!G$58>0,G19/Price!G$58,0)-Utility!G19 -> -20190.62109 | I41: =IF(Price!I$58>0,I19/Price!I$58,0)-Utility!I19 -> -11991.19335 | J41: =IF(Price!J$58>0,J19/Price!J$58,0)-Utility!J19 -> 1.320350605 | K41: =IF(Price!K$58>0,K19/Price!K$58,0)-Utility!K19 -> 59.80753721 | L41: =IF(Price!L$58>0,L19/Price!L$58,0)-Utility!L19 -> 160.5839428 | N41: =IF(Price!N$58>0,N19/Price!N$58,0)-Utility!N19 -> 5.272419597 | O41: =IF(Price!O$58>0,O19/Price!O$58,0)-Utility!O19 -> 6648.742954 | P41: =IF(Price!P$58>0,P19/Price!P$58,0)-Utility!P19 -> 0 | Q41: L2 | R41: 5 | S41: PRLTRT
D42: DPNDNT | E42: 6 | F42: L3 | G42: =IF(Price!G$58>0,G20/Price!G$58,0)-Utility!G20 -> 3284.592145 | I42: =IF(Price!I$58>0,I20/Price!I$58,0)-Utility!I20 -> -1510.370058 | J42: =IF(Price!J$58>0,J20/Price!J$58,0)-Utility!J20 -> 0.09325790016 | K42: =IF(Price!K$58>0,K20/Price!K$58,0)-Utility!K20 -> 5.647803641 | L42: =IF(Price!L$58>0,L20/Price!L$58,0)-Utility!L20 -> 14.41907113 | N42: =IF(Price!N$58>0,N20/Price!N$58,0)-Utility!N20 -> 0.948450757 | O42: =IF(Price!O$58>0,O20/Price!O$58,0)-Utility!O20 -> 17.24181496 | P42: =IF(Price!P$58>0,P20/Price!P$58,0)-Utility!P20 -> 100 | Q42: L3 | R42: 6 | S42: DPNDNT
C44: GOVERNANCE | D44: LOCAL | E44: 7 | F44: G1 | G44: =IF(Price!G$58>0,G22/Price!G$58,0)-Utility!G22 -> 9297.749004 | I44: =IF(Price!I$58>0,I22/Price!I$58,0)-Utility!I22 -> -4275.429364 | J44: =IF(Price!J$58>0,J22/Price!J$58,0)-Utility!J22 -> 0.08182673032 | K44: =IF(Price!K$58>0,K22/Price!K$58,0)-Utility!K22 -> -0.109943707 | L44: =IF(Price!L$58>0,L22/Price!L$58,0)-Utility!L22 -> 1.435083163 | N44: =IF(Price!N$58>0,N22/Price!N$58,0)-Utility!N22 -> 6.736237382 | O44: =IF(Price!O$58>0,O22/Price!O$58,0)-Utility!O22 -> 57.7463135 | P44: =IF(Price!P$58>0,P22/Price!P$58,0)-Utility!P22 -> 0 | Q44: G1 | R44: 7 | S44: LOCAL | T44: GOVERNANCE
D45: NATIONAL | E45: 8 | F45: G2 | G45: =IF(Price!G$58>0,G23/Price!G$58,0)-Utility!G23 -> 14162.13225 | I45: =IF(Price!I$58>0,I23/Price!I$58,0)-Utility!I23 -> -6512.242484 | J45: =IF(Price!J$58>0,J23/Price!J$58,0)-Utility!J23 -> 0.1215841778 | K45: =IF(Price!K$58>0,K23/Price!K$58,0)-Utility!K23 -> -0.437612532 | L45: =IF(Price!L$58>0,L23/Price!L$58,0)-Utility!L23 -> 1.525099316 | N45: =IF(Price!N$58>0,N23/Price!N$58,0)-Utility!N23 -> 10.32849528 | O45: =IF(Price!O$58>0,O23/Price!O$58,0)-Utility!O23 -> 88.10687366 | P45: =IF(Price!P$58>0,P23/Price!P$58,0)-Utility!P23 -> 0 | Q45: G2 | R45: 8 | S45: NATIONAL
C47: BANKING | D47: CMRCL | E47: =1+E45 -> 9 | F47: FI | G47: =IF(Price!G$58>0,G25/Price!G$58,0)-Utility!G25 -> 1784.698618 | I47: =IF(Price!I$58>0,I25/Price!I$58,0)-Utility!I25 -> -820.6666877 | J47: =IF(Price!J$58>0,J25/Price!J$58,0)-Utility!J25 -> 0.0406952352 | K47: =IF(Price!K$58>0,K25/Price!K$58,0)-Utility!K25 -> 0.4425502592 | L47: =IF(Price!L$58>0,L25/Price!L$58,0)-Utility!L25 -> 1.880796629 | N47: =IF(Price!N$58>0,N25/Price!N$58,0)-Utility!N25 -> 1.207680193 | O47: =IF(Price!O$58>0,O25/Price!O$58,0)-Utility!O25 -> 6.821652225 | P47: =IF(Price!P$58>0,P25/Price!P$58,0)-Utility!P25 -> 0 | Q47: 9 | R47: FI | S47: CMRCL | T47: BANKING
D48: RETAIL | E48: =1+E47 -> 10 | F48: FL | G48: =IF(Price!G$58>0,G26/Price!G$58,0)-Utility!G26 -> 1518.49302 | I48: =IF(Price!I$58>0,I26/Price!I$58,0)-Utility!I26 -> -698.2560663 | J48: =IF(Price!J$58>0,J26/Price!J$58,0)-Utility!J26 -> 0.1251315861 | K48: =IF(Price!K$58>0,K26/Price!K$58,0)-Utility!K26 -> 3.620099978 | L48: =IF(Price!L$58>0,L26/Price!L$58,0)-Utility!L26 -> 12.06130542 | N48: =IF(Price!N$58>0,N26/Price!N$58,0)-Utility!N26 -> 0.03097649363 | O48: =IF(Price!O$58>0,O26/Price!O$58,0)-Utility!O26 -> 5.067255603 | P48: =IF(Price!P$58>0,P26/Price!P$58,0)-Utility!P26 -> 0 | Q48: 10 | R48: FL | S48: RETAIL
D49: GOVT | E49: =1+E48 -> 11 | F49: FG | G49: =IF(Price!G$58>0,G27/Price!G$58,0)-Utility!G27 -> 0 | I49: =IF(Price!I$58>0,I27/Price!I$58,0)-Utility!I27 -> 0 | J49: =IF(Price!J$58>0,J27/Price!J$58,0)-Utility!J27 -> 0 | K49: =IF(Price!K$58>0,K27/Price!K$58,0)-Utility!K27 -> 0 | L49: =IF(Price!L$58>0,L27/Price!L$58,0)-Utility!L27 -> 0 | N49: =IF(Price!N$58>0,N27/Price!N$58,0)-Utility!N27 -> 0 | O49: =IF(Price!O$58>0,O27/Price!O$58,0)-Utility!O27 -> 0 | P49: =IF(Price!P$58>0,P27/Price!P$58,0)-Utility!P27 -> 0 | Q49: 11 | R49: FG | S49: GOVT
I50: 0 | J50: I1 | K50: I2 | L50: I3 | N50: L1 | O50: L2 | P50: L3
I51: 0 | J51: 1 | K51: 2 | L51: 3 | N51: 4 | O51: 5 | P51: 6
I52: VALUE | J52: CAPITAL | K52: GENERAL | L52: NON_DUR | N52: BOURGS | O52: PRLTRT | P52: DPNDNT
I53: 0 | J53: 1 | K53: 2 | L53: 3 | N53: 4 | O53: 5 | P53: 6
D54: Domestic | I54: 0 | J54: I1 | K54: I2 | L54: I3 | N54: L1 | O54: L2 | P54: L3
D55: Demand | E55: D > | G55: =SUM(G36:G48) -> -40.57889775 | I55: =SUM(I36:I49) -> -271197.1915 | J55: =SUM(J36:J49) -> 99.92035842 | K55: =SUM(K36:K49) -> 749.3867605 | L55: =SUM(L36:L49) -> 3197.315538 | N55: =SUM(N36:N49)-N40 -> 94.42611291 | O55: =SUM(O36:O49)-O41 -> 2116.749816 | P55: =SUM(P36:P49)-P42 -> 0
I56: 0 | J56: I1 | K56: I2 | L56: I3 | N56: L1 | O56: L2 | P56: L3
I57: 0 | J57: 1 | K57: 2 | L57: 3 | N57: 4 | O57: 5 | P57: 6
I58: VALUE | J58: CAPITAL | K58: GENERAL | L58: NON_DUR | N58: BOURGS | O58: PRLTRT | P58: DPNDNT
J60: INDUSTRIES | N60: HOUSEHOLDS

Sheet Transactions
J3: INDUSTRIES | N3: HOUSEHOLDS
D4: Demand
D5: Factors | E5: Fd > | I5: =Value!I42/Demand!I55 -> 0.9999995981 | J5: =IF(Value!J42<Demand!J55,Value!J42/Demand!J55,1) -> 1 | K5: =IF(Value!K42<Demand!K55,Value!K42/Demand!K55,1) -> 1 | L5: =IF(Value!L42<Demand!L55,Value!L42/Demand!L55,1) -> 1 | N5: =IF(Value!N42<Demand!N55,Value!N42/Demand!N55,1) -> 1 | O5: =IF(Value!O42<Demand!O55,Value!O42/Demand!O55,1) -> 1 | P5: =IF(Value!P42<Demand!P55,Value!P42/Demand!P55,1) -> 1 | X5: Taxes >
I6: 0 | J6: I1 | K6: I2 | L6: I3 | N6: L1 | O6: L2 | P6: L3
I7: 0 | J7: 1 | K7: 2 | L7: 3 | N7: 4 | O7: 5 | P7: 6
D8: Asset | I8: VALUE | J8: CAPITAL | K8: GENERAL | L8: NON_DUR | N8: BOURGS | O8: PRLTRT | P8: DPNDNT | Y8: LOCAL | Z8: NATIONAL
E9: Replenishment > | G9: R > | I9: 0 | J9: 1 | K9: 2 | L9: 3 | N9: 4 | O9: 5 | P9: 6 | Y9: 7 | Z9: 8
I10: 0 | J10: I1 | K10: I2 | L10: I3 | N10: L1 | O10: L2 | P10: L3 | Y10: G1 | Z10: G2
I11: =Value!I37 -> 0 | J11: =Value!J37 -> 0 | K11: =Value!K37 -> 0 | L11: =Value!L37 -> 0 | N11: =Value!N37 -> 0 | O11: =Value!O37 -> 0 | P11: =Value!P37 -> 0 | Y11: 0 | Z11: 0
G12: e | AC12: Taxes
E13: 0 | F13: 0 | G13: =Finance!H69 -> 48.28510123 | I13: =-I11-SUM(I14:I27) -> 271197.0825 | J13: =-Value!J39 -> -99.92461844 | K13: =-Value!K39 -> -749.4172721 | L13: =-Value!L39 -> -3197.458855 | N13: =-Value!N39 -> -876 | O13: =-Value!O39 -> -8766 | P13: =-Value!P39 -> -100 | Q13: 0 | R13: 0 | Y13: 0 | Z13: 0 | AA13: 0 | AB13: 0 | AC13: =-SUM(AC14:AC27) -> -2.160049917e-12 | AD13: 0 | AE13: 0
C14: INDUSTRIES | D14: CAPITAL | E14: 1 | F14: I1 | G14: =Finance!H70 -> -9321.121273 | I14: =I$5*Demand!I36 -> -71451.34868 | J14: =J$5*Demand!J36 -> 30.07538156 | K14: =K$5*Demand!K36 -> 200.6736151 | L14: =L$5*Demand!L36 -> 803.4417569 | N14: =N$5*Demand!N36 -> 19.96316899 | O14: =O$5*Demand!O36 -> 578.5636429 | P14: =P$5*Demand!P36 -> 0 | Q14: I1 | R14: 1 | S14: CAPITAL | T14: INDUSTRIES | Y14: 512.5268333 | Z14: 854.2113889 | AA14: 1 | AB14: I1 | AC14: =Z14+Y14 -> 1366.738222 | AD14: I1 | AE14: 1 | AF14: CAPITAL | AG14: INDUSTRIES
D15: GENERAL | E15: 2 | F15: I2 | G15: =Finance!H71 -> -8141.93099 | I15: =I$5*Demand!I37 -> -62415.64912 | J15: =J$5*Demand!J37 -> 25.06519333 | K15: =K$5*Demand!K37 -> 100.5827279 | L15: =L$5*Demand!L37 -> 702.9780888 | N15: =N$5*Demand!N37 -> 29.9673031 | O15: =O$5*Demand!O37 -> 581.3011071 | P15: =P$5*Demand!P37 -> 0 | Q15: I2 | R15: 2 | S15: GENERAL | Y15: 447.7168974 | Z15: 746.1948291 | AA15: 2 | AB15: I2 | AC15: =Z15+Y15 -> 1193.911727 | AD15: I2 | AE15: 2 | AF15: GENERAL
D16: NON_DUR | E16: 3 | F16: I3 | G16: =Finance!H72 -> -7055.804301 | I16: =I$5*Demand!I38 -> -54089.84819 | J16: =J$5*Demand!J38 -> 20.05559956 | K16: =K$5*Demand!K38 -> 150.4971096 | L16: =L$5*Demand!L38 -> 502.541145 | N16: =N$5*Demand!N38 -> 19.97138112 | O16: =O$5*Demand!O38 -> 583.9139009 | P16: =P$5*Demand!P38 -> 0 | Q16: I3 | R16: 3 | S16: NON_DUR | Y16: 388.0025069 | Z16: 646.6708449 | AA16: 3 | AB16: I3 | AC16: =Z16+Y16 -> 1034.673352 | AD16: I3 | AE16: 3 | AF16: NON_DUR
C18: HOUSEHOLDS | D18: BOURGS | E18: 4 | F18: L1 | G18: =Finance!H74 -> 14621.60129 | I18: =I$5*Demand!I40 -> -57432.08889 | J18: =J$5*Demand!J40 -> 22.94133774 | K18: =K$5*Demand!K40 -> 228.6628731 | L18: =L$5*Demand!L40 -> 996.449249 | N18: =-SUM(N11:N16)-SUM(N19:N26) -> 781.5738871 | O18: =O$5*Demand!O40 -> 197.9872548 | P18: =P$5*Demand!P40 -> 0 | Q18: L1 | R18: 4 | S18: BOURGS | T18: HOUSEHOLDS | Y18: 6993.752238 | Z18: 11656.25373 | AA18: 4 | AB18: L1 | AC18: =Z18+Y18 -> 18650.00597 | AD18: L1 | AE18: 4 | AF18: BOURGS | AG18: HOUSEHOLDS
D19: PRLTRT | E19: 5 | F19: L2 | G19: =Finance!H75 -> -20190.84928 | I19: =I$5*Demand!I41 -> -11991.18853 | J19: =J$5*Demand!J41 -> 1.320350605 | K19: =K$5*Demand!K41 -> 59.80753721 | L19: =L$5*Demand!L41 -> 160.5839428 | N19: =N$5*Demand!N41 -> 5.272419597 | O19: =-SUM(O11:O18)-SUM(O20:O26) -> 6649.250184 | P19: =P$5*Demand!P41 -> 0 | Q19: L2 | R19: 5 | S19: PRLTRT | Y19: 1460.042177 | Z19: 2433.403628 | AA19: 5 | AB19: L2 | AC19: =Z19+Y19 -> 3893.445805 | AD19: L2 | AE19: 5 | AF19: PRLTRT
D20: DPNDNT | E20: 6 | F20: L3 | G20: =Finance!H76 -> 3283.538911 | I20: =I$5*Demand!I42 -> -1510.369451 | J20: =J$5*Demand!J42 -> 0.09325790016 | K20: =K$5*Demand!K42 -> 5.647803641 | L20: =L$5*Demand!L42 -> 14.41907113 | N20: =N$5*Demand!N42 -> 0.948450757 | O20: =O$5*Demand!O42 -> 17.24181496 | P20: =-SUM(P11:P19)-SUM(P21:P26) -> 100 | Q20: L3 | R20: 6 | S20: DPNDNT | Y20: -1230.932129 | Z20: -2051.553549 | AA20: 6 | AB20: L3 | AC20: =Z20+Y20 -> -3282.485678 | AD20: L3 | AE20: 6 | AF20: DPNDNT
C22: GOVERNANCE | D22: LOCAL | E22: 7 | F22: G1 | G22: =Finance!H78 -> 9295.055106 | I22: =I$5*Demand!I44 -> -4275.427646 | J22: =J$5*Demand!J44 -> 0.08182673032 | K22: =K$5*Demand!K44 -> -0.109943707 | L22: =L$5*Demand!L44 -> 1.435083163 | N22: =N$5*Demand!N44 -> 6.736237382 | O22: =O$5*Demand!O44 -> 57.7463135 | P22: =P$5*Demand!P44 -> 0 | Q22: G1 | R22: 7 | S22: LOCAL | T22: GOVERNANCE | Y22: =-SUM(Y11:Y20,Y23:Y27) -> -9292.361207 | Z22: 0 | AA22: 7 | AB22: G1 | AC22: =Z22+Y22 -> -9292.361207 | AD22: G1 | AE22: 7 | AF22: LOCAL | AG22: GOVERNANCE
D23: NATIONAL | E23: 8 | F23: G2 | G23: =Finance!H79 -> 14158.0338 | I23: =I$5*Demand!I45 -> -6512.239867 | J23: =J$5*Demand!J45 -> 0.1215841778 | K23: =K$5*Demand!K45 -> -0.437612532 | L23: =L$5*Demand!L45 -> 1.525099316 | N23: =N$5*Demand!N45 -> 10.32849528 | O23: =O$5*Demand!O45 -> 88.10687366 | P23: =P$5*Demand!P45 -> 0 | Q23: G2 | R23: 8 | S23: NATIONAL | Y23: 500 | Z23: =-SUM(Z11:Z22,Z25:Z27) -> -14653.93535 | AA23: 8 | AB23: G2 | AC23: =Z23+Y23 -> -14153.93535 | AD23: G2 | AE23: 8 | AF23: NATIONAL
C25: BANKING | D25: CMRCL | E25: =1+E23 -> 9 | F25: FI | G25: =Finance!H81 -> 1784.698618 | I25: =I$5*Demand!I47 -> -820.6663579 | J25: =J$5*Demand!J47 -> 0.0406952352 | K25: =K$5*Demand!K47 -> 0.4425502592 | L25: =L$5*Demand!L47 -> 1.880796629 | N25: =N$5*Demand!N47 -> 1.207680193 | O25: =O$5*Demand!O47 -> 6.821652225 | P25: =P$5*Demand!P47 -> 0 | Q25: 9 | R25: FI | S25: CMRCL | T25: BANKING | Y25: 113.252684 | Z25: 188.7544733 | AA25: =1+AA23 -> 9 | AB25: FI | AC25: =Z25+Y25 -> 302.0071572 | AD25: F1 | AE25: 9 | AF25: CMRCL | AG25: BANKING
D26: RETAIL | E26: =1+E25 -> 10 | F26: FL | G26: =Finance!H82 -> 1518.49302 | I26: =I$5*Demand!I48 -> -698.2557857 | J26: =J$5*Demand!J48 -> 0.1251315861 | K26: =K$5*Demand!K48 -> 3.620099978 | L26: =L$5*Demand!L48 -> 12.06130542 | N26: =N$5*Demand!N48 -> 0.03097649363 | O26: =O$5*Demand!O48 -> 5.067255603 | P26: =P$5*Demand!P48 -> 0 | Q26: 10 | R26: FL | S26: RETAIL | Y26: 108 | Z26: 180 | AA26: =1+AA25 -> 10 | AB26: FL | AC26: =Z26+Y26 -> 288 | AD26: F2 | AE26: 10 | AF26: RETAIL
D27: GOVT | E27: =1+E26 -> 11 | F27: FG | G27: =Finance!H83 -> 0 | I27: =I$5*Demand!I49 -> 0 | J27: =J$5*Demand!J49 -> 0 | K27: =K$5*Demand!K49 -> 0 | L27: =L$5*Demand!L49 -> 0 | N27: =N$5*Demand!N49 -> 0 | O27: =O$5*Demand!O49 -> 0 | P27: =P$5*Demand!P49 -> 0 | Q27: 11 | R27: FG | S27: GOVT | Y27: 0 | Z27: 0 | AA27: =1+AA26 -> 11 | AB27: FG | AC27: =Z27+Y27 -> 0 | AD27: FG | AE27: 11 | AF27: GOVT
I28: 0 | J28: I1 | K28: I2 | L28: I3 | N28: L1 | O28: L2 | P28: L3 | Y28: G1 | Z28: G2
I29: 0 | J29: 1 | K29: 2 | L29: 3 | N29: 4 | O29: 5 | P29: 6 | Y29: 7 | Z29: 8
I30: VALUE | J30: CAPITAL | K30: GENERAL | L30: NON_DUR | N30: BOURGS | O30: PRLTRT | P30: DPNDNT | Y30: LOCAL | Z30: NATIONAL
E31: Transactions > | G31: PR > | I31: 0 | J31: 1 | K31: 2 | L31: 3 | N31: 4 | O31: 5 | P31: 6
I32: 0 | J32: I1 | K32: I2 | L32: I3 | N32: L1 | O32: L2 | P32: L3
I33: =-SUM(J33:P33) -> 0 | J33: =Price!J$58*J11 -> 0 | K33: =Price!K$58*K11 -> 0 | L33: =Price!L$58*L11 -> 0 | N33: =Price!N$58*N11 -> 0 | O33: =Price!O$58*O11 -> 0 | P33: =Price!P$58*P11 -> 0 | AC33: After Tax
G34: r | AC34: Income (-)
E35: 0 | F35: 0 | G35: =-SUM(G36:G49) -> -9.549694369e-12 | I35: =-SUM(J35:P35) -> 589770.8049 | J35: =-J33-SUM(J36:J48) -> -164700.674 | K35: =-K33-SUM(K36:K48) -> -143870.5101 | L35: =-L33-SUM(L36:L48) -> -124678.7149 | N35: =-N33-SUM(N36:N48) -> -110264.1974 | O35: =-O33-SUM(O36:O48) -> -46256.70854 | P35: =-P33-SUM(P36:P48) -> 0 | Q35: 0 | R35: 0 | AA35: 0 | AB35: 0 | AC35: =G35+AC13 -> -1.170974429e-11 | AD35: 0 | AE35: 0
C36: INDUSTRIES | D36: CAPITAL | E36: 1 | F36: I1 | G36: =J35-I36 -> -9315.818706 | I36: =-SUM(J36:P36) -> -155384.8553 | J36: =Price!J$58*J14 -> 49573.83752 | K36: =Price!K$58*K14 -> 38526.18819 | L36: =Price!L$58*L14 -> 31330.0594 | N36: =Price!N$58*N14 -> 23311.58976 | O36: =Price!O$58*O14 -> 12643.18041 | P36: =Price!P$58*P14 -> 0 | Q36: I1 | R36: 1 | S36: CAPITAL | T36: INDUSTRIES | AA36: 1 | AB36: I1 | AC36: =G36+AC14 -> -7949.080484 | AD36: I1 | AE36: 1 | AF36: CAPITAL | AG36: INDUSTRIES
D37: GENERAL | E37: 2 | F37: I2 | G37: =K35-I37 -> -8135.540985 | I37: =-SUM(J37:P37) -> -135734.9691 | J37: =Price!J$58*J15 -> 41315.44662 | K37: =Price!K$58*K15 -> 19310.30694 | L37: =Price!L$58*L15 -> 27412.49766 | N37: =Price!N$58*N15 -> 34993.71649 | O37: =Price!O$58*O15 -> 12703.00141 | P37: =Price!P$58*P15 -> 0 | Q37: I2 | R37: 2 | S37: GENERAL | AA37: 2 | AB37: I2 | AC37: =G37+AC15 -> -6941.629258 | AD37: I2 | AE37: 2 | AF37: GENERAL
D38: NON_DUR | E38: 3 | F38: I3 | G38: =L35-I38 -> -7049.819273 | I38: =-SUM(J38:P38) -> -117628.8956 | J38: =Price!J$58*J16 -> 33058.03559 | K38: =Price!K$58*K16 -> 28893.08575 | L38: =Price!L$58*L16 -> 19596.49693 | N38: =Price!N$58*N16 -> 23321.17931 | O38: =Price!O$58*O16 -> 12760.09802 | P38: =Price!P$58*P16 -> 0 | Q38: I3 | R38: 3 | S38: NON_DUR | AA38: 3 | AB38: I3 | AC38: =G38+AC16 -> -6015.145921 | AD38: I3 | AE38: 3 | AF38: NON_DUR
C40: HOUSEHOLDS | D40: BOURGS | E40: 4 | F40: L1 | G40: =N35-I40 -> 14633.05067 | I40: =-SUM(J40:P40) -> -124897.2481 | J40: =Price!J$58*J18 -> 37814.65406 | K40: =Price!K$58*K18 -> 43899.68695 | L40: =Price!L$58*L18 -> 38856.35006 | N40: 0 | O40: =Price!O$58*O18 -> 4326.557003 | P40: =Price!P$58*P18 -> 0 | Q40: L1 | R40: 4 | S40: BOURGS | T40: HOUSEHOLDS | AA40: 4 | AB40: L1 | AC40: =G40+AC18 -> 33283.05664 | AD40: L1 | AE40: 4 | AF40: BOURGS | AG40: HOUSEHOLDS
D41: PRLTRT | E41: 5 | F41: L2 | G41: =O35-I41 -> -20179.53674 | I41: =-SUM(J41:P41) -> -26077.1718 | J41: =Price!J$58*J19 -> 2176.359632 | K41: =Price!K$58*K19 -> 11482.10956 | L41: =Price!L$58*L19 -> 6261.940487 | N41: =Price!N$58*N19 -> 6156.762121 | O41: 0 | P41: =Price!P$58*P19 -> 0 | Q41: L2 | R41: 5 | S41: PRLTRT | AA41: 5 | AB41: L2 | AC41: =G41+AC19 -> -16286.09094 | AD41: L2 | AE41: 5 | AF41: PRLTRT
D42: DPNDNT | E42: 6 | F42: L3 | G42: =P35-I42 -> 3284.592145 | I42: =-SUM(J42:P42) -> -3284.592145 | J42: =Price!J$58*J20 -> 153.7188142 | K42: =Price!K$58*K20 -> 1084.28976 | L42: =Price!L$58*L20 -> 562.2689525 | N42: =Price!N$58*N20 -> 1107.534328 | O42: =Price!O$58*O20 -> 376.78029 | P42: 0 | Q42: L3 | R42: 6 | S42: DPNDNT | AA42: 6 | AB42: L3 | AC42: =G42+AC20 -> 2.106466583 | AD42: L3 | AE42: 6 | AF42: DPNDNT
C44: GOVERNANCE | D44: LOCAL | E44: 7 | F44: G1 | G44: =-I44 -> 9297.749004 | I44: =-SUM(J44:P44) -> -9297.749004 | J44: =Price!J$58*J22 -> 134.8765942 | K44: =Price!K$58*K22 -> -21.1074682 | L44: =Price!L$58*L22 -> 55.96079658 | N44: =Price!N$58*N22 -> 7866.105948 | O44: =Price!O$58*O22 -> 1261.913134 | P44: =Price!P$58*P22 -> 0 | Q44: G1 | R44: 7 | S44: LOCAL | T44: GOVERNANCE | AA44: 7 | AB44: G1 | AC44: =G44+AC22 -> 5.387796735 | AD44: G1 | AE44: 7 | AF44: LOCAL | AG44: GOVERNANCE
D45: NATIONAL | E45: 8 | F45: G2 | G45: =-I45 -> 14162.13225 | I45: =-SUM(J45:P45) -> -14162.13225 | J45: =Price!J$58*J23 -> 200.4095696 | K45: =Price!K$58*K23 -> -84.01474582 | L45: =Price!L$58*L23 -> 59.47095947 | N45: =Price!N$58*N23 -> 12060.89298 | O45: =Price!O$58*O23 -> 1925.373488 | P45: =Price!P$58*P23 -> 0 | Q45: G2 | R45: 8 | S45: NATIONAL | AA45: 8 | AB45: G2 | AC45: =G45+AC23 -> 8.196902268 | AD45: G2 | AE45: 8 | AF45: NATIONAL
C47: BANKING | D47: CMRCL | E47: =1+E45 -> 9 | F47: FI | G47: =-I47 -> 1784.698618 | I47: =-SUM(J47:P47) -> -1784.698618 | J47: =Price!J$58*J25 -> 67.07874923 | K47: =Price!K$58*K25 -> 84.96271204 | L47: =Price!L$58*L25 -> 73.34130893 | N47: =Price!N$58*N25 -> 1410.244297 | O47: =Price!O$58*O25 -> 149.0715513 | P47: =Price!P$58*P25 -> 0 | Q47: 9 | R47: FI | S47: CMRCL | T47: BANKING | AA47: FI | AB47: 9 | AC47: =G47+AC25 -> 2086.705775 | AD47: F1 | AE47: 9 | AF47: CMRCL | AG47: BANKING
D48: RETAIL | E48: =1+E47 -> 10 | F48: FL | G48: =-I48 -> 1518.49302 | I48: =-SUM(J48:P48) -> -1518.49302 | J48: =Price!J$58*J26 -> 206.2568319 | K48: =Price!K$58*K26 -> 695.0024446 | L48: =Price!L$58*L26 -> 470.3283245 | N48: =Price!N$58*N26 -> 36.17217846 | O48: =Price!O$58*O26 -> 110.7332401 | P48: =Price!P$58*P26 -> 0 | Q48: 10 | R48: FL | S48: RETAIL | AA48: FL | AB48: 10 | AC48: =G48+AC26 -> 1806.49302 | AD48: F2 | AE48: 10 | AF48: RETAIL
D49: GOVT | E49: =1+E48 -> 11 | F49: FG | G49: =-I49 -> 0 | I49: =-SUM(J49:P49) -> 0 | J49: =Price!J$58*J27 -> 0 | K49: =Price!K$58*K27 -> 0 | L49: =Price!L$58*L27 -> 0 | N49: =Price!N$58*N27 -> 0 | O49: =Price!O$58*O27 -> 0 | P49: =Price!P$58*P27 -> 0 | Q49: 11 | R49: FG | S49: GOVT | AA49: FG | AB49: 11 | AC49: =G49+AC27 -> 0 | AD49: FG | AE49: 11 | AF49: GOVT
I50: 0 | J50: I1 | K50: I2 | L50: I3 | N50: L1 | O50: L2 | P50: L3
I51: 0 | J51: 1 | K51: 2 | L51: 3 | N51: 4 | O51: 5 | P51: 6
I52: VALUE | J52: CAPITAL | K52: GENERAL | L52: NON_DUR | N52: BOURGS | O52: PRLTRT | P52: DPNDNT

Sheet Investment
V5: Debt
F6: All Financial Intermediation > | V6: Service >
J8: Passive | K8: Interest
J9: Income (-) | S9: n | T9: =Nu -> -0.04535139756 | U9: i | V9: =Price!G36 -> 0.9999953178 | W9: =Price!G37 -> 1.000005391 | X9: =Price!G38 -> 1.000005912 | AC9: 9 | AD9: 10 | AE9: 11
J10: =Finance!M67+Finance!P67+Finance!S67 -> 0 | K10: =Finance!N67+Finance!Q67+Finance!T67 -> 0 | Q10: , | AC10: FI | AD10: FL | AE10: FG
Q11: e | S11: V0 | T11: =Rates!H33 -> 1 | U11: k | V11: =Finance!N14 -> 175394.4416 | W11: =Finance!N15 -> 153204.0827 | X11: =Finance!N16 -> 132766.161 | AC11: 0 | AD11: 0 | AE11: 0
F12: 0 | G12: 0 | H12: =K12+J12 -> -48.28510123 | J12: =Finance!M69+Finance!P69+Finance!S69 -> 7.275957614e-12 | K12: =Finance!N69+Finance!Q69+Finance!T69 -> -48.28510123 | M12: 0 | N12: 0 | O12: =Transactions!V48 -> 0 | Q12: =-SUM(Q13:Q26) -> 38.90196407 | AA12: -d
D13: INDUSTRIES | E13: CAPITAL | F13: 1 | G13: I1 | H13: =K13+J13 -> 7954.383051 | J13: =Finance!M70+Finance!P70+Finance!S70 -> 0 | K13: =Finance!N70+Finance!Q70+Finance!T70 -> 7954.383051 | M13: I1 | N13: 1 | O13: =-2*K13-Q13-Transactions!AC14-J13 -> -7954.339448 | Q13: =Zeta!G14/(Utility!G42/Nexus!G36-1) -> -9321.164877 | V13: 1 | W13: 2 | X13: 3 | Y13: 0 | Z13: 0 | AA13: =-SUM(AA14:AA27) -> 13.584699 | AC13: =-AC11-SUM(AC14:AC27) -> 0 | AD13: =-AD11-SUM(AD14:AD27) -> 0 | AE13: =-AE11-SUM(AE14:AE27) -> 0 | AF13: 0 | AG13: 0
E14: GENERAL | F14: 2 | G14: I2 | H14: =K14+J14 -> 6948.019263 | J14: =Finance!M71+Finance!P71+Finance!S71 -> 0 | K14: =Finance!N71+Finance!Q71+Finance!T71 -> 6948.019263 | M14: I2 | N14: 2 | O14: =-2*K14-Q14-Transactions!AC15-J14 -> -6948.063112 | Q14: =Zeta!G15/(Utility!G43/Nexus!G37-1) -> -8141.887141 | V14: 0 | W14: =(W9-V9)*(T11-T9)*(W11+V11) -> 3.460021001 | X14: =(X9-V9)*(T11-T9)*(V11+X11) -> 3.412900774 | Y14: 1 | Z14: I1 | AA14: =Transactions!AC36+SUM(V14:X14) -> -7942.207562 | AC14: =AA14 -> -7942.207562 | AF14: I1 | AG14: 1 | AH14: CAPITAL | AI14: INDUSTRIES
E15: NON_DUR | F15: 3 | G15: I3 | H15: =K15+J15 -> 6021.130949 | J15: =Finance!M72+Finance!P72+Finance!S72 -> 0 | K15: =Finance!N72+Finance!Q72+Finance!T72 -> 6021.130949 | M15: I3 | N15: 3 | O15: =-2*K15-Q15-Transactions!AC16-J15 -> -6021.172626 | Q15: =Zeta!G16/(Utility!G44/Nexus!G38-1) -> -7055.762624 | V15: =-W14 -> -3.460021001 | W15: 0 | X15: =(X9-W9)*(T11-T9)*(X11+W11) -> 0.1559799955 | Y15: 2 | Z15: I2 | AA15: =Transactions!AC37+SUM(V15:X15) -> -6944.933299 | AC15: =AA15 -> -6944.933299 | AF15: I2 | AG15: 2 | AH15: GENERAL
V16: =-X14 -> -3.412900774 | W16: =-X15 -> -0.1559799955 | X16: 0 | Y16: 3 | Z16: I3 | AA16: =Transactions!AC38+SUM(V16:X16) -> -6018.714802 | AC16: =AA16 -> -6018.714802 | AF16: I3 | AG16: 3 | AH16: NON_DUR
D17: HOUSEHOLDS | E17: BOURGS | F17: 4 | G17: L1 | H17: =K17+J17 -> -33271.60726 | J17: =Finance!M74+Finance!P74+Finance!S74 -> -33271.60726 | K17: =Finance!N74+Finance!Q74+Finance!T74 -> 0 | M17: L1 | N17: 4 | O17: =-2*K17-Q17-Transactions!AC18-J17 -> -0.3948161467 | Q17: =Zeta!G18/(Utility!G46/Nexus!G40-1) -> 14621.9961
E18: PRLTRT | F18: 5 | G18: L2 | H18: =K18+J18 -> 16297.40347 | J18: =Finance!M75+Finance!P75+Finance!S75 -> -1769.458075 | K18: =Finance!N75+Finance!Q75+Finance!T75 -> 18066.86155 | M18: L2 | N18: 5 | O18: =-2*K18-Q18-Transactions!AC19-J18 -> -18067.24101 | Q18: =Zeta!G19/(Utility!G47/Nexus!G41-1) -> -20190.46981 | Y18: 4 | Z18: L1 | AA18: 0 | AD18: =AA18 -> 0 | AF18: L1 | AG18: 4 | AH18: BOURGS | AI18: HOUSEHOLDS
E19: DPNDNT | F19: 6 | G19: L3 | H19: =K19+J19 -> -1.053233292 | J19: =Finance!M76+Finance!P76+Finance!S76 -> 0 | K19: =Finance!N76+Finance!Q76+Finance!T76 -> -1.053233292 | M19: L3 | N19: 6 | O19: =-2*K19-Q19-Transactions!AC20-J19 -> -0.06704680265 | Q19: =Zeta!G20/(Utility!G48/Nexus!G42-1) -> 3284.659191 | Y19: 5 | Z19: L2 | AA19: =-2*K18-Q18-Transactions!AC19-J18 -> -18067.24101 | AD19: =AA19 -> -18067.24101 | AF19: L2 | AG19: 5 | AH19: PRLTRT
Y20: 6 | Z20: L3 | AA20: =Transactions!AC42 -> 2.106466583 | AD20: =AA20 -> 2.106466583 | AF20: L3 | AG20: 6 | AH20: DPNDNT
D21: GOVERNANCE | E21: LOCAL | F21: 7 | G21: G1 | H21: =K21+J21 -> -2.693898367 | J21: =Finance!M78+Finance!P78+Finance!S78 -> 0 | K21: =Finance!N78+Finance!Q78+Finance!T78 -> -2.693898367 | M21: G1 | N21: 7 | O21: =-2*K21-Q21-Transactions!AC22-J21 -> -0.260154294 | Q21: =Zeta!G22/(Utility!G50/Nexus!G44-1) -> 9298.009158
E22: NATIONAL | F22: 8 | G22: G2 | H22: =K22+J22 -> -4.098451134 | J22: =Finance!M79+Finance!P79+Finance!S79 -> 0 | K22: =Finance!N79+Finance!Q79+Finance!T79 -> -4.098451134 | M22: G2 | N22: 8 | O22: =-2*K22-Q22-Transactions!AC23-J22 -> -0.3448325959 | Q22: =Zeta!G23/(Utility!G51/Nexus!G45-1) -> 14162.47708 | Y22: 7 | Z22: G1 | AA22: =Transactions!AC44 -> 5.387796735 | AC22: =AA22 -> 5.387796735 | AF22: G1 | AG22: 7 | AH22: LOCAL | AI22: GOVERNANCE
Y23: 8 | Z23: G2 | AA23: =Transactions!AC45 -> 8.196902268 | AC23: 8.196902268 | AF23: G2 | AG23: 8 | AH23: NATIONAL
D24: BANKING | E24: CMRCL | F24: =1+F22 -> 9 | G24: FI | H24: =K24+J24 -> -2086.705775 | J24: =Finance!M81+Finance!P81+Finance!S81 -> 18781.75004 | K24: =Finance!N81+Finance!Q81+Finance!T81 -> -20868.45581 | M24: FI | N24: 9 | O24: =-2*K24-Q24-Transactions!AC25-J24 -> 20868.39132 | Q24: =Zeta!G25/(Utility!G53/Nexus!G47-1) -> 1784.763112
E25: RETAIL | F25: =1+F24 -> 10 | G25: FL | H25: =K25+J25 -> -1806.49302 | J25: =Finance!M82+Finance!P82+Finance!S82 -> 16259.31529 | K25: =Finance!N82+Finance!Q82+Finance!T82 -> -18065.80831 | M25: FL | N25: 10 | O25: =-2*K25-Q25-Transactions!AC26-J25 -> 18065.82349 | Q25: =Zeta!G26/(Utility!G54/Nexus!G48-1) -> 1518.477842 | Y25: FI | Z25: 9 | AA25: =-AA14-AA15-AA16-AA22-AA23 -> 20892.27097 | AC25: =AA25 -> 20892.27097 | AF25: FI | AG25: 9 | AH25: CMRCL | AI25: BANKING
E26: GOVT | F26: =1+F25 -> 11 | G26: FG | H26: =K26+J26 -> 0 | J26: =Finance!M83+Finance!P83+Finance!S83 -> 0 | K26: =Finance!N83+Finance!Q83+Finance!T83 -> 0 | M26: FG | N26: 11 | O26: =-2*K26-Q26-Transactions!AC27-J26 -> 0 | Y26: FL | Z26: 10 | AA26: =-AA18-AA19-AA20 -> 18065.13455 | AD26: =AA26 -> 18065.13455 | AF26: FL | AG26: 10 | AH26: RETAIL
J27: (1-1/NPV)g | K27: -nkk | Q27: u | Y27: FG | Z27: 11 | AA27: =-AA22-AA23 -> -13.584699 | AF27: FG | AG27: 11 | AH27: GOVT
J28: T | Q28: h/w-1 | AC28: F1 | AD28: F2 | AE28: F2
AC29: 9 | AD29: 10 | AE29: 11
AC30: CMRCL | AD30: RETAIL | AE30: GOVT
D31: Maturing Savings > | J31: 9 | K31: 10 | L31: 11 | V31: Reinvestment > | AC31: 9 | AD31: 10 | AE31: 11
J32: FI | K32: FL | L32: FG | AC32: FI | AD32: FL | AE32: FG
F35: 0 | G35: 0 | M35: 0 | N35: 0 | Y35: 0 | Z35: 0 | AF35: 0 | AG35: 0
D36: INDUSTRIES | E36: CAPITAL | F36: 1 | G36: I1 | M36: I1 | N36: 1 | O36: CAPITAL | P36: INDUSTRIES | W36: INDUSTRIES | X36: CAPITAL | Y36: 1 | Z36: I1 | AF36: I1 | AG36: 1 | AH36: CAPITAL | AI36: INDUSTRIES
E37: GENERAL | F37: 2 | G37: I2 | M37: I2 | N37: 2 | O37: GENERAL | X37: GENERAL | Y37: 2 | Z37: I2 | AF37: I2 | AG37: 2 | AH37: GENERAL
E38: NON_DUR | F38: 3 | G38: I3 | M38: I3 | N38: 3 | O38: NON_DUR | X38: NON_DUR | Y38: 3 | Z38: I3 | AF38: I3 | AG38: 3 | AH38: NON_DUR
D40: HOUSEHOLDS | E40: BOURGS | F40: 4 | G40: L1 | H40: =J40+K40 -> -105603.0076 | J40: =3*Finance!M$33*Boundary!U82 -> -53978.64328 | K40: =3*Finance!P$33*Boundary!V82 -> -51624.36436 | M40: L1 | N40: 4 | O40: BOURGS | P40: HOUSEHOLDS | W40: HOUSEHOLDS | X40: BOURGS | Y40: 4 | Z40: L1 | AA40: =Investment!H40+Investment!H17+Transactions!AC40 -> -105591.5582 | AC40: =SUM(AC52:AC54) -> -53991.44596 | AD40: =SUM(AD52:AD54) -> -51611.56167 | AF40: L1 | AG40: 4 | AH40: BOURGS | AI40: HOUSEHOLDS
E41: PRLTRT | F41: 5 | G41: L2 | H41: =J41+K41 -> -5618.477005 | J41: =3*Finance!M$33*Boundary!U83 -> -5618.477005 | M41: L2 | N41: 5 | O41: PRLTRT | X41: PRLTRT | Y41: 5 | Z41: L2 | AA41: =Investment!H41+Investment!H18+Transactions!AC41 -> -5607.164469 | AC41: =AA41 -> -5607.164469 | AF41: L2 | AG41: 5 | AH41: PRLTRT
E42: DPNDNT | F42: 6 | G42: L3 | M42: L3 | N42: 6 | O42: DPNDNT | X42: DPNDNT | Y42: 6 | Z42: L3 | AF42: L3 | AG42: 6 | AH42: DPNDNT
D44: GOVERNANCE | E44: LOCAL | F44: 7 | G44: G1 | M44: G1 | N44: 7 | O44: LOCAL | P44: GOVERNANCE | W44: GOVERNANCE | X44: LOCAL | Y44: 7 | Z44: G1 | AF44: G1 | AG44: 7 | AH44: LOCAL | AI44: GOVERNANCE
E45: NATIONAL | F45: 8 | G45: G2 | M45: G2 | N45: 8 | O45: NATIONAL | X45: NATIONAL | Y45: 8 | Z45: G2 | AF45: G2 | AG45: 8 | AH45: NATIONAL
D47: BANKING | E47: CMRCL | F47: =1+F45 -> 9 | G47: FI | H47: =J47+K47 -> 59597.12028 | J47: =3*Finance!M$33*Boundary!U89 -> 59597.12028 | M47: FI | N47: 9 | O47: CMRCL | P47: BANKING | W47: BANKING | X47: CMRCL | Y47: =1+Y45 -> 9 | Z47: FI | AA47: =Investment!H47+Investment!H24+Transactions!AC47 -> 59597.12028 | AC47: =AA47 -> 59597.12028 | AF47: FI | AG47: 9 | AH47: CMRCL | AI47: BANKING
E48: RETAIL | F48: =1+F47 -> 10 | G48: FL | H48: =J48+K48 -> 51624.36436 | K48: =3*Finance!P$33*Boundary!V90 -> 51624.36436 | M48: FL | N48: 10 | O48: RETAIL | X48: RETAIL | Y48: =1+Y47 -> 10 | Z48: FL | AA48: =Investment!H48+Investment!H25+Transactions!AC48 -> 51624.36436 | AD48: =AA48 -> 51624.36436 | AF48: FL | AG48: 10 | AH48: RETAIL
E49: GOVT | F49: =1+F48 -> 11 | G49: FG | M49: FG | N49: 11 | O49: GOVT | X49: GOVT | Y49: =1+Y48 -> 11 | Z49: FG | AE49: =AA49 -> 0 | AF49: FG | AG49: 11 | AH49: GOVT
J50: F1 | K50: F2 | L50: F2 | AA50: G1 | AC50: FI | AD50: FL | AE50: FG
J51: 9 | K51: 10 | L51: 11 | AA51: 7 | AC51: 9 | AD51: 10 | AE51: 11
J52: CMRCL | K52: RETAIL | L52: GOVT | AB52: 4 | AC52: =J40 -> -53978.64328 | AD52: =-(AC57-AD57)*(AC52+AD53) -> 12.80268276 | AE52: =0 -> 0
AB53: 4 | AC53: =-AD52 -> -12.80268276 | AD53: =K40 -> -51624.36436 | AE53: 0
AB54: 4 | AC54: =-AE52 -> 0 | AD54: =-AE53 -> 0 | AE54: =L40 -> 0
AC57: =Finance!M61 -> 0.3151289124 | AD57: =Finance!P61 -> 0.3150076784 | AE57: =Finance!S61 -> 0 | AF57: PF
AC58: 9 | AD58: 10 | AE58: 11

Sheet State
I8: VALUE | J8: CAPITAL | K8: GENERAL | L8: NON_DUR | N8: BOURGS | O8: PRLTRT | P8: DPNDNT | R8: LOCAL | S8: NATIONAL | U8: COMMERCIAL | V8: RETAIL | W8: GOVT
I9: 0 | J9: 1 | K9: 2 | L9: 3 | N9: 4 | O9: 5 | P9: 6 | R9: 7 | S9: 8 | U9: 9 | V9: 10 | W9: 11
I10: 0 | J10: I1 | K10: I2 | L10: I3 | N10: L1 | O10: L2 | P10: L3 | R10: G1 | S10: G2 | U10: FI | V10: FL | W10: FG
G11: A > | I11: =Boundary!I39+DT*(Transactions!I11-Rates!H$33*Boundary!I39*3) -> 0 | J11: =Boundary!J39+DT*(Transactions!J11-Rates!I$33*Boundary!J39*3) -> 0 | K11: =Boundary!K39+DT*(Transactions!K11-Rates!J$33*Boundary!K39*3) -> 0 | L11: =Boundary!L39+DT*(Transactions!L11-Rates!K$33*Boundary!L39*3) -> 0 | N11: =Boundary!N39+DT*(Transactions!N11-Rates!M$33*Boundary!N39*3) -> 0 | O11: =Boundary!O39+DT*(Transactions!O11-Rates!N$33*Boundary!O39*3) -> 0 | P11: =Boundary!P39+DT*(Transactions!P11-Rates!O$33*Boundary!P39*3) -> 0 | R11: =Boundary!R39+DT*(Transactions!Y11-Finance!J$33*Boundary!R39*3) -> 0 | S11: =Boundary!S39+DT*(Transactions!Z11-Finance!K$33*Boundary!S39*3) -> 0 | U11: =Boundary!U39+DT*(Investment!AC33-Finance!M$33*3*Boundary!U39) -> 0 | V11: =Boundary!V39+DT*(Investment!AD33-Finance!P$33*3*Boundary!V39) -> 0 | W11: =Boundary!W39+DT*(Investment!AE33-Finance!S$33*3*Boundary!W39) -> 0 | Z11: g
E13: 0 | F13: 0 | I13: =Boundary!I41+DT*(Transactions!I13-Rates!H$33*Boundary!I41*3) -> 90399.02751 | J13: =Boundary!J41+DT*(Transactions!J13-Rates!I$33*Boundary!J41*3) -> -333.0809983 | K13: =Boundary!K41+DT*(Transactions!K13-Rates!J$33*Boundary!K41*3) -> -749.4170428 | L13: =Boundary!L41+DT*(Transactions!L13-Rates!K$33*Boundary!L41*3) -> -1065.819535 | N13: =Boundary!N41+DT*(Transactions!N13-Rates!M$33*Boundary!N41*3) -> -292 | O13: =Boundary!O41+DT*(Transactions!O13-Rates!N$33*Boundary!O41*3) -> -2922 | P13: =Boundary!P41+DT*(Transactions!P13-Rates!O$33*Boundary!P41*3) -> -33.33333333 | R13: =Boundary!R41+DT*(Transactions!Y13-Finance!J$33*Boundary!R41*3) -> 0 | S13: =Boundary!S41+DT*(Transactions!Z13-Finance!K$33*Boundary!S41*3) -> 0 | U13: =Boundary!U41+DT*(Investment!AC35-Finance!M$33*3*Boundary!U41) -> 0 | V13: =Boundary!V41+DT*(Investment!AD35-Finance!P$33*3*Boundary!V41) -> 0 | W13: =Boundary!W41+DT*(Investment!AE35-Finance!S$33*3*Boundary!W41) -> 0 | X13: 0 | Y13: 0
C14: INDUSTRIES | D14: CAPITAL | E14: 1 | F14: I1 | I14: =Boundary!I42+DT*(Transactions!I14-Rates!H$33*Boundary!I42*3) -> -23817.10527 | J14: =Boundary!J42+DT*(Transactions!J14-Rates!I$33*Boundary!J42*3) -> 100.2514364 | K14: =Boundary!K42+DT*(Transactions!K14-Rates!J$33*Boundary!K42*3) -> 200.6739081 | L14: =Boundary!L42+DT*(Transactions!L14-Rates!K$33*Boundary!L42*3) -> 267.8140752 | N14: =Boundary!N42+DT*(Transactions!N14-Rates!M$33*Boundary!N42*3) -> 6.654393946 | O14: =Boundary!O42+DT*(Transactions!O14-Rates!N$33*Boundary!O42*3) -> 192.8546769 | P14: =Boundary!P42+DT*(Transactions!P14-Rates!O$33*Boundary!P42*3) -> 0 | R14: =Boundary!R42+DT*(Transactions!Y14-Finance!J$33*Boundary!R42*3) -> 170.8422778 | S14: =Boundary!S42+DT*(Transactions!Z14-Finance!K$33*Boundary!S42*3) -> 284.7371296 | U14: =Boundary!U42+DT*(Investment!AC36-Finance!M$33*3*Boundary!U42) -> 0 | V14: =Boundary!V42+DT*(Investment!AD36-Finance!P$33*3*Boundary!V42) -> 0 | W14: =Boundary!W42+DT*(Investment!AE36-Finance!S$33*3*Boundary!W42) -> 0 | X14: 1 | Y14: I1 | Z14: CAPITAL | AA14: INDUSTRIES
D15: GENERAL | E15: 2 | F15: I2 | I15: =Boundary!I43+DT*(Transactions!I15-Rates!H$33*Boundary!I43*3) -> -20805.20566 | J15: =Boundary!J43+DT*(Transactions!J15-Rates!I$33*Boundary!J43*3) -> 83.55074197 | K15: =Boundary!K43+DT*(Transactions!K15-Rates!J$33*Boundary!K43*3) -> 100.582957 | L15: =Boundary!L43+DT*(Transactions!L15-Rates!K$33*Boundary!L43*3) -> 234.3261532 | N15: =Boundary!N43+DT*(Transactions!N15-Rates!M$33*Boundary!N43*3) -> 9.989104347 | O15: =Boundary!O43+DT*(Transactions!O15-Rates!N$33*Boundary!O43*3) -> 193.7671261 | P15: =Boundary!P43+DT*(Transactions!P15-Rates!O$33*Boundary!P43*3) -> 0 | R15: =Boundary!R43+DT*(Transactions!Y15-Finance!J$33*Boundary!R43*3) -> 149.2389658 | S15: =Boundary!S43+DT*(Transactions!Z15-Finance!K$33*Boundary!S43*3) -> 248.7316097 | U15: =Boundary!U43+DT*(Investment!AC37-Finance!M$33*3*Boundary!U43) -> 0 | V15: =Boundary!V43+DT*(Investment!AD37-Finance!P$33*3*Boundary!V43) -> 0 | W15: =Boundary!W43+DT*(Investment!AE37-Finance!S$33*3*Boundary!W43) -> 0 | X15: 2 | Y15: I2 | Z15: GENERAL
D16: NON_DUR | E16: 3 | F16: I3 | I16: =Boundary!I44+DT*(Transactions!I16-Rates!H$33*Boundary!I44*3) -> -18029.93801 | J16: =Boundary!J44+DT*(Transactions!J16-Rates!I$33*Boundary!J44*3) -> 66.85206716 | K16: =Boundary!K44+DT*(Transactions!K16-Rates!J$33*Boundary!K44*3) -> 150.4972545 | L16: =Boundary!L44+DT*(Transactions!L16-Rates!K$33*Boundary!L44*3) -> 167.5137983 | N16: =Boundary!N44+DT*(Transactions!N16-Rates!M$33*Boundary!N44*3) -> 6.657129124 | O16: =Boundary!O44+DT*(Transactions!O16-Rates!N$33*Boundary!O44*3) -> 194.6380038 | P16: =Boundary!P44+DT*(Transactions!P16-Rates!O$33*Boundary!P44*3) -> 0 | R16: =Boundary!R44+DT*(Transactions!Y16-Finance!J$33*Boundary!R44*3) -> 129.334169 | S16: =Boundary!S44+DT*(Transactions!Z16-Finance!K$33*Boundary!S44*3) -> 215.5569483 | U16: =Boundary!U44+DT*(Investment!AC38-Finance!M$33*3*Boundary!U44) -> 0 | V16: =Boundary!V44+DT*(Investment!AD38-Finance!P$33*3*Boundary!V44) -> 0 | W16: =Boundary!W44+DT*(Investment!AE38-Finance!S$33*3*Boundary!W44) -> 0 | X16: 3 | Y16: I3 | Z16: NON_DUR
C18: HOUSEHOLDS | D18: BOURGS | E18: 4 | F18: L1 | I18: =Boundary!I46+DT*(Transactions!I18-Rates!H$33*Boundary!I46*3) -> -19144.01602 | J18: =Boundary!J46+DT*(Transactions!J18-Rates!I$33*Boundary!J46*3) -> 76.47124411 | K18: =Boundary!K46+DT*(Transactions!K18-Rates!J$33*Boundary!K46*3) -> 228.6629704 | L18: =Boundary!L46+DT*(Transactions!L18-Rates!K$33*Boundary!L46*3) -> 332.1497992 | N18: =Boundary!N46+DT*(Transactions!N18-Rates!M$33*Boundary!N46*3) -> 260.5245991 | O18: =Boundary!O46+DT*(Transactions!O18-Rates!N$33*Boundary!O46*3) -> 65.99583365 | P18: =Boundary!P46+DT*(Transactions!P18-Rates!O$33*Boundary!P46*3) -> 0 | R18: =Boundary!R46+DT*(Transactions!Y18-Finance!J$33*Boundary!R46*3) -> 2331.250746 | S18: =Boundary!S46+DT*(Transactions!Z18-Finance!K$33*Boundary!S46*3) -> 3885.41791 | U18: =Boundary!U46+DT*(Investment!AC40-Finance!M$33*3*Boundary!U46) -> -111152.1627 | V18: =Boundary!V46+DT*(Investment!AD40-Finance!P$33*3*Boundary!V46) -> -106191.5828 | W18: =Boundary!W46+DT*(Investment!AE40-Finance!S$33*3*Boundary!W46) -> 0 | X18: 4 | Y18: L1 | Z18: BOURGS | AA18: HOUSEHOLDS
D19: PRLTRT | E19: 5 | F19: L2 | I19: =Boundary!I47+DT*(Transactions!I19-Rates!H$33*Boundary!I47*3) -> -3997.059007 | J19: =Boundary!J47+DT*(Transactions!J19-Rates!I$33*Boundary!J47*3) -> 4.401250165 | K19: =Boundary!K47+DT*(Transactions!K19-Rates!J$33*Boundary!K47*3) -> 59.80752923 | L19: =Boundary!L47+DT*(Transactions!L19-Rates!K$33*Boundary!L47*3) -> 53.52797735 | N19: =Boundary!N47+DT*(Transactions!N19-Rates!M$33*Boundary!N47*3) -> 1.75747307 | O19: =Boundary!O47+DT*(Transactions!O19-Rates!N$33*Boundary!O47*3) -> 2216.415303 | P19: =Boundary!P47+DT*(Transactions!P19-Rates!O$33*Boundary!P47*3) -> 0 | R19: =Boundary!R47+DT*(Transactions!Y19-Finance!J$33*Boundary!R47*3) -> 486.6807256 | S19: =Boundary!S47+DT*(Transactions!Z19-Finance!K$33*Boundary!S47*3) -> 811.1345427 | U19: =Boundary!U47+DT*(Investment!AC41-Finance!M$33*3*Boundary!U47) -> -11552.40956 | V19: =Boundary!V47+DT*(Investment!AD41-Finance!P$33*3*Boundary!V47) -> 0 | W19: =Boundary!W47+DT*(Investment!AE41-Finance!S$33*3*Boundary!W47) -> 0 | X19: 5 | Y19: L2 | Z19: PRLTRT
D20: DPNDNT | E20: 6 | F20: L3 | I20: =Boundary!I48+DT*(Transactions!I20-Rates!H$33*Boundary!I48*3) -> -503.4625389 | J20: =Boundary!J48+DT*(Transactions!J20-Rates!I$33*Boundary!J48*3) -> 0.3110277822 | K20: =Boundary!K48+DT*(Transactions!K20-Rates!J$33*Boundary!K48*3) -> 5.647930997 | L20: =Boundary!L48+DT*(Transactions!L20-Rates!K$33*Boundary!L48*3) -> 4.806429584 | N20: =Boundary!N48+DT*(Transactions!N20-Rates!M$33*Boundary!N48*3) -> 0.3161526746 | O20: =Boundary!O48+DT*(Transactions!O20-Rates!N$33*Boundary!O48*3) -> 5.747401074 | P20: =Boundary!P48+DT*(Transactions!P20-Rates!O$33*Boundary!P48*3) -> 33.33333333 | R20: =Boundary!R48+DT*(Transactions!Y20-Finance!J$33*Boundary!R48*3) -> -410.3107098 | S20: =Boundary!S48+DT*(Transactions!Z20-Finance!K$33*Boundary!S48*3) -> -683.8511829 | U20: =Boundary!U48+DT*(Investment!AC42-Finance!M$33*3*Boundary!U48) -> 0 | V20: =Boundary!V48+DT*(Investment!AD42-Finance!P$33*3*Boundary!V48) -> 0 | W20: =Boundary!W48+DT*(Investment!AE42-Finance!S$33*3*Boundary!W48) -> 0 | X20: 6 | Y20: L3 | Z20: DPNDNT
C22: GOVERNANCE | D22: LOCAL | E22: 7 | F22: G1 | I22: =Boundary!I50+DT*(Transactions!I22-Rates!H$33*Boundary!I50*3) -> -1425.158377 | J22: =Boundary!J50+DT*(Transactions!J22-Rates!I$33*Boundary!J50*3) -> 0.2731987275 | K22: =Boundary!K50+DT*(Transactions!K22-Rates!J$33*Boundary!K50*3) -> -0.1096112892 | L22: =Boundary!L50+DT*(Transactions!L22-Rates!K$33*Boundary!L50*3) -> 0.4785517304 | N22: =Boundary!N50+DT*(Transactions!N22-Rates!M$33*Boundary!N50*3) -> 2.245418828 | O22: =Boundary!O50+DT*(Transactions!O22-Rates!N$33*Boundary!O50*3) -> 19.24911141 | P22: =Boundary!P50+DT*(Transactions!P22-Rates!O$33*Boundary!P50*3) -> 0 | R22: =Boundary!R50+DT*(Transactions!Y22-Finance!J$33*Boundary!R50*3) -> -3097.453736 | S22: =Boundary!S50+DT*(Transactions!Z22-Finance!K$33*Boundary!S50*3) -> 0 | U22: =Boundary!U50+DT*(Investment!AC44-Finance!M$33*3*Boundary!U50) -> 0 | V22: =Boundary!V50+DT*(Investment!AD44-Finance!P$33*3*Boundary!V50) -> 0 | W22: =Boundary!W50+DT*(Investment!AE44-Finance!S$33*3*Boundary!W50) -> 0 | X22: 7 | Y22: G1 | Z22: LOCAL | AA22: GOVERNANCE
D23: NATIONAL | E23: 8 | F23: G2 | I23: =Boundary!I51+DT*(Transactions!I23-Rates!H$33*Boundary!I51*3) -> -2170.770709 | J23: =Boundary!J51+DT*(Transactions!J23-Rates!I$33*Boundary!J51*3) -> 0.4059547276 | K23: =Boundary!K51+DT*(Transactions!K23-Rates!J$33*Boundary!K51*3) -> -0.4371066712 | L23: =Boundary!L51+DT*(Transactions!L23-Rates!K$33*Boundary!L51*3) -> 0.5086566283 | N23: =Boundary!N51+DT*(Transactions!N23-Rates!M$33*Boundary!N51*3) -> 3.442841449 | O23: =Boundary!O51+DT*(Transactions!O23-Rates!N$33*Boundary!O51*3) -> 29.3694757 | P23: =Boundary!P51+DT*(Transactions!P23-Rates!O$33*Boundary!P51*3) -> 0 | R23: =Boundary!R51+DT*(Transactions!Y23-Finance!J$33*Boundary!R51*3) -> 166.6666667 | S23: =Boundary!S51+DT*(Transactions!Z23-Finance!K$33*Boundary!S51*3) -> -4884.645115 | U23: =Boundary!U51+DT*(Investment!AC45-Finance!M$33*3*Boundary!U51) -> 0 | V23: =Boundary!V51+DT*(Investment!AD45-Finance!P$33*3*Boundary!V51) -> 0 | W23: =Boundary!W51+DT*(Investment!AE45-Finance!S$33*3*Boundary!W51) -> 0 | X23: 8 | Y23: G2 | Z23: NATIONAL
C25: BANKING | D25: CMRL | E25: 9 | F25: FI | I25: =Boundary!I53+DT*(Transactions!I25-Rates!H$33*Boundary!I53*3) -> -273.5602462 | J25: =Boundary!J53+DT*(Transactions!J25-Rates!I$33*Boundary!J53*3) -> 0.1356860774 | K25: =Boundary!K53+DT*(Transactions!K25-Rates!J$33*Boundary!K53*3) -> 0.4426399507 | L25: =Boundary!L53+DT*(Transactions!L25-Rates!K$33*Boundary!L53*3) -> 0.6269883903 | N25: =Boundary!N53+DT*(Transactions!N25-Rates!M$33*Boundary!N53*3) -> 0.4025619404 | O25: =Boundary!O53+DT*(Transactions!O25-Rates!N$33*Boundary!O53*3) -> 2.27398432 | P25: =Boundary!P53+DT*(Transactions!P25-Rates!O$33*Boundary!P53*3) -> 0 | R25: =Boundary!R53+DT*(Transactions!Y25-Finance!J$33*Boundary!R53*3) -> 37.75089466 | S25: =Boundary!S53+DT*(Transactions!Z25-Finance!K$33*Boundary!S53*3) -> 62.91815776 | U25: =-SUM(U12:U23,U26:U27) -> 122704.5722 | V25: =Boundary!V53+DT*(Investment!AD47-Finance!P$33*3*Boundary!V53) -> 0 | W25: =Boundary!W53+DT*(Investment!AE47-Finance!S$33*3*Boundary!W53) -> 0 | X25: 9 | Y25: FI | Z25: CMRCL | AA25: BANKING
D26: RETAIL | E26: 10 | F26: FL | I26: =Boundary!I54+DT*(Transactions!I26-Rates!H$33*Boundary!I54*3) -> -232.7516731 | J26: =Boundary!J54+DT*(Transactions!J26-Rates!I$33*Boundary!J54*3) -> 0.4170616068 | K26: =Boundary!K54+DT*(Transactions!K26-Rates!J$33*Boundary!K54*3) -> 3.620090863 | L26: =Boundary!L54+DT*(Transactions!L26-Rates!K$33*Boundary!L54*3) -> 4.020434605 | N26: =Boundary!N54+DT*(Transactions!N26-Rates!M$33*Boundary!N54*3) -> 0.01032547989 | O26: =Boundary!O54+DT*(Transactions!O26-Rates!N$33*Boundary!O54*3) -> 1.689084235 | P26: =Boundary!P54+DT*(Transactions!P26-Rates!O$33*Boundary!P54*3) -> 0 | R26: =Boundary!R54+DT*(Transactions!Y26-Finance!J$33*Boundary!R54*3) -> 36 | S26: =Boundary!S54+DT*(Transactions!Z26-Finance!K$33*Boundary!S54*3) -> 60 | U26: =Boundary!U54+DT*(Investment!AC48-Finance!M$33*3*Boundary!U54) -> 0 | V26: =-SUM(V11:V25,V27) -> 106191.5828 | W26: =Boundary!W54+DT*(Investment!AE48-Finance!S$33*3*Boundary!W54) -> 0 | X26: 10 | Y26: FL | Z26: RETAIL
D27: GOVT | E27: 11 | F27: FG | I27: =Boundary!I55+DT*(Transactions!I27-Rates!H$33*Boundary!I55*3) -> 0 | J27: =Boundary!J55+DT*(Transactions!J27-Rates!I$33*Boundary!J55*3) -> 0 | K27: =Boundary!K55+DT*(Transactions!K27-Rates!J$33*Boundary!K55*3) -> 0 | L27: =Boundary!L55+DT*(Transactions!L27-Rates!K$33*Boundary!L55*3) -> 0 | N27: =Boundary!N55+DT*(Transactions!N27-Rates!M$33*Boundary!N55*3) -> 0 | O27: =Boundary!O55+DT*(Transactions!O27-Rates!N$33*Boundary!O55*3) -> 0 | P27: =Boundary!P55+DT*(Transactions!P27-Rates!O$33*Boundary!P55*3) -> 0 | R27: =Boundary!R55+DT*(Transactions!Y27-Finance!J$33*Boundary!R55*3) -> 0 | S27: =Boundary!S55+DT*(Transactions!Z27-Finance!K$33*Boundary!S55*3) -> 0 | U27: =Boundary!U55+DT*(Investment!AC49-Finance!M$33*3*Boundary!U55) -> 0 | V27: =Boundary!V55+DT*(Investment!AD49-Finance!P$33*3*Boundary!V55) -> 0 | W27: =-SUM(W11:W26) -> 0 | X27: 11 | Y27: FG | Z27: GOVT
G29: B > | I29: =Boundary!I57+DT*Rates!H$33*3*(Boundary!I39-Boundary!I57) -> 0 | J29: =Boundary!J57+DT*Rates!I$33*3*(Boundary!J39-Boundary!J57) -> 0 | K29: =Boundary!K57+DT*Rates!J$33*3*(Boundary!K39-Boundary!K57) -> 0 | L29: =Boundary!L57+DT*Rates!K$33*3*(Boundary!L39-Boundary!L57) -> 0 | N29: =Boundary!N57+DT*Rates!M$33*3*(Boundary!N39-Boundary!N57) -> 0 | O29: =Boundary!O57+DT*Rates!N$33*3*(Boundary!O39-Boundary!O57) -> 0 | P29: =Boundary!P57+DT*Rates!O$33*3*(Boundary!P39-Boundary!P57) -> 0 | R29: =Boundary!R57+DT*Rates!Q$33*3*(Boundary!R39-Boundary!R57) -> 0 | S29: =Boundary!S57+DT*Rates!R$33*3*(Boundary!S39-Boundary!S57) -> 0 | U29: =Boundary!U57+DT*Finance!M$33*3*(Boundary!U39-Boundary!U57) -> 0 | V29: =Boundary!V57+DT*Finance!P432*3*(Boundary!V39-Boundary!V57) -> 0 | W29: =Boundary!W57+DT*Finance!S$33*3*(Boundary!W39-Boundary!W57) -> 0 | Z29: g
E31: 0 | F31: 0 | I31: =Boundary!I59+DT*Rates!H$33*3*(Boundary!I41-Boundary!I59) -> 90399.02751 | J31: =Boundary!J59+DT*Rates!I$33*3*(Boundary!J41-Boundary!J59) -> -333.0780181 | K31: =Boundary!K59+DT*Rates!J$33*3*(Boundary!K41-Boundary!K59) -> -749.4167621 | L31: =Boundary!L59+DT*Rates!K$33*3*(Boundary!L41-Boundary!L59) -> -1065.819444 | N31: =Boundary!N59+DT*Rates!M$33*3*(Boundary!N41-Boundary!N59) -> -292 | O31: =Boundary!O59+DT*Rates!N$33*3*(Boundary!O41-Boundary!O59) -> -2922 | P31: =Boundary!P59+DT*Rates!O$33*3*(Boundary!P41-Boundary!P59) -> -33.33333333 | R31: =Boundary!R59+DT*Rates!Q$33*3*(Boundary!R41-Boundary!R59) -> 0 | S31: =Boundary!S59+DT*Rates!R$33*3*(Boundary!S41-Boundary!S59) -> 0 | U31: =Boundary!U59+DT*Finance!M$33*3*(Boundary!U41-Boundary!U59) -> 0 | V31: =Boundary!V59+DT*Finance!P434*3*(Boundary!V41-Boundary!V59) -> 0 | W31: =Boundary!W59+DT*Finance!S$33*3*(Boundary!W41-Boundary!W59) -> 0 | X31: 0 | Y31: 0
C32: INDUSTRIES | D32: CAPITAL | E32: 1 | F32: I1 | I32: =Boundary!I60+DT*Rates!H$33*3*(Boundary!I42-Boundary!I60) -> -23817.09493 | J32: =Boundary!J60+DT*Rates!I$33*3*(Boundary!J42-Boundary!J60) -> 100.2504719 | K32: =Boundary!K60+DT*Rates!J$33*3*(Boundary!K42-Boundary!K60) -> 200.6742621 | L32: =Boundary!L60+DT*Rates!K$33*3*(Boundary!L42-Boundary!L60) -> 267.8142468 | N32: =Boundary!N60+DT*Rates!M$33*3*(Boundary!N42-Boundary!N60) -> 6.654399954 | O32: =Boundary!O60+DT*Rates!N$33*3*(Boundary!O42-Boundary!O60) -> 192.8547797 | P32: =Boundary!P60+DT*Rates!O$33*3*(Boundary!P42-Boundary!P60) -> 0 | R32: =Boundary!R60+DT*Rates!Q$33*3*(Boundary!R42-Boundary!R60) -> 170.8422778 | S32: =Boundary!S60+DT*Rates!R$33*3*(Boundary!S42-Boundary!S60) -> 284.7371296 | U32: =Boundary!U60+DT*Finance!M$33*3*(Boundary!U42-Boundary!U60) -> 0 | V32: =Boundary!V60+DT*Finance!P435*3*(Boundary!V42-Boundary!V60) -> 0 | W32: =Boundary!W60+DT*Finance!S$33*3*(Boundary!W42-Boundary!W60) -> 0 | X32: 1 | Y32: I1 | Z32: CAPITAL | AA32: INDUSTRIES
D33: GENERAL | E33: 2 | F33: I2 | I33: =Boundary!I61+DT*Rates!H$33*3*(Boundary!I43-Boundary!I61) -> -20805.19537 | J33: =Boundary!J61+DT*Rates!I$33*3*(Boundary!J43-Boundary!J61) -> 83.54988941 | K33: =Boundary!K61+DT*Rates!J$33*3*(Boundary!K43-Boundary!K61) -> 100.583236 | L33: =Boundary!L61+DT*Rates!K$33*3*(Boundary!L43-Boundary!L61) -> 234.326289 | N33: =Boundary!N61+DT*Rates!M$33*3*(Boundary!N43-Boundary!N61) -> 9.989109121 | O33: =Boundary!O61+DT*Rates!N$33*3*(Boundary!O43-Boundary!O61) -> 193.7671912 | P33: =Boundary!P61+DT*Rates!O$33*3*(Boundary!P43-Boundary!P61) -> 0 | R33: =Boundary!R61+DT*Rates!Q$33*3*(Boundary!R43-Boundary!R61) -> 149.2389658 | S33: =Boundary!S61+DT*Rates!R$33*3*(Boundary!S43-Boundary!S61) -> 248.7316097 | U33: =Boundary!U61+DT*Finance!M$33*3*(Boundary!U43-Boundary!U61) -> 0 | V33: =Boundary!V61+DT*Finance!P436*3*(Boundary!V43-Boundary!V61) -> 0 | W33: =Boundary!W61+DT*Finance!S$33*3*(Boundary!W43-Boundary!W61) -> 0 | X33: 2 | Y33: I2 | Z33: GENERAL
D34: NON_DUR | E34: 3 | F34: I3 | I34: =Boundary!I62+DT*Rates!H$33*3*(Boundary!I44-Boundary!I62) -> -18029.92671 | J34: =Boundary!J62+DT*Rates!I$33*3*(Boundary!J44-Boundary!J62) -> 66.85156936 | K34: =Boundary!K62+DT*Rates!J$33*3*(Boundary!K44-Boundary!K62) -> 150.497426 | L34: =Boundary!L62+DT*Rates!K$33*3*(Boundary!L44-Boundary!L62) -> 167.5138892 | N34: =Boundary!N62+DT*Rates!M$33*3*(Boundary!N44-Boundary!N62) -> 6.657132364 | O34: =Boundary!O62+DT*Rates!N$33*3*(Boundary!O44-Boundary!O62) -> 194.6380138 | P34: =Boundary!P62+DT*Rates!O$33*3*(Boundary!P44-Boundary!P62) -> 0 | R34: =Boundary!R62+DT*Rates!Q$33*3*(Boundary!R44-Boundary!R62) -> 129.334169 | S34: =Boundary!S62+DT*Rates!R$33*3*(Boundary!S44-Boundary!S62) -> 215.5569483 | U34: =Boundary!U62+DT*Finance!M$33*3*(Boundary!U44-Boundary!U62) -> 0 | V34: =Boundary!V62+DT*Finance!P437*3*(Boundary!V44-Boundary!V62) -> 0 | W34: =Boundary!W62+DT*Finance!S$33*3*(Boundary!W44-Boundary!W62) -> 0 | X34: 3 | Y34: I3 | Z34: NON_DUR
C36: HOUSEHOLDS | D36: BOURGS | E36: 4 | F36: L1 | I36: =Boundary!I64+DT*Rates!H$33*3*(Boundary!I46-Boundary!I64) -> -19144.00201 | J36: =Boundary!J64+DT*Rates!I$33*3*(Boundary!J46-Boundary!J64) -> 76.47111211 | K36: =Boundary!K64+DT*Rates!J$33*3*(Boundary!K46-Boundary!K64) -> 228.6630822 | L36: =Boundary!L64+DT*Rates!K$33*3*(Boundary!L46-Boundary!L64) -> 332.1498514 | N36: =Boundary!N64+DT*Rates!M$33*3*(Boundary!N46-Boundary!N64) -> 260.5245651 | O36: =Boundary!O64+DT*Rates!N$33*3*(Boundary!O46-Boundary!O64) -> 65.99591839 | P36: =Boundary!P64+DT*Rates!O$33*3*(Boundary!P46-Boundary!P64) -> 0 | R36: =Boundary!R64+DT*Rates!Q$33*3*(Boundary!R46-Boundary!R64) -> 2331.250746 | S36: =Boundary!S64+DT*Rates!R$33*3*(Boundary!S46-Boundary!S64) -> 3885.41791 | U36: =Boundary!U64+DT*Finance!M$33*3*(Boundary!U46-Boundary!U64) -> -111144.4417 | V36: =Boundary!V64+DT*Finance!P439*3*(Boundary!V46-Boundary!V64) -> -106245.4634 | W36: =Boundary!W64+DT*Finance!S$33*3*(Boundary!W46-Boundary!W64) -> 0 | X36: 4 | Y36: L1 | Z36: BOURGS | AA36: HOUSEHOLDS
D37: PRLTRT | E37: 5 | F37: L2 | I37: =Boundary!I65+DT*Rates!H$33*3*(Boundary!I47-Boundary!I65) -> -3997.055032 | J37: =Boundary!J65+DT*Rates!I$33*3*(Boundary!J47-Boundary!J65) -> 4.401590915 | K37: =Boundary!K65+DT*Rates!J$33*3*(Boundary!K47-Boundary!K65) -> 59.80751963 | L37: =Boundary!L65+DT*Rates!K$33*3*(Boundary!L47-Boundary!L65) -> 53.52797348 | N37: =Boundary!N65+DT*Rates!M$33*3*(Boundary!N47-Boundary!N65) -> 1.757472944 | O37: =Boundary!O65+DT*Rates!N$33*3*(Boundary!O47-Boundary!O65) -> 2216.413962 | P37: =Boundary!P65+DT*Rates!O$33*3*(Boundary!P47-Boundary!P65) -> 0 | R37: =Boundary!R65+DT*Rates!Q$33*3*(Boundary!R47-Boundary!R65) -> 486.6807256 | S37: =Boundary!S65+DT*Rates!R$33*3*(Boundary!S47-Boundary!S65) -> 811.1345427 | U37: =Boundary!U65+DT*Finance!M$33*3*(Boundary!U47-Boundary!U65) -> -11560.20189 | V37: =Boundary!V65+DT*Finance!P440*3*(Boundary!V47-Boundary!V65) -> 0 | W37: =Boundary!W65+DT*Finance!S$33*3*(Boundary!W47-Boundary!W65) -> 0 | X37: 5 | Y37: L2 | Z37: PRLTRT
D38: DPNDNT | E38: 6 | F38: L3 | I38: =Boundary!I66+DT*Rates!H$33*3*(Boundary!I48-Boundary!I66) -> -503.4685887 | J38: =Boundary!J66+DT*Rates!I$33*3*(Boundary!J48-Boundary!J66) -> 0.3113693062 | K38: =Boundary!K66+DT*Rates!J$33*3*(Boundary!K48-Boundary!K66) -> 5.64804758 | L38: =Boundary!L66+DT*Rates!K$33*3*(Boundary!L48-Boundary!L66) -> 4.806502237 | N38: =Boundary!N66+DT*Rates!M$33*3*(Boundary!N48-Boundary!N66) -> 0.3161551007 | O38: =Boundary!O66+DT*Rates!N$33*3*(Boundary!O48-Boundary!O66) -> 5.747530688 | P38: =Boundary!P66+DT*Rates!O$33*3*(Boundary!P48-Boundary!P66) -> 33.33333333 | R38: =Boundary!R66+DT*Rates!Q$33*3*(Boundary!R48-Boundary!R66) -> -410.3107098 | S38: =Boundary!S66+DT*Rates!R$33*3*(Boundary!S48-Boundary!S66) -> -683.8511829 | U38: =Boundary!U66+DT*Finance!M$33*3*(Boundary!U48-Boundary!U66) -> 0 | V38: =Boundary!V66+DT*Finance!P441*3*(Boundary!V48-Boundary!V66) -> 0 | W38: =Boundary!W66+DT*Finance!S$33*3*(Boundary!W48-Boundary!W66) -> 0 | X38: 6 | Y38: L3 | Z38: DPNDNT
C40: GOVERNANCE | D40: LOCAL | E40: 7 | F40: G1 | I40: =Boundary!I68+DT*Rates!H$33*3*(Boundary!I50-Boundary!I68) -> -1425.174129 | J40: =Boundary!J68+DT*Rates!I$33*3*(Boundary!J50-Boundary!J68) -> 0.2741536193 | K40: =Boundary!K68+DT*Rates!J$33*3*(Boundary!K50-Boundary!K68) -> -0.1093105784 | L40: =Boundary!L68+DT*Rates!K$33*3*(Boundary!L50-Boundary!L68) -> 0.4787420724 | N40: =Boundary!N68+DT*Rates!M$33*3*(Boundary!N50-Boundary!N68) -> 2.245425184 | O40: =Boundary!O68+DT*Rates!N$33*3*(Boundary!O50-Boundary!O68) -> 19.24945106 | P40: =Boundary!P68+DT*Rates!O$33*3*(Boundary!P50-Boundary!P68) -> 0 | R40: =Boundary!R68+DT*Rates!Q$33*3*(Boundary!R50-Boundary!R68) -> -3097.453736 | S40: =Boundary!S68+DT*Rates!R$33*3*(Boundary!S50-Boundary!S68) -> 0 | U40: =Boundary!U68+DT*Finance!M$33*3*(Boundary!U50-Boundary!U68) -> 0 | V40: =Boundary!V68+DT*Finance!P443*3*(Boundary!V50-Boundary!V68) -> 0 | W40: =Boundary!W68+DT*Finance!S$33*3*(Boundary!W50-Boundary!W68) -> 0 | X40: 7 | Y40: G1 | Z40: LOCAL | AA40: GOVERNANCE
D41: NATIONAL | E41: 8 | F41: G2 | I41: =Boundary!I69+DT*Rates!H$33*3*(Boundary!I51-Boundary!I69) -> -2170.79468 | J41: =Boundary!J69+DT*Rates!I$33*3*(Boundary!J51-Boundary!J69) -> 0.4074089292 | K41: =Boundary!K69+DT*Rates!J$33*3*(Boundary!K51-Boundary!K69) -> -0.4366491281 | L41: =Boundary!L69+DT*Rates!K$33*3*(Boundary!L51-Boundary!L69) -> 0.5089462979 | N41: =Boundary!N69+DT*Rates!M$33*3*(Boundary!N51-Boundary!N69) -> 3.442851123 | O41: =Boundary!O69+DT*Rates!N$33*3*(Boundary!O51-Boundary!O69) -> 29.36999257 | P41: =Boundary!P69+DT*Rates!O$33*3*(Boundary!P51-Boundary!P69) -> 0 | R41: =Boundary!R69+DT*Rates!Q$33*3*(Boundary!R51-Boundary!R69) -> 166.6666667 | S41: =Boundary!S69+DT*Rates!R$33*3*(Boundary!S51-Boundary!S69) -> -4884.645115 | U41: =Boundary!U69+DT*Finance!M$33*3*(Boundary!U51-Boundary!U69) -> 0 | V41: =Boundary!V69+DT*Finance!P444*3*(Boundary!V51-Boundary!V69) -> 0 | W41: =Boundary!W69+DT*Finance!S$33*3*(Boundary!W51-Boundary!W69) -> 0 | X41: 8 | Y41: G2 | Z41: NATIONAL
C43: BANKING | D43: CMRL | E43: 9 | F43: FI | I43: =Boundary!I71+DT*Rates!H$33*3*(Boundary!I53-Boundary!I71) -> -273.5648395 | J43: =Boundary!J71+DT*Rates!I$33*3*(Boundary!J53-Boundary!J71) -> 0.1356007455 | K43: =Boundary!K71+DT*Rates!J$33*3*(Boundary!K53-Boundary!K71) -> 0.4427066819 | L43: =Boundary!L71+DT*Rates!K$33*3*(Boundary!L53-Boundary!L71) -> 0.6270424358 | N43: =Boundary!N71+DT*Rates!M$33*3*(Boundary!N53-Boundary!N71) -> 0.4025637452 | O43: =Boundary!O71+DT*Rates!N$33*3*(Boundary!O53-Boundary!O71) -> 2.274080754 | P43: =Boundary!P71+DT*Rates!O$33*3*(Boundary!P53-Boundary!P71) -> 0 | R43: =Boundary!R71+DT*Rates!Q$33*3*(Boundary!R53-Boundary!R71) -> 37.75089466 | S43: =Boundary!S71+DT*Rates!R$33*3*(Boundary!S53-Boundary!S71) -> 62.91815776 | U43: =-SUM(U30:U41,U44:U45) -> 122704.6436 | V43: =Boundary!V71+DT*Finance!N$33*3*(Boundary!V53-Boundary!V71) -> 0 | W43: =Boundary!W71+DT*Finance!O$33*3*(Boundary!W53-Boundary!W71) -> 0 | X43: 9 | Y43: FI | Z43: CMRCL | AA43: BANKING
D44: RETAIL | E44: 10 | F44: FL | I44: =Boundary!I72+DT*Rates!H$33*3*(Boundary!I54-Boundary!I72) -> -232.7512248 | J44: =Boundary!J72+DT*Rates!I$33*3*(Boundary!J54-Boundary!J72) -> 0.4170420619 | K44: =Boundary!K72+DT*Rates!J$33*3*(Boundary!K54-Boundary!K72) -> 3.62006872 | L44: =Boundary!L72+DT*Rates!K$33*3*(Boundary!L54-Boundary!L72) -> 4.020431994 | N44: =Boundary!N72+DT*Rates!M$33*3*(Boundary!N54-Boundary!N72) -> 0.01032539274 | O44: =Boundary!O72+DT*Rates!N$33*3*(Boundary!O54-Boundary!O72) -> 1.689079565 | P44: =Boundary!P72+DT*Rates!O$33*3*(Boundary!P54-Boundary!P72) -> 0 | R44: =Boundary!R72+DT*Rates!Q$33*3*(Boundary!R54-Boundary!R72) -> 36 | S44: =Boundary!S72+DT*Rates!R$33*3*(Boundary!S54-Boundary!S72) -> 60 | U44: =Boundary!U72+DT*Finance!M$33*3*(Boundary!U54-Boundary!U72) -> 0 | V44: =-SUM(V29:V43,V45) -> 106245.4634 | W44: =Boundary!W72+DT*Finance!O$33*3*(Boundary!W54-Boundary!W72) -> 0 | X44: 10 | Y44: FL | Z44: RETAIL
D45: GOVT | E45: 11 | F45: FG | I45: =Boundary!I73+DT*Rates!H$33*3*(Boundary!I55-Boundary!I73) -> 0 | J45: =Boundary!J73+DT*Rates!I$33*3*(Boundary!J55-Boundary!J73) -> 0 | K45: =Boundary!K73+DT*Rates!J$33*3*(Boundary!K55-Boundary!K73) -> 0 | L45: =Boundary!L73+DT*Rates!K$33*3*(Boundary!L55-Boundary!L73) -> 0 | N45: =Boundary!N73+DT*Rates!M$33*3*(Boundary!N55-Boundary!N73) -> 0 | O45: =Boundary!O73+DT*Rates!N$33*3*(Boundary!O55-Boundary!O73) -> 0 | P45: =Boundary!P73+DT*Rates!O$33*3*(Boundary!P55-Boundary!P73) -> 0 | R45: =Boundary!R73+DT*Rates!Q$33*3*(Boundary!R55-Boundary!R73) -> 0 | S45: =Boundary!S73+DT*Rates!R$33*3*(Boundary!S55-Boundary!S73) -> 0 | U45: =Boundary!U73+DT*Finance!M$33*3*(Boundary!U55-Boundary!U73) -> 0 | V45: =Boundary!V73+DT*Finance!N$33*3*(Boundary!V55-Boundary!V73) -> 0 | W45: =-SUM(W29:W44) -> 0 | X45: 11 | Y45: FG | Z45: GOVT
G47: C > | I47: =Boundary!I75+DT*Rates!H$33*3*(Boundary!I57-Boundary!I75) -> 0 | J47: =Boundary!J75+DT*Rates!I$33*3*(Boundary!J57-Boundary!J75) -> 0 | K47: =Boundary!K75+DT*Rates!J$33*3*(Boundary!K57-Boundary!K75) -> 0 | L47: =Boundary!L75+DT*Rates!K$33*3*(Boundary!L57-Boundary!L75) -> 0 | N47: =Boundary!N75+DT*Rates!M$33*3*(Boundary!N57-Boundary!N75) -> 0 | O47: =Boundary!O75+DT*Rates!N$33*3*(Boundary!O57-Boundary!O75) -> 0 | P47: =Boundary!P75+DT*Rates!O$33*3*(Boundary!P57-Boundary!P75) -> 0 | R47: =Boundary!R75+DT*Rates!Q$33*3*(Boundary!R57-Boundary!R75) -> 0 | S47: =Boundary!S75+DT*Rates!R$33*3*(Boundary!S57-Boundary!S75) -> 0 | U47: =Boundary!U75+DT*Finance!M$33*3*(Boundary!U57-Boundary!U75) -> 0 | V47: =Boundary!V75+DT*Finance!P450*3*(Boundary!V57-Boundary!V75) -> 0 | W47: =Boundary!W75+DT*Finance!S$33*3*(Boundary!W57-Boundary!W75) -> 0 | Z47: g
E49: 0 | F49: 0 | I49: =Boundary!I77+DT*Rates!H$33*3*(Boundary!I59-Boundary!I77) -> 90399.02751 | J49: =Boundary!J77+DT*Rates!I$33*3*(Boundary!J59-Boundary!J77) -> -333.073061 | K49: =Boundary!K77+DT*Rates!J$33*3*(Boundary!K59-Boundary!K77) -> -749.4164139 | L49: =Boundary!L77+DT*Rates!K$33*3*(Boundary!L59-Boundary!L77) -> -1065.819348 | N49: =Boundary!N77+DT*Rates!M$33*3*(Boundary!N59-Boundary!N77) -> -292 | O49: =Boundary!O77+DT*Rates!N$33*3*(Boundary!O59-Boundary!O77) -> -2922 | P49: =Boundary!P77+DT*Rates!O$33*3*(Boundary!P59-Boundary!P77) -> -33.33333333 | R49: =Boundary!R77+DT*Rates!Q$33*3*(Boundary!R59-Boundary!R77) -> 0 | S49: =Boundary!S77+DT*Rates!R$33*3*(Boundary!S59-Boundary!S77) -> 0 | U49: =Boundary!U77+DT*Finance!M$33*3*(Boundary!U59-Boundary!U77) -> 0 | V49: =Boundary!V77+DT*Finance!P452*3*(Boundary!V59-Boundary!V77) -> 0 | W49: =Boundary!W77+DT*Finance!S$33*3*(Boundary!W59-Boundary!W77) -> 0 | X49: 0 | Y49: 0
C50: INDUSTRIES | D50: CAPITAL | E50: 1 | F50: I1 | I50: =Boundary!I78+DT*Rates!H$33*3*(Boundary!I60-Boundary!I78) -> -23817.08561 | J50: =Boundary!J78+DT*Rates!I$33*3*(Boundary!J60-Boundary!J78) -> 100.2464814 | K50: =Boundary!K78+DT*Rates!J$33*3*(Boundary!K60-Boundary!K78) -> 200.6746834 | L50: =Boundary!L78+DT*Rates!K$33*3*(Boundary!L60-Boundary!L78) -> 267.81443 | N50: =Boundary!N78+DT*Rates!M$33*3*(Boundary!N60-Boundary!N78) -> 6.654407659 | O50: =Boundary!O78+DT*Rates!N$33*3*(Boundary!O60-Boundary!O78) -> 192.8548525 | P50: =Boundary!P78+DT*Rates!O$33*3*(Boundary!P60-Boundary!P78) -> 0 | R50: =Boundary!R78+DT*Rates!Q$33*3*(Boundary!R60-Boundary!R78) -> 170.8422778 | S50: =Boundary!S78+DT*Rates!R$33*3*(Boundary!S60-Boundary!S78) -> 284.7371296 | U50: =Boundary!U78+DT*Finance!M$33*3*(Boundary!U60-Boundary!U78) -> 0 | V50: =Boundary!V78+DT*Finance!P453*3*(Boundary!V60-Boundary!V78) -> 0 | W50: =Boundary!W78+DT*Finance!S$33*3*(Boundary!W60-Boundary!W78) -> 0 | X50: 1 | Y50: I1 | Z50: CAPITAL | AA50: INDUSTRIES
D51: GENERAL | E51: 2 | F51: I2 | I51: =Boundary!I79+DT*Rates!H$33*3*(Boundary!I61-Boundary!I79) -> -20805.18587 | J51: =Boundary!J79+DT*Rates!I$33*3*(Boundary!J61-Boundary!J79) -> 83.54655514 | K51: =Boundary!K79+DT*Rates!J$33*3*(Boundary!K61-Boundary!K79) -> 100.583574 | L51: =Boundary!L79+DT*Rates!K$33*3*(Boundary!L61-Boundary!L79) -> 234.3264339 | N51: =Boundary!N79+DT*Rates!M$33*3*(Boundary!N61-Boundary!N79) -> 9.989115342 | O51: =Boundary!O79+DT*Rates!N$33*3*(Boundary!O61-Boundary!O79) -> 193.7672285 | P51: =Boundary!P79+DT*Rates!O$33*3*(Boundary!P61-Boundary!P79) -> 0 | R51: =Boundary!R79+DT*Rates!Q$33*3*(Boundary!R61-Boundary!R79) -> 149.2389658 | S51: =Boundary!S79+DT*Rates!R$33*3*(Boundary!S61-Boundary!S79) -> 248.7316097 | U51: =Boundary!U79+DT*Finance!M$33*3*(Boundary!U61-Boundary!U79) -> 0 | V51: =Boundary!V79+DT*Finance!P454*3*(Boundary!V61-Boundary!V79) -> 0 | W51: =Boundary!W79+DT*Finance!S$33*3*(Boundary!W61-Boundary!W79) -> 0 | X51: 2 | Y51: I2 | Z51: GENERAL
D52: NON_DUR | E52: 3 | F52: I3 | I52: =Boundary!I80+DT*Rates!H$33*3*(Boundary!I62-Boundary!I80) -> -18029.91589 | J52: =Boundary!J80+DT*Rates!I$33*3*(Boundary!J62-Boundary!J80) -> 66.84937223 | K52: =Boundary!K80+DT*Rates!J$33*3*(Boundary!K62-Boundary!K80) -> 150.4976286 | L52: =Boundary!L80+DT*Rates!K$33*3*(Boundary!L62-Boundary!L80) -> 167.5139855 | N52: =Boundary!N80+DT*Rates!M$33*3*(Boundary!N62-Boundary!N80) -> 6.657136767 | O52: =Boundary!O80+DT*Rates!N$33*3*(Boundary!O62-Boundary!O80) -> 194.6379957 | P52: =Boundary!P80+DT*Rates!O$33*3*(Boundary!P62-Boundary!P80) -> 0 | R52: =Boundary!R80+DT*Rates!Q$33*3*(Boundary!R62-Boundary!R80) -> 129.334169 | S52: =Boundary!S80+DT*Rates!R$33*3*(Boundary!S62-Boundary!S80) -> 215.5569483 | U52: =Boundary!U80+DT*Finance!M$33*3*(Boundary!U62-Boundary!U80) -> 0 | V52: =Boundary!V80+DT*Finance!P455*3*(Boundary!V62-Boundary!V80) -> 0 | W52: =Boundary!W80+DT*Finance!S$33*3*(Boundary!W62-Boundary!W80) -> 0 | X52: 3 | Y52: I3 | Z52: NON_DUR
C54: HOUSEHOLDS | D54: BOURGS | E54: 4 | F54: L1 | I54: =Boundary!I82+DT*Rates!H$33*3*(Boundary!I64-Boundary!I82) -> -19143.98798 | J54: =Boundary!J82+DT*Rates!I$33*3*(Boundary!J64-Boundary!J82) -> 76.47026276 | K54: =Boundary!K82+DT*Rates!J$33*3*(Boundary!K64-Boundary!K82) -> 228.6632128 | L54: =Boundary!L82+DT*Rates!K$33*3*(Boundary!L64-Boundary!L82) -> 332.1499052 | N54: =Boundary!N82+DT*Rates!M$33*3*(Boundary!N64-Boundary!N82) -> 260.5245275 | O54: =Boundary!O82+DT*Rates!N$33*3*(Boundary!O64-Boundary!O82) -> 65.99600368 | P54: =Boundary!P82+DT*Rates!O$33*3*(Boundary!P64-Boundary!P82) -> 0 | R54: =Boundary!R82+DT*Rates!Q$33*3*(Boundary!R64-Boundary!R82) -> 2331.250746 | S54: =Boundary!S82+DT*Rates!R$33*3*(Boundary!S64-Boundary!S82) -> 3885.41791 | U54: =Boundary!U82+DT*Finance!M$33*3*(Boundary!U64-Boundary!U82) -> -111128.1621 | V54: =Boundary!V82+DT*Finance!P457*3*(Boundary!V64-Boundary!V82) -> -106245.4634 | W54: =Boundary!W82+DT*Finance!S$33*3*(Boundary!W64-Boundary!W82) -> 0 | X54: 4 | Y54: L1 | Z54: BOURGS | AA54: HOUSEHOLDS
D55: PRLTRT | E55: 5 | F55: L2 | I55: =Boundary!I83+DT*Rates!H$33*3*(Boundary!I65-Boundary!I83) -> -3997.051023 | J55: =Boundary!J83+DT*Rates!I$33*3*(Boundary!J65-Boundary!J83) -> 4.402167275 | K55: =Boundary!K83+DT*Rates!J$33*3*(Boundary!K65-Boundary!K83) -> 59.80750827 | L55: =Boundary!L83+DT*Rates!K$33*3*(Boundary!L65-Boundary!L83) -> 53.52796939 | N55: =Boundary!N83+DT*Rates!M$33*3*(Boundary!N65-Boundary!N83) -> 1.757472823 | O55: =Boundary!O83+DT*Rates!N$33*3*(Boundary!O65-Boundary!O83) -> 2216.412751 | P55: =Boundary!P83+DT*Rates!O$33*3*(Boundary!P65-Boundary!P83) -> 0 | R55: =Boundary!R83+DT*Rates!Q$33*3*(Boundary!R65-Boundary!R83) -> 486.6807256 | S55: =Boundary!S83+DT*Rates!R$33*3*(Boundary!S65-Boundary!S83) -> 811.1345427 | U55: =Boundary!U83+DT*Finance!M$33*3*(Boundary!U65-Boundary!U83) -> -11566.96 | V55: =Boundary!V83+DT*Finance!P458*3*(Boundary!V65-Boundary!V83) -> 0 | W55: =Boundary!W83+DT*Finance!S$33*3*(Boundary!W65-Boundary!W83) -> 0 | X55: 5 | Y55: L2 | Z55: PRLTRT
D56: DPNDNT | E56: 6 | F56: L3 | I56: =Boundary!I84+DT*Rates!H$33*3*(Boundary!I66-Boundary!I84) -> -503.4744382 | J56: =Boundary!J84+DT*Rates!I$33*3*(Boundary!J66-Boundary!J84) -> 0.3123608137 | K56: =Boundary!K84+DT*Rates!J$33*3*(Boundary!K66-Boundary!K84) -> 5.648151614 | L56: =Boundary!L84+DT*Rates!K$33*3*(Boundary!L66-Boundary!L84) -> 4.806572688 | N56: =Boundary!N84+DT*Rates!M$33*3*(Boundary!N66-Boundary!N84) -> 0.3161574536 | O56: =Boundary!O84+DT*Rates!N$33*3*(Boundary!O66-Boundary!O84) -> 5.747656366 | P56: =Boundary!P84+DT*Rates!O$33*3*(Boundary!P66-Boundary!P84) -> 33.33333333 | R56: =Boundary!R84+DT*Rates!Q$33*3*(Boundary!R66-Boundary!R84) -> -410.3107098 | S56: =Boundary!S84+DT*Rates!R$33*3*(Boundary!S66-Boundary!S84) -> -683.8511829 | U56: =Boundary!U84+DT*Finance!M$33*3*(Boundary!U66-Boundary!U84) -> 0 | V56: =Boundary!V84+DT*Finance!P459*3*(Boundary!V66-Boundary!V84) -> 0 | W56: =Boundary!W84+DT*Finance!S$33*3*(Boundary!W66-Boundary!W84) -> 0 | X56: 6 | Y56: L3 | Z56: DPNDNT
C58: GOVERNANCE | D58: LOCAL | E58: 7 | F58: G1 | I58: =Boundary!I86+DT*Rates!H$33*3*(Boundary!I68-Boundary!I86) -> -1425.189293 | J58: =Boundary!J86+DT*Rates!I$33*3*(Boundary!J68-Boundary!J86) -> 0.2769912654 | K58: =Boundary!K86+DT*Rates!J$33*3*(Boundary!K68-Boundary!K86) -> -0.1090452492 | L58: =Boundary!L86+DT*Rates!K$33*3*(Boundary!L68-Boundary!L86) -> 0.4789259682 | N58: =Boundary!N86+DT*Rates!M$33*3*(Boundary!N68-Boundary!N86) -> 2.245431325 | O58: =Boundary!O86+DT*Rates!N$33*3*(Boundary!O68-Boundary!O86) -> 19.2497792 | P58: =Boundary!P86+DT*Rates!O$33*3*(Boundary!P68-Boundary!P86) -> 0 | R58: =Boundary!R86+DT*Rates!Q$33*3*(Boundary!R68-Boundary!R86) -> -3097.453736 | S58: =Boundary!S86+DT*Rates!R$33*3*(Boundary!S68-Boundary!S86) -> 0 | U58: =Boundary!U86+DT*Finance!M$33*3*(Boundary!U68-Boundary!U86) -> 0 | V58: =Boundary!V86+DT*Finance!P461*3*(Boundary!V68-Boundary!V86) -> 0 | W58: =Boundary!W86+DT*Finance!S$33*3*(Boundary!W68-Boundary!W86) -> 0 | X58: 7 | Y58: G1 | Z58: LOCAL | AA58: GOVERNANCE
D59: NATIONAL | E59: 8 | F59: G2 | I59: =Boundary!I87+DT*Rates!H$33*3*(Boundary!I69-Boundary!I87) -> -2170.817754 | J59: =Boundary!J87+DT*Rates!I$33*3*(Boundary!J69-Boundary!J87) -> 0.4117314915 | K59: =Boundary!K87+DT*Rates!J$33*3*(Boundary!K69-Boundary!K87) -> -0.4362454778 | L59: =Boundary!L87+DT*Rates!K$33*3*(Boundary!L69-Boundary!L87) -> 0.5092261451 | N59: =Boundary!N87+DT*Rates!M$33*3*(Boundary!N69-Boundary!N87) -> 3.442860468 | O59: =Boundary!O87+DT*Rates!N$33*3*(Boundary!O69-Boundary!O87) -> 29.37049192 | P59: =Boundary!P87+DT*Rates!O$33*3*(Boundary!P69-Boundary!P87) -> 0 | R59: =Boundary!R87+DT*Rates!Q$33*3*(Boundary!R69-Boundary!R87) -> 166.6666667 | S59: =Boundary!S87+DT*Rates!R$33*3*(Boundary!S69-Boundary!S87) -> -4884.645115 | U59: =Boundary!U87+DT*Finance!M$33*3*(Boundary!U69-Boundary!U87) -> 0 | V59: =Boundary!V87+DT*Finance!P462*3*(Boundary!V69-Boundary!V87) -> 0 | W59: =Boundary!W87+DT*Finance!S$33*3*(Boundary!W69-Boundary!W87) -> 0 | X59: 8 | Y59: G2 | Z59: NATIONAL
C61: BANKING | D61: CMRL | E61: 9 | F61: FI | I61: =Boundary!I89+DT*Rates!H$33*3*(Boundary!I71-Boundary!I89) -> -273.5690659 | J61: =Boundary!J89+DT*Rates!I$33*3*(Boundary!J71-Boundary!J89) -> 0.1353831689 | K61: =Boundary!K89+DT*Rates!J$33*3*(Boundary!K71-Boundary!K89) -> 0.4427472607 | L61: =Boundary!L89+DT*Rates!K$33*3*(Boundary!L71-Boundary!L89) -> 0.6270924103 | N61: =Boundary!N89+DT*Rates!M$33*3*(Boundary!N71-Boundary!N89) -> 0.4025654141 | O61: =Boundary!O89+DT*Rates!N$33*3*(Boundary!O71-Boundary!O89) -> 2.274169921 | P61: =Boundary!P89+DT*Rates!O$33*3*(Boundary!P71-Boundary!P89) -> 0 | R61: =Boundary!R89+DT*Rates!Q$33*3*(Boundary!R71-Boundary!R89) -> 37.75089466 | S61: =Boundary!S89+DT*Rates!R$33*3*(Boundary!S71-Boundary!S89) -> 62.91815776 | U61: =-SUM(U48:U59,U62:U63) -> 122695.1221 | V61: =Boundary!V89+DT*Finance!N$33*3*(Boundary!V71-Boundary!V89) -> 0 | W61: =Boundary!W89+DT*Finance!O$33*3*(Boundary!W71-Boundary!W89) -> 0 | X61: 9 | Y61: FI | Z61: CMRCL | AA61: BANKING
D62: RETAIL | E62: 10 | F62: FL | I62: =Boundary!I90+DT*Rates!H$33*3*(Boundary!I72-Boundary!I90) -> -232.7505805 | J62: =Boundary!J90+DT*Rates!I$33*3*(Boundary!J72-Boundary!J90) -> 0.4172741748 | K62: =Boundary!K90+DT*Rates!J$33*3*(Boundary!K72-Boundary!K90) -> 3.620032084 | L62: =Boundary!L90+DT*Rates!K$33*3*(Boundary!L72-Boundary!L90) -> 4.02042721 | N62: =Boundary!N90+DT*Rates!M$33*3*(Boundary!N72-Boundary!N90) -> 0.01032523307 | O62: =Boundary!O90+DT*Rates!N$33*3*(Boundary!O72-Boundary!O90) -> 1.689071014 | P62: =Boundary!P90+DT*Rates!O$33*3*(Boundary!P72-Boundary!P90) -> 0 | R62: =Boundary!R90+DT*Rates!Q$33*3*(Boundary!R72-Boundary!R90) -> 36 | S62: =Boundary!S90+DT*Rates!R$33*3*(Boundary!S72-Boundary!S90) -> 60 | U62: =Boundary!U90+DT*Finance!M$33*3*(Boundary!U72-Boundary!U90) -> 0 | V62: =-SUM(V47:V61,V63) -> 106245.4634 | W62: =Boundary!W90+DT*Finance!O$33*3*(Boundary!W72-Boundary!W90) -> 0 | X62: 10 | Y62: FL | Z62: RETAIL
D63: GOVT | E63: 11 | F63: FG | I63: =Boundary!I91+DT*Rates!H$33*3*(Boundary!I73-Boundary!I91) -> 0 | J63: =Boundary!J91+DT*Rates!I$33*3*(Boundary!J73-Boundary!J91) -> 0 | K63: =Boundary!K91+DT*Rates!J$33*3*(Boundary!K73-Boundary!K91) -> 0 | L63: =Boundary!L91+DT*Rates!K$33*3*(Boundary!L73-Boundary!L91) -> 0 | N63: =Boundary!N91+DT*Rates!M$33*3*(Boundary!N73-Boundary!N91) -> 0 | O63: =Boundary!O91+DT*Rates!N$33*3*(Boundary!O73-Boundary!O91) -> 0 | P63: =Boundary!P91+DT*Rates!O$33*3*(Boundary!P73-Boundary!P91) -> 0 | R63: =Boundary!R91+DT*Rates!Q$33*3*(Boundary!R73-Boundary!R91) -> 0 | S63: =Boundary!S91+DT*Rates!R$33*3*(Boundary!S73-Boundary!S91) -> 0 | U63: =Boundary!U91+DT*Finance!M$33*3*(Boundary!U73-Boundary!U91) -> 0 | V63: =Boundary!V91+DT*Finance!N$33*3*(Boundary!V73-Boundary!V91) -> 0 | W63: =-SUM(W47:W62) -> 0 | X63: 11 | Y63: FG | Z63: GOVT | AE63: `
I64: 0 | J64: I1 | K64: I2 | L64: I3 | N64: L1 | O64: L2 | P64: L3 | R64: G1 | S64: G2 | U64: FI | V64: FL | W64: FG
I65: 0 | J65: 1 | K65: 2 | L65: 3 | N65: 4 | O65: 5 | P65: 6 | R65: 7 | S65: 8 | U65: 9 | V65: 10 | W65: 11
I66: VALUE | J66: CAPITAL | K66: GENERAL | L66: NON_DUR | N66: BOURGS | O66: PRLTRT | P66: DPNDNT | R66: LOCAL | S66: NATIONAL | U66: COMMERCIAL | V66: RETAIL | W66: GOVT
N67: 4 | O67: 5 | P67: 6 | U67: 9 | V67: 10 | W67: 11
N68: L1 | O68: L2 | P68: L3 | U68: FI | V68: FL | W68: FG
N69: =Boundary!N97+DT*Zeta!N33 -> -841.4259526 | O69: =Boundary!O97+DT*Zeta!O33 -> -7401.922356 | P69: =Boundary!P97+DT*Zeta!P33 -> -100 | U69: =Finance!AD15 -> 6.176225046 | V69: =Finance!AH15 -> 6.174146534 | W69: =Finance!AL15 -> 0 | X69: < Term
U70: FI | V70: FL | W70: FG
U71: 9 | V71: 10 | W71: 11
U72: COMMERCIAL | V72: RETAIL | W72: GOVT
U73: 9 | V73: 10 | W73: 11
U74: FI | V74: FL | W74: FG
U75: =Boundary!U103+DT*(Investment!AC11+Finance!N67) -> 0 | V75: =Boundary!V103+DT*(Investment!AD11+Finance!Q67) -> 0 | W75: =Boundary!W103+DT*(Investment!AE11+Finance!T67) -> 0 | Z75: k
U77: =Boundary!U105+DT*(Investment!AC13+Finance!N69) -> -1065.171126 | V77: =Boundary!V105+DT*(Investment!AD13+Finance!Q69) -> 2.07364792e-12 | W77: =Boundary!W105+DT*(Investment!AE13+Finance!T69) -> 0 | X77: 0 | Y77: 0
U78: =Boundary!U106+DT*(Investment!AC14+Finance!N70) -> 175394.5634 | V78: =Boundary!V106+DT*(Investment!AD14+Finance!Q70) -> 0 | W78: =Boundary!W106+DT*(Investment!AE14+Finance!T70) -> 0 | X78: 1 | Y78: I1 | Z78: CAPITAL | AA78: INDUSTRIES
U79: =Boundary!U107+DT*(Investment!AC15+Finance!N71) -> 153204.1136 | V79: =Boundary!V107+DT*(Investment!AD15+Finance!Q71) -> 0 | W79: =Boundary!W107+DT*(Investment!AE15+Finance!T71) -> 0 | X79: 2 | Y79: I2 | Z79: GENERAL
U80: =Boundary!U108+DT*(Investment!AC16+Finance!N72) -> 132766.1852 | V80: =Boundary!V108+DT*(Investment!AD16+Finance!Q72) -> 0 | W80: =Boundary!W108+DT*(Investment!AE16+Finance!T72) -> 0 | X80: 3 | Y80: I3 | Z80: NON_DUR
U82: =Boundary!U110+DT*(Investment!AC18+Finance!N74) -> 0 | V82: =Boundary!V110+DT*(Investment!AD18+Finance!Q74) -> 0 | W82: =Boundary!W110+DT*(Investment!AE18+Finance!T74) -> 0 | X82: 4 | Y82: L1 | Z82: BOURGS | AA82: HOUSEHOLDS
U83: =Boundary!U111+DT*(Investment!AC19+Finance!N75) -> 0 | V83: =Boundary!V111+DT*(Investment!AD19+Finance!Q75) -> 398374.9641 | W83: =Boundary!W111+DT*(Investment!AE19+Finance!T75) -> 0 | X83: 5 | Y83: L2 | Z83: PRLTRT
U84: =Boundary!U112+DT*(Investment!AC20+Finance!N76) -> 0 | V84: =Boundary!V112+DT*(Investment!AD20+Finance!Q76) -> -23.21330085 | W84: =Boundary!W112+DT*(Investment!AE20+Finance!T76) -> 0 | X84: 6 | Y84: L3 | Z84: DPNDNT
U86: =Boundary!U114+DT*(Investment!AC22+Finance!N78) -> -59.37362004 | V86: =Boundary!V114+DT*(Investment!AD22+Finance!Q78) -> 0 | W86: =Boundary!W114+DT*(Investment!AE22+Finance!T78) -> 0 | X86: 7 | Y86: G1 | Z86: LOCAL | AA86: GOVERNANCE
U87: =Boundary!U115+DT*(Investment!AC23+Finance!N79) -> -90.33001517 | V87: =Boundary!V115+DT*(Investment!AD23+Finance!Q79) -> 0 | W87: =Boundary!W115+DT*(Investment!AE23+Finance!T79) -> 0 | X87: 8 | Y87: G2 | Z87: NATIONAL
U89: =-SUM(U76:U87,U90:U91) -> -460149.9874 | V89: =Boundary!V117+DT*(Investment!AD25+Finance!Q81) -> 0 | W89: =Boundary!W117+DT*(Investment!AE25+Finance!T81) -> 0 | X89: 9 | Y89: FI | Z89: CMRCL | AA89: BANKING
U90: =Boundary!U118+DT*(Investment!AC26+Finance!N82) -> 0 | V90: =-SUM(V75:V89,V91) -> -398351.7508 | W90: =Boundary!W118+DT*(Investment!AE26+Finance!T82) -> 0 | X90: 10 | Y90: FL | Z90: RETAIL
U91: =Boundary!U119+DT*(Investment!AC27+Finance!N83) -> 0 | V91: =Boundary!V119+DT*(Investment!AD27+Finance!Q83) -> 0 | W91: =-SUM(W75:W90) -> 0 | X91: 11 | Y91: FG | Z91: GOVT
U92: FI | V92: FL | W92: FG
U93: 9 | V93: 10 | W93: 11
U94: COMMERCIAL | V94: RETAIL | W94: GOVT | Z94: k
